BODY,BODY NAME,SERVICE CODE,ORGANISATIONAL UNIT,ORGANISATIONAL UNIT CODE,EXPENDITURE CATEGORY,EXPENDITURE CODE,DATE (POSTING DATE),TRANSACTION NUMBER,AMOUNT,SUPPLIER NAME,SUPPLIER ID
WARRINGTON BOROUGH COUNCIL,http://opendatacommunities.org/id/unitary-authority/warrington,FWB,P & W Development,54510,Training,190150,28/06/2021,5100465148,660,University Of Chester,104599
WARRINGTON BOROUGH COUNCIL,http://opendatacommunities.org/id/unitary-authority/warrington,FWB,P & W Development,54510,Training,190150,28/06/2021,5100465149,660,University Of Chester,104599
WARRINGTON BOROUGH COUNCIL,http://opendatacommunities.org/id/unitary-authority/warrington,ET0,Transport Holding Account,41311,Equipment Purchase & Contract,400000,13/01/2022,5100483322,3120,Innovative Safety Systems Limited,117181
WARRINGTON BOROUGH COUNCIL,http://opendatacommunities.org/id/unitary-authority/warrington,FWB,BCF - Telecare/Sensory,54560,Health Awareness,441950,19/01/2022,5100483838,900,Tunstall Healthcare UK Ltd,105427
WARRINGTON BOROUGH COUNCIL,http://opendatacommunities.org/id/unitary-authority/warrington,FWB,BCF - Telecare/Sensory,54560,Health Awareness,441950,19/01/2022,5100483838,544,Tunstall Healthcare UK Ltd,105427
WARRINGTON BOROUGH COUNCIL,http://opendatacommunities.org/id/unitary-authority/warrington,FWB,MH Outreach,54090,Rent Of Premises,220000,16/11/2022,5100492152,576,Culture Warrington,100957
WARRINGTON BOROUGH COUNCIL,http://opendatacommunities.org/id/unitary-authority/warrington,FWB,MH Outreach,54090,Rent Of Premises,220000,16/11/2022,5100493613,666,Culture Warrington,100957
WARRINGTON BOROUGH COUNCIL,http://opendatacommunities.org/id/unitary-authority/warrington,ENO,Highways Other,82005,Clean Repair Drains,531000,15/11/2022,5100497988,4500,Pure Utility Solutions Limited,115212
WARRINGTON BOROUGH COUNCIL,http://opendatacommunities.org/id/unitary-authority/warrington,FWB,MH Outreach,54090,Rent Of Premises,220000,15/11/2022,5100498005,576,Culture Warrington,100957
WARRINGTON BOROUGH COUNCIL,http://opendatacommunities.org/id/unitary-authority/warrington,FWB,MH Outreach,54090,Rent Of Premises,220000,15/11/2022,5100498010,618,Culture Warrington,100957
WARRINGTON BOROUGH COUNCIL,http://opendatacommunities.org/id/unitary-authority/warrington,FWB,DSG Post-16 Special Educational Needs,32309,Fees (Including Agents Fees),441450,21/06/2022,5100500363,3790.42,The LTE Group,117985
WARRINGTON BOROUGH COUNCIL,http://opendatacommunities.org/id/unitary-authority/warrington,ET0,Transport Holding Account,41311,Vehicle Hire Charges,320000,31/10/2022,5100502463,790,Rent A Lift Ltd,118689
WARRINGTON BOROUGH COUNCIL,http://opendatacommunities.org/id/unitary-authority/warrington,ENO,Environmental Projects,82007,Building Work,200850,08/07/2022,5100502507,11009,Complete Home Energy Systems,111861
WARRINGTON BOROUGH COUNCIL,http://opendatacommunities.org/id/unitary-authority/warrington,FWB,DSG Post-16 Special Educational Needs,32309,Fees (Including Agents Fees),441450,19/07/2022,5100503735,5306.6,The LTE Group,117985
WARRINGTON BOROUGH COUNCIL,http://opendatacommunities.org/id/unitary-authority/warrington,FWB,Fostering Collaboration,31115,Fees (Including Agents Fees),441450,04/08/2022,5100505492,2250,Newsquest Media Group,100070
WARRINGTON BOROUGH COUNCIL,http://opendatacommunities.org/id/unitary-authority/warrington,PIO,People & Improvement Other,85002,Minor Adaptations<750,400700,01/11/2022,5100505604,3595,The Excellent Ramp System,100407
WARRINGTON BOROUGH COUNCIL,http://opendatacommunities.org/id/unitary-authority/warrington,ET0,Transport Holding Account,41311,Vehicle Hire Charges,320000,09/11/2022,5100505607,560,F G Rowland Ltd,102555
WARRINGTON BOROUGH COUNCIL,http://opendatacommunities.org/id/unitary-authority/warrington,ET0,Transport Holding Account,41311,Vehicle Hire Charges,320000,02/11/2022,5100505996,617.2,Hire Station North,104819
WARRINGTON BOROUGH COUNCIL,http://opendatacommunities.org/id/unitary-authority/warrington,RSC,ICT Networks,23400,Computer Software - Maintenance,450850,11/08/2022,5100506304,3000,Softcat,109539
WARRINGTON BOROUGH COUNCIL,http://opendatacommunities.org/id/unitary-authority/warrington,ET0,Walton Hall Catering,41433,Provisions-Purchase,410000,11/11/2022,5100506307,4779.62,Carringtons Catering Ltd,116708
WARRINGTON BOROUGH COUNCIL,http://opendatacommunities.org/id/unitary-authority/warrington,ET0,Walton Hall Catering,41433,Provisions-Purchase,410000,11/11/2022,5100506307,1183.34,Carringtons Catering Ltd,116708
WARRINGTON BOROUGH COUNCIL,http://opendatacommunities.org/id/unitary-authority/warrington,RSC,IT - Contracts,23600,Computer Software - Maintenance,450850,17/08/2022,5100506607,18696,Accenture UK Limited,118763
WARRINGTON BOROUGH COUNCIL,http://opendatacommunities.org/id/unitary-authority/warrington,RSC,IT - Contracts,23600,Computer Software - Maintenance,450850,17/08/2022,5100506723,18696,Accenture UK Limited,118763
WARRINGTON BOROUGH COUNCIL,http://opendatacommunities.org/id/unitary-authority/warrington,CYP,Childrens & Young People,81000,Consult.& Prof. Serv,440000,01/11/2022,5100507272,685,Apec Environmental Ltd,101001
WARRINGTON BOROUGH COUNCIL,http://opendatacommunities.org/id/unitary-authority/warrington,ET0,Transport Holding Account,41311,Maintenance Work - Sub Contractors,301150,25/08/2022,5100507311,1596,Central Diesels,104582
WARRINGTON BOROUGH COUNCIL,http://opendatacommunities.org/id/unitary-authority/warrington,ENO,Highways Other,82005,Environmental Works,531050,11/11/2022,5100507460,3360.52,Aecom Ltd,106088
WARRINGTON BOROUGH COUNCIL,http://opendatacommunities.org/id/unitary-authority/warrington,CYP,Childrens & Young People,81000,Specific Work,200200,31/10/2022,5100507754,20000,Hadfield & Britain Ltd,116142
WARRINGTON BOROUGH COUNCIL,http://opendatacommunities.org/id/unitary-authority/warrington,ET0,Recreation & Games,41431,Materials,400500,30/08/2022,5100507812,976,M C & M A Stewart Haulage Ltd,105159
WARRINGTON BOROUGH COUNCIL,http://opendatacommunities.org/id/unitary-authority/warrington,DG0,Local Plan,43445,Consult.& Prof. Serv,440000,16/11/2022,5100508516,14970,AECOM Infrastructure & Environment,112506
WARRINGTON BOROUGH COUNCIL,http://opendatacommunities.org/id/unitary-authority/warrington,ET0,Birchwood L&TC Club,40066,Consult.& Prof. Serv,440000,11/11/2022,5100508686,2325,DB3 Architecture and Design,118700
WARRINGTON BOROUGH COUNCIL,http://opendatacommunities.org/id/unitary-authority/warrington,ET0,Transport Holding Account,41311,Vehicle Hire Charges,320000,21/10/2022,5100508757,638,F R Sharrock Ltd,105122
WARRINGTON BOROUGH COUNCIL,http://opendatacommunities.org/id/unitary-authority/warrington,ET0,Transport Holding Account,41311,Vehicle Hire Charges,320000,23/11/2022,5100508842,1884.88,Dawsongroup Sweepers Ltd,118270
WARRINGTON BOROUGH COUNCIL,http://opendatacommunities.org/id/unitary-authority/warrington,RSC,Change Delivery,52210,Consult.& Prof. Serv,440000,06/09/2022,5100508847,1590,Phoenix Software Ltd,105022
WARRINGTON BOROUGH COUNCIL,http://opendatacommunities.org/id/unitary-authority/warrington,FWB,Fostering Collaboration,31115,Fees (Including Agents Fees),441450,06/09/2022,5100508850,2250,Newsquest Media Group,100070
WARRINGTON BOROUGH COUNCIL,http://opendatacommunities.org/id/unitary-authority/warrington,ENO,Highways LTP,82004,Permanent Traffic Regulation Orders,442350,14/11/2022,5100508994,631.76,PeopleScout Limited,108498
WARRINGTON BOROUGH COUNCIL,http://opendatacommunities.org/id/unitary-authority/warrington,ET0,Fair Trading & Investigations,41500,Training,190150,08/09/2022,5100509180,1642,Chartered Trading Standards Institu,115937
WARRINGTON BOROUGH COUNCIL,http://opendatacommunities.org/id/unitary-authority/warrington,ET0,Transport Holding Account,41311,Diesel,300100,11/11/2022,5100509192,29819.92,Standard Fuel Oils Ltd,117478
WARRINGTON BOROUGH COUNCIL,http://opendatacommunities.org/id/unitary-authority/warrington,ET0,LACF - LCWIP Scheme Development,44525,Consult.& Prof. Serv,440000,16/11/2022,5100509608,13861.25,Jacobs Uk Ltd,101283
WARRINGTON BOROUGH COUNCIL,http://opendatacommunities.org/id/unitary-authority/warrington,RSC,Recruitment & Advertising,52123,Subscriptions,470000,02/11/2022,5100509719,566,Cantium Business Solutions Ltd,462309
WARRINGTON BOROUGH COUNCIL,http://opendatacommunities.org/id/unitary-authority/warrington,DG0,Local Plan,43445,Consult.& Prof. Serv,440000,01/11/2022,5100509980,3783.95,Programme Officer Solutions Limited,118782
WARRINGTON BOROUGH COUNCIL,http://opendatacommunities.org/id/unitary-authority/warrington,ET0,Transport Holding Account,41311,Diesel,300100,11/11/2022,5100510177,1846.8,Standard Fuel Oils Ltd,117478
WARRINGTON BOROUGH COUNCIL,http://opendatacommunities.org/id/unitary-authority/warrington,RSC,Professional Development Centre,21000,Security Systems,250000,03/11/2022,5100510282,1190.64,Kingdom Security Ltd,101324
WARRINGTON BOROUGH COUNCIL,http://opendatacommunities.org/id/unitary-authority/warrington,RSC,IT - Contracts,23600,Computer Software - Maintenance,450850,16/11/2022,5100510315,19475,Accenture UK Limited,118763
WARRINGTON BOROUGH COUNCIL,http://opendatacommunities.org/id/unitary-authority/warrington,ET0,Public Health Licensing,41550,Consult.& Prof. Serv,440000,31/10/2022,5100510402,660,Buckingham Futures,118389
WARRINGTON BOROUGH COUNCIL,http://opendatacommunities.org/id/unitary-authority/warrington,FWB,Education Leadership & Quality,32100,Consult.& Prof. Serv,440000,28/09/2022,5100510763,1425,SWL Northwest Ltd,118948
WARRINGTON BOROUGH COUNCIL,http://opendatacommunities.org/id/unitary-authority/warrington,RSC,One - Off ICT Costs,23200,Computer Software - Purchase,450800,27/09/2022,5100510880,9030.6,Phoenix Software Ltd,105022
WARRINGTON BOROUGH COUNCIL,http://opendatacommunities.org/id/unitary-authority/warrington,ET0,Fair Trading & Investigations,41500,Training,190150,27/09/2022,5100510907,505,Chartered Trading Standards Institu,115937
WARRINGTON BOROUGH COUNCIL,http://opendatacommunities.org/id/unitary-authority/warrington,RSC,Support Services,10400,Consult.& Prof. Serv,440000,28/09/2022,5100510987,1300,Capita Business Services Ltd,105516
WARRINGTON BOROUGH COUNCIL,http://opendatacommunities.org/id/unitary-authority/warrington,ET0,Public Health Licensing,41550,Consult.& Prof. Serv,440000,31/10/2022,5100510996,1480,Buckingham Futures,118389
WARRINGTON BOROUGH COUNCIL,http://opendatacommunities.org/id/unitary-authority/warrington,ET0,Traffic and Safety,44350,Traffic Section,531150,14/11/2022,5100511005,664.83,PeopleScout Limited,108498
WARRINGTON BOROUGH COUNCIL,http://opendatacommunities.org/id/unitary-authority/warrington,ET0,Taxi and Private Hire Licensing,44450,Consult.& Prof. Serv,440000,28/09/2022,5100511023,3325,Idox Software Ltd,102179
WARRINGTON BOROUGH COUNCIL,http://opendatacommunities.org/id/unitary-authority/warrington,ENO,Highways LTP,82004,Signal Equipment,531650,05/10/2022,5100511036,1250.8,Yunex Limited,101162
WARRINGTON BOROUGH COUNCIL,http://opendatacommunities.org/id/unitary-authority/warrington,RSC,Recruitment & Advertising,52123,Advertisings-Jobs,190000,28/09/2022,5100511048,7500,Wigan Council,410018
WARRINGTON BOROUGH COUNCIL,http://opendatacommunities.org/id/unitary-authority/warrington,ENO,Highways LTP,82004,Consult.& Prof. Serv,440000,01/11/2022,5100511055,12124,Mott Macdonald Ltd,104950
WARRINGTON BOROUGH COUNCIL,http://opendatacommunities.org/id/unitary-authority/warrington,ET0,Traffic and Safety,44350,Equipment Purchase & Contract,400000,31/10/2022,5100511171,573,Laser Tech UK Ltd,118639
WARRINGTON BOROUGH COUNCIL,http://opendatacommunities.org/id/unitary-authority/warrington,RSC,One - Off ICT Costs,23200,Consult.& Prof. Serv,440000,30/09/2022,5100511259,7600,Civica Uk Ltd,100585
WARRINGTON BOROUGH COUNCIL,http://opendatacommunities.org/id/unitary-authority/warrington,IGO,Property & Estates,86001,Consult.& Prof. Serv,440000,31/10/2022,5100511261,25000,Juuce Limited t/a EO Charging,118569
WARRINGTON BOROUGH COUNCIL,http://opendatacommunities.org/id/unitary-authority/warrington,RSC,ICT Projects,23300,ICT Comms - Line Purchase,450150,30/09/2022,5100511269,2272.83,TNP - The Networking People,110271
WARRINGTON BOROUGH COUNCIL,http://opendatacommunities.org/id/unitary-authority/warrington,RSC,Schools & Libraries Internet Project,23030,ICT Comms - Line Rental,450200,30/09/2022,5100511269,1411.6,TNP - The Networking People,110271
WARRINGTON BOROUGH COUNCIL,http://opendatacommunities.org/id/unitary-authority/warrington,ACO,Assistant Chief Executive Other,84003,Consult.& Prof. Serv,440000,02/11/2022,5100511291,5674,Pm Surveys Ltd,100711
WARRINGTON BOROUGH COUNCIL,http://opendatacommunities.org/id/unitary-authority/warrington,ET0,Transport Holding Account,41311,Veh Maint. Materials,300000,07/11/2022,5100511946,744.24,Turner Groundscare,105201
WARRINGTON BOROUGH COUNCIL,http://opendatacommunities.org/id/unitary-authority/warrington,RSC,Welfare Support,10360,"Campaigns,  Projects and Events",491950,02/11/2022,5100511987,2596,Changing Lives Together,111607
WARRINGTON BOROUGH COUNCIL,http://opendatacommunities.org/id/unitary-authority/warrington,ET0,Transport Holding Account,41311,Vehicle Hire Charges,320000,02/11/2022,5100511993,560,F G Rowland Ltd,102555
WARRINGTON BOROUGH COUNCIL,http://opendatacommunities.org/id/unitary-authority/warrington,IGO,Property & Estates,86001,Maintenance of Plant & Machinery,250050,11/11/2022,5100511996,4619.64,GBJ Environmental Systems (UK),118818
WARRINGTON BOROUGH COUNCIL,http://opendatacommunities.org/id/unitary-authority/warrington,ENO,Highways LTP,82004,Stationery,430150,28/10/2022,5100512011,8881,Industrial Water Jetting Systems Lt,114985
WARRINGTON BOROUGH COUNCIL,http://opendatacommunities.org/id/unitary-authority/warrington,FWB,Education Leadership & Quality,32100,Consult.& Prof. Serv,440000,05/10/2022,5100512041,4712.3,SWL Northwest Ltd,118948
WARRINGTON BOROUGH COUNCIL,http://opendatacommunities.org/id/unitary-authority/warrington,ET0,Park Development Sites,41423,Equipment Purchase & Contract,400000,06/10/2022,5100512143,615.6,Agrovista Uk Ltd,101700
WARRINGTON BOROUGH COUNCIL,http://opendatacommunities.org/id/unitary-authority/warrington,ET0,Transport Holding Account,41311,Vehicle Hire Charges,320000,02/11/2022,5100512154,7696.46,Enterprise Flex E Rent,100597
WARRINGTON BOROUGH COUNCIL,http://opendatacommunities.org/id/unitary-authority/warrington,ET0,Transport Holding Account,41311,Vehicle Hire Charges,320000,02/11/2022,5100512158,1500.01,B & T Skip Hire,100921
WARRINGTON BOROUGH COUNCIL,http://opendatacommunities.org/id/unitary-authority/warrington,FWB,Fostering Collaboration,31115,Fees (Including Agents Fees),441450,06/10/2022,5100512165,2250,Newsquest Media Group,100070
WARRINGTON BOROUGH COUNCIL,http://opendatacommunities.org/id/unitary-authority/warrington,ET0,Transport Holding Account,41311,Maintenance Work - Sub Contractors,301150,16/11/2022,5100512415,1160,Hgv Fleet Cleaning Services Ltd,102071
WARRINGTON BOROUGH COUNCIL,http://opendatacommunities.org/id/unitary-authority/warrington,COR,Market Food Court,47200,Security Systems,250000,12/10/2022,5100512571,936,I-GUARD SECURITY LTD,118756
WARRINGTON BOROUGH COUNCIL,http://opendatacommunities.org/id/unitary-authority/warrington,COR,New Market - Operational Account,47000,Events Costs,490000,12/10/2022,5100512574,600,Big Comedy UK,118554
WARRINGTON BOROUGH COUNCIL,http://opendatacommunities.org/id/unitary-authority/warrington,FWB,BCF - Telecare/Sensory,54560,Health Awareness,441950,12/10/2022,5100512576,1207.51,Porters Care Limited,118515
WARRINGTON BOROUGH COUNCIL,http://opendatacommunities.org/id/unitary-authority/warrington,FWB,BCF - Telecare/Sensory,54560,Health Awareness,441950,12/10/2022,5100512577,790,Porters Care Limited,118515
WARRINGTON BOROUGH COUNCIL,http://opendatacommunities.org/id/unitary-authority/warrington,ET0,Social Housing,40085,Consult.& Prof. Serv,440000,12/10/2022,5100512580,2600,Baker Mallett LLP,116160
WARRINGTON BOROUGH COUNCIL,http://opendatacommunities.org/id/unitary-authority/warrington,ET0,Transport Holding Account,41311,Vehicle Hire Charges,320000,12/10/2022,5100512595,2506.08,West Wallasey Car Hire Ltd,103584
WARRINGTON BOROUGH COUNCIL,http://opendatacommunities.org/id/unitary-authority/warrington,DG0,Ext. Funded Projects,53137,"Campaigns,  Projects and Events",491950,12/10/2022,5100512624,700,Culture Warrington,100957
WARRINGTON BOROUGH COUNCIL,http://opendatacommunities.org/id/unitary-authority/warrington,PIO,People & Improvement Other,85002,Minor Adaptations<750,400700,12/10/2022,5100512635,1290,Forshaw and Sons Ltd,111428
WARRINGTON BOROUGH COUNCIL,http://opendatacommunities.org/id/unitary-authority/warrington,ET0,Woolston Depot,41331,Diesel,300100,12/10/2022,5100512640,1256.85,Standard Fuel Oils Ltd,117478
WARRINGTON BOROUGH COUNCIL,http://opendatacommunities.org/id/unitary-authority/warrington,FWB,BCF - Telecare/Sensory,54560,Health Awareness,441950,13/10/2022,5100512690,889.5,Rhino Smart Systems Ltd,118610
WARRINGTON BOROUGH COUNCIL,http://opendatacommunities.org/id/unitary-authority/warrington,ET0,Private Sector Hsg.,43660,Equipment Purchase & Contract,400000,13/10/2022,5100512694,3720,Warrington Housing Current Acc,101208
WARRINGTON BOROUGH COUNCIL,http://opendatacommunities.org/id/unitary-authority/warrington,FWB,BCF - Telecare/Sensory,54560,Health Awareness,441950,13/10/2022,5100512695,594.99,Rhino Smart Systems Ltd,118610
WARRINGTON BOROUGH COUNCIL,http://opendatacommunities.org/id/unitary-authority/warrington,FWB,DSG Post-16 Special Educational Needs,32309,Fees (Including Agents Fees),441450,13/10/2022,5100512698,1576.25,TutorRight Limited,116990
WARRINGTON BOROUGH COUNCIL,http://opendatacommunities.org/id/unitary-authority/warrington,RSC,ICT Centralised Budget,23100,Computer Software - Maintenance,450850,13/10/2022,5100512700,3700,Civica Uk Ltd,100585
WARRINGTON BOROUGH COUNCIL,http://opendatacommunities.org/id/unitary-authority/warrington,ENO,Highways LTP,82004,Consult.& Prof. Serv,440000,13/10/2022,5100512702,1740,Mott Macdonald Ltd,104950
WARRINGTON BOROUGH COUNCIL,http://opendatacommunities.org/id/unitary-authority/warrington,ET0,Transport Holding Account,41311,Veh Maint. Materials,300000,13/10/2022,5100512716,568.51,Johnston Sweepers Ltd,101251
WARRINGTON BOROUGH COUNCIL,http://opendatacommunities.org/id/unitary-authority/warrington,ET0,New Bus Depot Dallam Lane,40048,Consult.& Prof. Serv,440000,16/11/2022,5100512731,2325,Janus Building Design Ltd,118058
WARRINGTON BOROUGH COUNCIL,http://opendatacommunities.org/id/unitary-authority/warrington,ET0,New Bus Depot Dallam Lane,40048,Consult.& Prof. Serv,440000,13/10/2022,5100512733,7250,Janus Building Design Ltd,118058
WARRINGTON BOROUGH COUNCIL,http://opendatacommunities.org/id/unitary-authority/warrington,ET0,New Bus Depot Dallam Lane,40048,Consult.& Prof. Serv,440000,13/10/2022,5100512733,500,Janus Building Design Ltd,118058
WARRINGTON BOROUGH COUNCIL,http://opendatacommunities.org/id/unitary-authority/warrington,ET0,New Bus Depot Dallam Lane,40048,Consult.& Prof. Serv,440000,16/11/2022,5100512734,7750,Janus Building Design Ltd,118058
WARRINGTON BOROUGH COUNCIL,http://opendatacommunities.org/id/unitary-authority/warrington,FWB,BCF - Telecare/Sensory,54560,Health Awareness,441950,13/10/2022,5100512777,574.1,Rhino Smart Systems Ltd,118610
WARRINGTON BOROUGH COUNCIL,http://opendatacommunities.org/id/unitary-authority/warrington,FWB,BCF - Telecare/Sensory,54560,Health Awareness,441950,13/10/2022,5100512779,728.98,Rhino Smart Systems Ltd,118610
WARRINGTON BOROUGH COUNCIL,http://opendatacommunities.org/id/unitary-authority/warrington,ENO,Priority Infrastructure,82009,Consult.& Prof. Serv,440000,13/10/2022,5100512788,657.5,Sanderson Weatherall LLP,117413
WARRINGTON BOROUGH COUNCIL,http://opendatacommunities.org/id/unitary-authority/warrington,RSC,Printing & Graphics,23040,External Printing,430100,13/10/2022,5100512812,595,Browns CTP Limited,116875
WARRINGTON BOROUGH COUNCIL,http://opendatacommunities.org/id/unitary-authority/warrington,ET0,Transport Planning Policy & Strategy,44530,Public Rights Of Way,531900,13/10/2022,5100512825,1280,Ecological Landscape Management Ltd,109936
WARRINGTON BOROUGH COUNCIL,http://opendatacommunities.org/id/unitary-authority/warrington,DG0,Development Control,43430,Consult.& Prof. Serv,440000,13/10/2022,5100512828,780,G2V Recruitment Group,117396
WARRINGTON BOROUGH COUNCIL,http://opendatacommunities.org/id/unitary-authority/warrington,ET0,Social Housing,40085,Consult.& Prof. Serv,440000,13/10/2022,5100512841,1300,Goodman Masson Limited,118861
WARRINGTON BOROUGH COUNCIL,http://opendatacommunities.org/id/unitary-authority/warrington,ET0,Taxi and Private Hire Licensing,44450,Consult.& Prof. Serv,440000,13/10/2022,5100512848,685.17,Oyster Partnership,116595
WARRINGTON BOROUGH COUNCIL,http://opendatacommunities.org/id/unitary-authority/warrington,DG0,Local Plan,43445,Consult.& Prof. Serv,440000,01/11/2022,5100512852,6218.75,Programme Officer Solutions Limited,118782
WARRINGTON BOROUGH COUNCIL,http://opendatacommunities.org/id/unitary-authority/warrington,ENO,Highways LTP,82004,Consult.& Prof. Serv,440000,14/10/2022,5100512878,9052,Bikeright,101692
WARRINGTON BOROUGH COUNCIL,http://opendatacommunities.org/id/unitary-authority/warrington,CYP,Childrens & Young People,81000,Specific Work,200200,14/10/2022,5100512911,49061.65,Allied Roofing & Construction Ltd,118878
WARRINGTON BOROUGH COUNCIL,http://opendatacommunities.org/id/unitary-authority/warrington,RSC,Printing & Graphics,23040,External Printing,430100,14/10/2022,5100512932,1241,Browns CTP Limited,116875
WARRINGTON BOROUGH COUNCIL,http://opendatacommunities.org/id/unitary-authority/warrington,ENO,Open Spaces,82006,Equipment Purchase & Contract,400000,14/10/2022,5100512939,6075,David Webster & Sons Ltd,102202
WARRINGTON BOROUGH COUNCIL,http://opendatacommunities.org/id/unitary-authority/warrington,ET0,Schools (Street Scene),41733,Equipment Purchase & Contract,400000,14/10/2022,5100512940,1600,David Webster & Sons Ltd,102202
WARRINGTON BOROUGH COUNCIL,http://opendatacommunities.org/id/unitary-authority/warrington,ET0,Transport Holding Account,41311,Vehicle Hire Charges,320000,16/11/2022,5100512941,3706.18,Dawsongroup Sweepers Ltd,118270
WARRINGTON BOROUGH COUNCIL,http://opendatacommunities.org/id/unitary-authority/warrington,NEO,IT Projects,83003,Computer Hardware - Purchase,450700,14/10/2022,5100512943,956.8,Dell,104659
WARRINGTON BOROUGH COUNCIL,http://opendatacommunities.org/id/unitary-authority/warrington,DG0,Local Plan,43445,Materials,400500,27/10/2022,5100512952,1000,Elior UK Plc,112539
WARRINGTON BOROUGH COUNCIL,http://opendatacommunities.org/id/unitary-authority/warrington,DG0,Local Plan,43445,Materials,400500,27/10/2022,5100512953,9210,Elior UK Plc,112539
WARRINGTON BOROUGH COUNCIL,http://opendatacommunities.org/id/unitary-authority/warrington,FWB,Children with Disabilities,31005,Consult.& Prof. Serv,440000,14/10/2022,5100512959,5764,Greenstaff Communty Services,118764
WARRINGTON BOROUGH COUNCIL,http://opendatacommunities.org/id/unitary-authority/warrington,RSC,One - Off ICT Costs,23200,Consult.& Prof. Serv,440000,14/10/2022,5100512976,6000,Phoenix Software Ltd,105022
WARRINGTON BOROUGH COUNCIL,http://opendatacommunities.org/id/unitary-authority/warrington,RSC,One - Off ICT Costs,23200,Consult.& Prof. Serv,440000,14/10/2022,5100512976,650,Phoenix Software Ltd,105022
WARRINGTON BOROUGH COUNCIL,http://opendatacommunities.org/id/unitary-authority/warrington,ET0,Transport Holding Account,41311,Diesel,300100,14/10/2022,5100512993,4246.8,Standard Fuel Oils Ltd,117478
WARRINGTON BOROUGH COUNCIL,http://opendatacommunities.org/id/unitary-authority/warrington,ET0,Land Drainage,44120,Annual Maintenance,442100,31/10/2022,5100512997,720,Swarco Traffic Ltd,105574
WARRINGTON BOROUGH COUNCIL,http://opendatacommunities.org/id/unitary-authority/warrington,ET0,Park Development Sites,41423,Materials,400500,17/10/2022,5100513221,984.75,M C & M A Stewart Haulage Ltd,105159
WARRINGTON BOROUGH COUNCIL,http://opendatacommunities.org/id/unitary-authority/warrington,FWB,Care Call,54550,Equipment Purchase & Contract,400000,17/10/2022,5100513249,1850,Solon Security Ltd,101203
WARRINGTON BOROUGH COUNCIL,http://opendatacommunities.org/id/unitary-authority/warrington,ET0,Private Sector Hsg.,43660,Agency Supply - GF,180000,17/10/2022,5100513252,546,G2V Recruitment Group,117396
WARRINGTON BOROUGH COUNCIL,http://opendatacommunities.org/id/unitary-authority/warrington,ET0,Private Sector Hsg.,43660,Agency Supply - GF,180000,17/10/2022,5100513253,1135.31,G2V Recruitment Group,117396
WARRINGTON BOROUGH COUNCIL,http://opendatacommunities.org/id/unitary-authority/warrington,ET0,Private Sector Hsg.,43660,Equipment Purchase & Contract,400000,17/10/2022,5100513264,1800,Complete Home Energy Systems,111861
WARRINGTON BOROUGH COUNCIL,http://opendatacommunities.org/id/unitary-authority/warrington,FWB,Director Adult Social Care,54000,Consult.& Prof. Serv,440000,01/11/2022,5100513299,4983.33,Trueman Change Management Limited,118971
WARRINGTON BOROUGH COUNCIL,http://opendatacommunities.org/id/unitary-authority/warrington,ET0,Transport Holding Account,41311,Veh Maint. Materials,300000,07/11/2022,5100513311,4838.53,Turner Groundscare,105201
WARRINGTON BOROUGH COUNCIL,http://opendatacommunities.org/id/unitary-authority/warrington,ET0,Private Sector Hsg.,43660,Equipment Purchase & Contract,400000,17/10/2022,5100513314,2124,Warrington Housing Current Acc,101208
WARRINGTON BOROUGH COUNCIL,http://opendatacommunities.org/id/unitary-authority/warrington,PIO,People & Improvement Other,85002,Lifts from Stock,400850,18/10/2022,5100513317,2933.5,AMW Lift & Mobility Services Ltd,112766
WARRINGTON BOROUGH COUNCIL,http://opendatacommunities.org/id/unitary-authority/warrington,HOL,Insurance Fund,91100,Insurance Premium,443350,18/10/2022,5100513318,28739.47,Aon Ltd,102117
WARRINGTON BOROUGH COUNCIL,http://opendatacommunities.org/id/unitary-authority/warrington,PIO,People & Improvement Other,85002,Lifts from Stock,400850,18/10/2022,5100513352,918.5,AMW Lift & Mobility Services Ltd,112766
WARRINGTON BOROUGH COUNCIL,http://opendatacommunities.org/id/unitary-authority/warrington,PIO,People & Improvement Other,85002,Lifts from Stock,400850,18/10/2022,5100513353,2408.5,AMW Lift & Mobility Services Ltd,112766
WARRINGTON BOROUGH COUNCIL,http://opendatacommunities.org/id/unitary-authority/warrington,ET0,Walton Estate,41430,Consult.& Prof. Serv,440000,18/10/2022,5100513363,1200,Carringtons Catering Ltd,116708
WARRINGTON BOROUGH COUNCIL,http://opendatacommunities.org/id/unitary-authority/warrington,ET0,Walton Estate,41430,Materials,400500,18/10/2022,5100513366,1960,Every Picture Tells a Story,118983
WARRINGTON BOROUGH COUNCIL,http://opendatacommunities.org/id/unitary-authority/warrington,ET0,Walton Hall Catering,41433,Provisions-Purchase,410000,19/10/2022,5100513408,623,Carringtons Catering Ltd,116708
WARRINGTON BOROUGH COUNCIL,http://opendatacommunities.org/id/unitary-authority/warrington,ET0,Walton Estate,41430,Consult.& Prof. Serv,440000,19/10/2022,5100513450,1500,Carringtons Catering Ltd,116708
WARRINGTON BOROUGH COUNCIL,http://opendatacommunities.org/id/unitary-authority/warrington,ET0,Walton Estate,41430,Consult.& Prof. Serv,440000,19/10/2022,5100513451,1950,Carringtons Catering Ltd,116708
WARRINGTON BOROUGH COUNCIL,http://opendatacommunities.org/id/unitary-authority/warrington,RSC,ICT Centralised Budget,23100,Computer Software - Maintenance,450850,19/10/2022,5100513452,4800,Computer Aided Development Corporat,115129
WARRINGTON BOROUGH COUNCIL,http://opendatacommunities.org/id/unitary-authority/warrington,DG0,Management & Admin,53130,"Campaigns,  Projects and Events",491950,19/10/2022,5100513456,10000,Culture Warrington,100957
WARRINGTON BOROUGH COUNCIL,http://opendatacommunities.org/id/unitary-authority/warrington,FWB,Free Hol act. and healthy food for CIN,31501,"Campaigns,  Projects and Events",491950,19/10/2022,5100513457,12000,Active Sports Group,118857
WARRINGTON BOROUGH COUNCIL,http://opendatacommunities.org/id/unitary-authority/warrington,NEO,IT Projects,83003,Computer Hardware - Purchase,450700,19/10/2022,5100513460,4415.4,Dell,104659
WARRINGTON BOROUGH COUNCIL,http://opendatacommunities.org/id/unitary-authority/warrington,PIO,People & Improvement Other,85002,Lifts from Stock,400850,19/10/2022,5100513462,4320,AMW Lift & Mobility Services Ltd,112766
WARRINGTON BOROUGH COUNCIL,http://opendatacommunities.org/id/unitary-authority/warrington,COR,Causeway Park Regen Site,46100,Maintenance Work - Sub Contractors,301150,19/10/2022,5100513469,3850,Excavation & Contracting UK Ltd,109146
WARRINGTON BOROUGH COUNCIL,http://opendatacommunities.org/id/unitary-authority/warrington,ENO,Highways Other,82005,Consult.& Prof. Serv,440000,01/11/2022,5100513477,1524.5,TLT Solicitors,115669
WARRINGTON BOROUGH COUNCIL,http://opendatacommunities.org/id/unitary-authority/warrington,ENO,Priority Infrastructure,82009,Consult.& Prof. Serv,440000,11/11/2022,5100513481,1059.5,TLT Solicitors,115669
WARRINGTON BOROUGH COUNCIL,http://opendatacommunities.org/id/unitary-authority/warrington,RSC,ICT & Business Improvement,23020,Computer Hardware - Purchase,450700,19/10/2022,5100513487,2943.6,Dell,104659
WARRINGTON BOROUGH COUNCIL,http://opendatacommunities.org/id/unitary-authority/warrington,ET0,Walton Estate,41430,Events Costs,490000,19/10/2022,5100513502,6757.8,Heartbreak,101743
WARRINGTON BOROUGH COUNCIL,http://opendatacommunities.org/id/unitary-authority/warrington,ET0,Public Health Licensing,41550,Consult.& Prof. Serv,440000,31/10/2022,5100513581,1520,Buckingham Futures,118389
WARRINGTON BOROUGH COUNCIL,http://opendatacommunities.org/id/unitary-authority/warrington,RSC,Recruitment & Advertising,52123,Subscriptions,470000,02/11/2022,5100513586,814.5,Cantium Business Solutions Ltd,462309
WARRINGTON BOROUGH COUNCIL,http://opendatacommunities.org/id/unitary-authority/warrington,PIO,People & Improvement Other,85002,Lifts from Stock,400850,20/10/2022,5100513587,2470.5,AMW Lift & Mobility Services Ltd,112766
WARRINGTON BOROUGH COUNCIL,http://opendatacommunities.org/id/unitary-authority/warrington,PIO,People & Improvement Other,85002,Lifts from Stock,400850,20/10/2022,5100513588,5620,AMW Lift & Mobility Services Ltd,112766
WARRINGTON BOROUGH COUNCIL,http://opendatacommunities.org/id/unitary-authority/warrington,PIO,People & Improvement Other,85002,Lifts from Stock,400850,20/10/2022,5100513589,2408.5,AMW Lift & Mobility Services Ltd,112766
WARRINGTON BOROUGH COUNCIL,http://opendatacommunities.org/id/unitary-authority/warrington,PIO,People & Improvement Other,85002,Lifts from Stock,400850,20/10/2022,5100513590,2528.5,AMW Lift & Mobility Services Ltd,112766
WARRINGTON BOROUGH COUNCIL,http://opendatacommunities.org/id/unitary-authority/warrington,ET0,Walton Hall Catering,41433,Provisions-Purchase,410000,20/10/2022,5100513591,1871.25,Carringtons Catering Ltd,116708
WARRINGTON BOROUGH COUNCIL,http://opendatacommunities.org/id/unitary-authority/warrington,PIO,People & Improvement Other,85002,Lifts from Stock,400850,20/10/2022,5100513592,3128.5,AMW Lift & Mobility Services Ltd,112766
WARRINGTON BOROUGH COUNCIL,http://opendatacommunities.org/id/unitary-authority/warrington,RSC,Civic,11440,"Campaigns,  Projects and Events",491950,20/10/2022,5100513596,2903.85,Compact Security Services Limited,118897
WARRINGTON BOROUGH COUNCIL,http://opendatacommunities.org/id/unitary-authority/warrington,RSC,Civic,11440,"Campaigns,  Projects and Events",491950,20/10/2022,5100513597,4755.7,Compact Security Services Limited,118897
WARRINGTON BOROUGH COUNCIL,http://opendatacommunities.org/id/unitary-authority/warrington,ET0,Finance Office Services,42110,Equipment Purchase & Contract,400000,20/10/2022,5100513606,4315,Jrs Fabrications Ltd,105378
WARRINGTON BOROUGH COUNCIL,http://opendatacommunities.org/id/unitary-authority/warrington,ENO,Highways LTP,82004,Stores Purchases,401300,20/10/2022,5100513614,29071.48,Altitude Services Ltd,118550
WARRINGTON BOROUGH COUNCIL,http://opendatacommunities.org/id/unitary-authority/warrington,ET0,Private Development,44242,Lighting col works order Rep,531450,20/10/2022,5100513614,722.75,Altitude Services Ltd,118550
WARRINGTON BOROUGH COUNCIL,http://opendatacommunities.org/id/unitary-authority/warrington,COR,Concessionary Travel,60000,Travelling Allowance,330000,20/10/2022,5100513616,1704,ATOC Ltd,112615
WARRINGTON BOROUGH COUNCIL,http://opendatacommunities.org/id/unitary-authority/warrington,RSC,Printing & Graphics,23040,External Printing,430100,20/10/2022,5100513631,515,Browns CTP Limited,116875
WARRINGTON BOROUGH COUNCIL,http://opendatacommunities.org/id/unitary-authority/warrington,ET0,Walton Estate,41430,Consult.& Prof. Serv,440000,20/10/2022,5100513636,1500,Carringtons Catering Ltd,116708
WARRINGTON BOROUGH COUNCIL,http://opendatacommunities.org/id/unitary-authority/warrington,ET0,Walton Hall Catering,41433,Provisions-Purchase,410000,20/10/2022,5100513637,2223.95,Carringtons Catering Ltd,116708
WARRINGTON BOROUGH COUNCIL,http://opendatacommunities.org/id/unitary-authority/warrington,ET0,Walton Hall Catering,41433,Provisions-Purchase,410000,20/10/2022,5100513639,1476.04,Carringtons Catering Ltd,116708
WARRINGTON BOROUGH COUNCIL,http://opendatacommunities.org/id/unitary-authority/warrington,ENP,Environment & Regeneration,82000,Materials,400500,14/10/2022,5100513642,21909.2,Charles Endirect Ltd,102762
WARRINGTON BOROUGH COUNCIL,http://opendatacommunities.org/id/unitary-authority/warrington,ET0,Street Lighting Contractor,44240,Materials,400500,20/10/2022,5100513643,2030,Charlestown Limited,116828
WARRINGTON BOROUGH COUNCIL,http://opendatacommunities.org/id/unitary-authority/warrington,FWB,BCF - Padgate House,54760,Agency Supply - GF,180000,20/10/2022,5100513645,1019.77,Abicare Health Solutions Ltd,118769
WARRINGTON BOROUGH COUNCIL,http://opendatacommunities.org/id/unitary-authority/warrington,FWB,BCF - Padgate House,54760,Agency Supply - GF,180000,20/10/2022,5100513646,1075.73,Abicare Health Solutions Ltd,118769
WARRINGTON BOROUGH COUNCIL,http://opendatacommunities.org/id/unitary-authority/warrington,FWB,BCF - Telecare/Sensory,54560,Health Awareness,441950,20/10/2022,5100513647,1100,Cair (UK) Ltd,117944
WARRINGTON BOROUGH COUNCIL,http://opendatacommunities.org/id/unitary-authority/warrington,ET0,Or Winter Maint,44280,Precautionary Salting,531750,15/11/2022,5100513649,4906.37,Salt Union Ltd,105104
WARRINGTON BOROUGH COUNCIL,http://opendatacommunities.org/id/unitary-authority/warrington,ET0,Transport Planning Policy & Strategy,44530,Public Rights Of Way,531900,20/10/2022,5100513655,4061.2,Ecological Landscape Management Ltd,109936
WARRINGTON BOROUGH COUNCIL,http://opendatacommunities.org/id/unitary-authority/warrington,FWB,Collaborative Training Group,33301,Training,190150,20/10/2022,5100513656,8400,Gangsline Ltd,118975
WARRINGTON BOROUGH COUNCIL,http://opendatacommunities.org/id/unitary-authority/warrington,ET0,Taxi and Private Hire Licensing,44450,Materials,400500,20/10/2022,5100513661,560,Newauto Ltd t/a Mogo UK,101509
WARRINGTON BOROUGH COUNCIL,http://opendatacommunities.org/id/unitary-authority/warrington,ET0,Taxi and Private Hire Licensing,44450,Materials,400500,20/10/2022,5100513661,560,Newauto Ltd t/a Mogo UK,101509
WARRINGTON BOROUGH COUNCIL,http://opendatacommunities.org/id/unitary-authority/warrington,ET0,Taxi and Private Hire Licensing,44450,Consult.& Prof. Serv,440000,21/10/2022,5100513664,950,Idox Software Ltd,102179
WARRINGTON BOROUGH COUNCIL,http://opendatacommunities.org/id/unitary-authority/warrington,FWB,BCF - Telecare/Sensory,54560,Health Awareness,441950,21/10/2022,5100513665,662.66,iTs Designs Ltd t/a Alert IT Care A,116838
WARRINGTON BOROUGH COUNCIL,http://opendatacommunities.org/id/unitary-authority/warrington,FWB,Inclusion,32207,Fees (Including Agents Fees),441450,21/10/2022,5100513702,500,Leggett Consultancy,118590
WARRINGTON BOROUGH COUNCIL,http://opendatacommunities.org/id/unitary-authority/warrington,FWB,Divert / Health Project,33307,"Campaigns,  Projects and Events",491950,21/10/2022,5100513728,5000,Rage Leisure Ltd,118930
WARRINGTON BOROUGH COUNCIL,http://opendatacommunities.org/id/unitary-authority/warrington,FWB,BCF - Telecare/Sensory,54560,Health Awareness,441950,21/10/2022,5100513729,1310,Nottingham Rehab Limited,101513
WARRINGTON BOROUGH COUNCIL,http://opendatacommunities.org/id/unitary-authority/warrington,DG0,Ext. Funded Projects,53137,"Campaigns,  Projects and Events",491950,21/10/2022,5100513739,550,Culture Warrington,100957
WARRINGTON BOROUGH COUNCIL,http://opendatacommunities.org/id/unitary-authority/warrington,DG0,Ext. Funded Projects,53137,"Campaigns,  Projects and Events",491950,21/10/2022,5100513739,1500,Culture Warrington,100957
WARRINGTON BOROUGH COUNCIL,http://opendatacommunities.org/id/unitary-authority/warrington,CYP,Childrens & Young People,81000,Consult.& Prof. Serv,440000,21/10/2022,5100513742,1950,Structural Surveys Ltd,118336
WARRINGTON BOROUGH COUNCIL,http://opendatacommunities.org/id/unitary-authority/warrington,FWB,Virtual School,31112,Training,190150,21/10/2022,5100513746,500,National Assoc of Virtual School He,115856
WARRINGTON BOROUGH COUNCIL,http://opendatacommunities.org/id/unitary-authority/warrington,ET0,Transport Holding Account,41311,Diesel,300100,21/10/2022,5100513749,4246.8,Standard Fuel Oils Ltd,117478
WARRINGTON BOROUGH COUNCIL,http://opendatacommunities.org/id/unitary-authority/warrington,ET0,Transport Holding Account,41311,Vehicle Hire Charges,320000,15/11/2022,5100513751,1738,Riverside Truck Rental Ltd,101057
WARRINGTON BOROUGH COUNCIL,http://opendatacommunities.org/id/unitary-authority/warrington,ET0,Transport Holding Account,41311,Petrol,300050,21/10/2022,5100513752,2511,Standard Fuel Oils Ltd,117478
WARRINGTON BOROUGH COUNCIL,http://opendatacommunities.org/id/unitary-authority/warrington,ET0,Transport Holding Account,41311,Diesel,300100,21/10/2022,5100513753,2128.57,Standard Fuel Oils Ltd,117478
WARRINGTON BOROUGH COUNCIL,http://opendatacommunities.org/id/unitary-authority/warrington,ET0,Transport Holding Account,41311,Diesel,300100,11/11/2022,5100513754,2695.81,Standard Fuel Oils Ltd,117478
WARRINGTON BOROUGH COUNCIL,http://opendatacommunities.org/id/unitary-authority/warrington,ET0,Transport Holding Account,41311,Petrol,300050,21/10/2022,5100513755,2511,Standard Fuel Oils Ltd,117478
WARRINGTON BOROUGH COUNCIL,http://opendatacommunities.org/id/unitary-authority/warrington,PIO,People & Improvement Other,85002,Lifts from Stock,400850,21/10/2022,5100513761,3033.5,AMW Lift & Mobility Services Ltd,112766
WARRINGTON BOROUGH COUNCIL,http://opendatacommunities.org/id/unitary-authority/warrington,PIO,People & Improvement Other,85002,Lifts from Stock,400850,21/10/2022,5100513763,2408.5,AMW Lift & Mobility Services Ltd,112766
WARRINGTON BOROUGH COUNCIL,http://opendatacommunities.org/id/unitary-authority/warrington,PIO,People & Improvement Other,85002,Lifts from Stock,400850,21/10/2022,5100513764,3374.4,AMW Lift & Mobility Services Ltd,112766
WARRINGTON BOROUGH COUNCIL,http://opendatacommunities.org/id/unitary-authority/warrington,PIO,People & Improvement Other,85002,Lifts from Stock,400850,21/10/2022,5100513765,2512.5,AMW Lift & Mobility Services Ltd,112766
WARRINGTON BOROUGH COUNCIL,http://opendatacommunities.org/id/unitary-authority/warrington,PIO,People & Improvement Other,85002,Lifts from Stock,400850,21/10/2022,5100513766,2528.5,AMW Lift & Mobility Services Ltd,112766
WARRINGTON BOROUGH COUNCIL,http://opendatacommunities.org/id/unitary-authority/warrington,RSC,Financial Protection Team,56130,Consult.& Prof. Serv,440000,15/11/2022,5100513805,1665,Woolton Physiotherapy Clinic,117516
WARRINGTON BOROUGH COUNCIL,http://opendatacommunities.org/id/unitary-authority/warrington,NEP,Neighbourhood & Community Services,83000,Annual Maintenance,442100,22/10/2022,5100513806,2755,Wellings Decorators Ltd,118859
WARRINGTON BOROUGH COUNCIL,http://opendatacommunities.org/id/unitary-authority/warrington,FWB,BCF - Equipment Store,54930,Equipment Purchase & Contract,400000,22/10/2022,5100513807,595,Wellell UK Ltd,118636
WARRINGTON BOROUGH COUNCIL,http://opendatacommunities.org/id/unitary-authority/warrington,NEP,Neighbourhood & Community Services,83000,Materials,400500,22/10/2022,5100513815,1000,Wellings Decorators Ltd,118859
WARRINGTON BOROUGH COUNCIL,http://opendatacommunities.org/id/unitary-authority/warrington,PIO,People & Improvement Other,85002,Equipment Purchase & Contract,400000,22/10/2022,5100513816,1565.61,Warrington Housing Current Acc,101208
WARRINGTON BOROUGH COUNCIL,http://opendatacommunities.org/id/unitary-authority/warrington,ENO,Priority Infrastructure,82009,Consult.& Prof. Serv,440000,15/11/2022,5100513822,3800,Nationwide Data Collection,111814
WARRINGTON BOROUGH COUNCIL,http://opendatacommunities.org/id/unitary-authority/warrington,RSC,IT - Contracts,23600,Computer Software - Maintenance,450850,24/10/2022,5100513829,1505.44,Phoenix Software Ltd,105022
WARRINGTON BOROUGH COUNCIL,http://opendatacommunities.org/id/unitary-authority/warrington,ET0,Private Sector Hsg.,43660,Agency Supply - GF,180000,22/10/2022,5100513831,886.63,G2V Recruitment Group,117396
WARRINGTON BOROUGH COUNCIL,http://opendatacommunities.org/id/unitary-authority/warrington,ET0,Private Sector Hsg.,43660,Agency Supply - GF,180000,22/10/2022,5100513832,591.5,G2V Recruitment Group,117396
WARRINGTON BOROUGH COUNCIL,http://opendatacommunities.org/id/unitary-authority/warrington,ET0,Private Sector Hsg.,43660,Agency Supply - GF,180000,22/10/2022,5100513833,796.25,G2V Recruitment Group,117396
WARRINGTON BOROUGH COUNCIL,http://opendatacommunities.org/id/unitary-authority/warrington,COR,Market Food Court,47200,"Campaigns,  Projects and Events",491950,22/10/2022,5100513842,600,Big Comedy UK,118554
WARRINGTON BOROUGH COUNCIL,http://opendatacommunities.org/id/unitary-authority/warrington,FWB,Collaborative Training Group,33301,Training,190150,22/10/2022,5100513846,500,Unitas,113461
WARRINGTON BOROUGH COUNCIL,http://opendatacommunities.org/id/unitary-authority/warrington,FWB,Collaborative Training Group,33301,Training,190150,22/10/2022,5100513847,500,Unitas,113461
WARRINGTON BOROUGH COUNCIL,http://opendatacommunities.org/id/unitary-authority/warrington,DG0,Development Control,43430,Other Advertising & Publicity,450050,22/10/2022,5100513851,1056.16,PeopleScout Limited,108498
WARRINGTON BOROUGH COUNCIL,http://opendatacommunities.org/id/unitary-authority/warrington,ET0,The Forge Car Park Stockton Heath,44324,Equipment Purchase & Contract,400000,29/11/2022,5100513854,785,PeopleScout Limited,108498
WARRINGTON BOROUGH COUNCIL,http://opendatacommunities.org/id/unitary-authority/warrington,ET0,Surface Car Parks,44322,Equipment Purchase & Contract,400000,29/11/2022,5100513854,906.35,PeopleScout Limited,108498
WARRINGTON BOROUGH COUNCIL,http://opendatacommunities.org/id/unitary-authority/warrington,ET0,Time Square MSCP,44321,Equipment Purchase & Contract,400000,29/11/2022,5100513854,785,PeopleScout Limited,108498
WARRINGTON BOROUGH COUNCIL,http://opendatacommunities.org/id/unitary-authority/warrington,ET0,Transport Holding Account,41311,Diesel,300100,24/10/2022,5100513977,29885.61,Standard Fuel Oils Ltd,117478
WARRINGTON BOROUGH COUNCIL,http://opendatacommunities.org/id/unitary-authority/warrington,FWB,Staffing - Cluster Central & West,31510,Materials,400500,24/10/2022,5100513982,719.8,Yorkshire Purchasing Organisation,100295
WARRINGTON BOROUGH COUNCIL,http://opendatacommunities.org/id/unitary-authority/warrington,ET0,Sankey Canal Maintenace,44125,Named Drainage Schm,532100,24/10/2022,5100513984,4370.52,Xylem Water Solutions UK LTD,117633
WARRINGTON BOROUGH COUNCIL,http://opendatacommunities.org/id/unitary-authority/warrington,DG0,Caretakers,41111,Advertisings-Jobs,190000,24/10/2022,5100513991,847,Redactive Publishing Limited,117357
WARRINGTON BOROUGH COUNCIL,http://opendatacommunities.org/id/unitary-authority/warrington,FWB,BCF - Telecare/Sensory,54560,Health Awareness,441950,24/10/2022,5100514016,1029.36,Rhino Smart Systems Ltd,118610
WARRINGTON BOROUGH COUNCIL,http://opendatacommunities.org/id/unitary-authority/warrington,NEO,IT Projects,83003,Computer Hardware - Purchase,450700,24/10/2022,5100514028,37571.5,Dell,104659
WARRINGTON BOROUGH COUNCIL,http://opendatacommunities.org/id/unitary-authority/warrington,ET0,Transport Holding Account,41311,Maintenance Work - Sub Contractors,301150,15/11/2022,5100514063,908.27,Mend A Hose Hydraulics Ltd,114320
WARRINGTON BOROUGH COUNCIL,http://opendatacommunities.org/id/unitary-authority/warrington,ET0,Waste Recycling,41820,Waste Initiatives,443200,24/10/2022,5100514065,2600,Mgb Plastics Ltd,103465
WARRINGTON BOROUGH COUNCIL,http://opendatacommunities.org/id/unitary-authority/warrington,FWB,DSG - Medical Needs,32002,Eotas Pupil Funding,490350,02/11/2022,5100514068,908.82,Nudge Education Ltd,118957
WARRINGTON BOROUGH COUNCIL,http://opendatacommunities.org/id/unitary-authority/warrington,COR,Investment Property Acquisitions,62095,Consult.& Prof. Serv,440000,24/10/2022,5100514069,5641.8,Lambert Smith Hampton (Client),118435
WARRINGTON BOROUGH COUNCIL,http://opendatacommunities.org/id/unitary-authority/warrington,ET0,Core Operational Business,41730,Materials,400500,24/10/2022,5100514071,1755,Rigby Taylor Ltd,105070
WARRINGTON BOROUGH COUNCIL,http://opendatacommunities.org/id/unitary-authority/warrington,FWB,Children with Disabilities,31005,Fees (Including Agents Fees),441450,24/10/2022,5100514077,2330.26,Paradigm Professional Consultancy,118959
WARRINGTON BOROUGH COUNCIL,http://opendatacommunities.org/id/unitary-authority/warrington,FWB,BCF - Telecare/Sensory,54560,Health Awareness,441950,24/10/2022,5100514082,1249.95,Alcove Ltd,118952
WARRINGTON BOROUGH COUNCIL,http://opendatacommunities.org/id/unitary-authority/warrington,FWB,BCF - Telecare/Sensory,54560,Health Awareness,441950,24/10/2022,5100514082,900,Alcove Ltd,118952
WARRINGTON BOROUGH COUNCIL,http://opendatacommunities.org/id/unitary-authority/warrington,ET0,Private Sector Hsg.,43660,Agency Supply - GF,180000,24/10/2022,5100514083,728,G2V Recruitment Group,117396
WARRINGTON BOROUGH COUNCIL,http://opendatacommunities.org/id/unitary-authority/warrington,FWB,BCF - Telecare/Sensory,54560,Health Awareness,441950,24/10/2022,5100514086,1100,Porters Care Limited,118515
WARRINGTON BOROUGH COUNCIL,http://opendatacommunities.org/id/unitary-authority/warrington,ET0,Woolston Depot,41331,Building Work,200850,11/11/2022,5100514089,1275.15,C & J Leigh,105951
WARRINGTON BOROUGH COUNCIL,http://opendatacommunities.org/id/unitary-authority/warrington,IGO,Property & Estates,86001,Consult.& Prof. Serv,440000,15/11/2022,5100514096,900,Archaeological Research Services,118555
WARRINGTON BOROUGH COUNCIL,http://opendatacommunities.org/id/unitary-authority/warrington,DG0,Ext. Funded Projects,53137,"Campaigns,  Projects and Events",491950,24/10/2022,5100514102,1650,Continental Drifts Ltd,118398
WARRINGTON BOROUGH COUNCIL,http://opendatacommunities.org/id/unitary-authority/warrington,FWB,Inclusion,32207,Fees (Including Agents Fees),441450,15/11/2022,5100514127,1000,TD Psychology Ltd,118558
WARRINGTON BOROUGH COUNCIL,http://opendatacommunities.org/id/unitary-authority/warrington,ET0,Traffic and Safety,44350,Traffic Section,531150,15/11/2022,5100514136,608.51,PeopleScout Limited,108498
WARRINGTON BOROUGH COUNCIL,http://opendatacommunities.org/id/unitary-authority/warrington,ET0,Transport Planning Policy & Strategy,44530,Public Rights Of Way,531900,24/10/2022,5100514152,4004.2,Ecological Landscape Management Ltd,109936
WARRINGTON BOROUGH COUNCIL,http://opendatacommunities.org/id/unitary-authority/warrington,FWB,DSG - Medical Needs,32002,Eotas Pupil Funding,490350,26/10/2022,5100514157,7170.8,TEN (The Education Network),118974
WARRINGTON BOROUGH COUNCIL,http://opendatacommunities.org/id/unitary-authority/warrington,COR,Other Commercial Prop.,43560,Consult.& Prof. Serv,440000,25/10/2022,5100514209,2500,Sanderson Weatherall LLP,117413
WARRINGTON BOROUGH COUNCIL,http://opendatacommunities.org/id/unitary-authority/warrington,DG0,Strategic Partner Projects,53135,"Campaigns,  Projects and Events",491950,25/10/2022,5100514219,2058.64,Community Objectives CIC,118908
WARRINGTON BOROUGH COUNCIL,http://opendatacommunities.org/id/unitary-authority/warrington,FWB,Children with Disabilities,31005,Fees (Including Agents Fees),441450,25/10/2022,5100514221,1889.4,Paradigm Professional Consultancy,118959
WARRINGTON BOROUGH COUNCIL,http://opendatacommunities.org/id/unitary-authority/warrington,FWB,Children with Disabilities,31005,Fees (Including Agents Fees),441450,25/10/2022,5100514222,2330.26,Paradigm Professional Consultancy,118959
WARRINGTON BOROUGH COUNCIL,http://opendatacommunities.org/id/unitary-authority/warrington,FWB,Children with Disabilities,31005,Fees (Including Agents Fees),441450,25/10/2022,5100514223,2204.3,Paradigm Professional Consultancy,118959
WARRINGTON BOROUGH COUNCIL,http://opendatacommunities.org/id/unitary-authority/warrington,FWB,BCF - Equipment Store,54930,Equipment Purchase & Contract,400000,25/10/2022,5100514228,900,Prism Medical UK,108616
WARRINGTON BOROUGH COUNCIL,http://opendatacommunities.org/id/unitary-authority/warrington,FWB,Children with Disabilities,31005,Fees (Including Agents Fees),441450,25/10/2022,5100514229,2330.26,Paradigm Professional Consultancy,118959
WARRINGTON BOROUGH COUNCIL,http://opendatacommunities.org/id/unitary-authority/warrington,FWB,Children with Disabilities,31005,Fees (Including Agents Fees),441450,25/10/2022,5100514231,2330.26,Paradigm Professional Consultancy,118959
WARRINGTON BOROUGH COUNCIL,http://opendatacommunities.org/id/unitary-authority/warrington,FWB,Children with Disabilities,31005,Fees (Including Agents Fees),441450,25/10/2022,5100514232,2330.26,Paradigm Professional Consultancy,118959
WARRINGTON BOROUGH COUNCIL,http://opendatacommunities.org/id/unitary-authority/warrington,FWB,Children with Disabilities,31005,Fees (Including Agents Fees),441450,25/10/2022,5100514233,2330.26,Paradigm Professional Consultancy,118959
WARRINGTON BOROUGH COUNCIL,http://opendatacommunities.org/id/unitary-authority/warrington,FWB,Children with Disabilities,31005,Fees (Including Agents Fees),441450,25/10/2022,5100514234,2330.26,Paradigm Professional Consultancy,118959
WARRINGTON BOROUGH COUNCIL,http://opendatacommunities.org/id/unitary-authority/warrington,ET0,Walton Estate,41430,Consult.& Prof. Serv,440000,25/10/2022,5100514240,1500,Carringtons Catering Ltd,116708
WARRINGTON BOROUGH COUNCIL,http://opendatacommunities.org/id/unitary-authority/warrington,ET0,Social Housing,40085,Consult.& Prof. Serv,440000,25/10/2022,5100514287,1300,Goodman Masson Limited,118861
WARRINGTON BOROUGH COUNCIL,http://opendatacommunities.org/id/unitary-authority/warrington,DG0,Sports Development,51200,Consult.& Prof. Serv,440000,25/10/2022,5100514297,18532.5,Knight Kavanagh and Page Ltd,117283
WARRINGTON BOROUGH COUNCIL,http://opendatacommunities.org/id/unitary-authority/warrington,ENO,Highways Other,82005,Consult.& Prof. Serv,440000,15/11/2022,5100514299,15345,Land Survey Solutions Ltd,118924
WARRINGTON BOROUGH COUNCIL,http://opendatacommunities.org/id/unitary-authority/warrington,COR,Corporate Planning Items,61020,Consult.& Prof. Serv,440000,15/11/2022,5100514300,7765.73,Liberata UK Ltd,112182
WARRINGTON BOROUGH COUNCIL,http://opendatacommunities.org/id/unitary-authority/warrington,ET0,Transport Holding Account,41311,Vehicle Hire Charges,320000,02/11/2022,5100514307,572.32,Northgate Vehicle Hire (North West),104871
WARRINGTON BOROUGH COUNCIL,http://opendatacommunities.org/id/unitary-authority/warrington,FWB,BCF - Equipment Store,54930,Equipment Purchase & Contract,400000,25/10/2022,5100514308,747.9,Nottingham Rehab Limited,101513
WARRINGTON BOROUGH COUNCIL,http://opendatacommunities.org/id/unitary-authority/warrington,FWB,BCF - Equipment Store,54930,Equipment Purchase & Contract,400000,25/10/2022,5100514308,1561,Nottingham Rehab Limited,101513
WARRINGTON BOROUGH COUNCIL,http://opendatacommunities.org/id/unitary-authority/warrington,ET0,Strategic Transportation,44510,Consult.& Prof. Serv,440000,15/11/2022,5100514355,13050,Wsp Uk Ltd,103007
WARRINGTON BOROUGH COUNCIL,http://opendatacommunities.org/id/unitary-authority/warrington,COR,Time Square  Development,44000,Consult.& Prof. Serv,440000,26/10/2022,5100514375,2000,This Solid Ground Limited,118996
WARRINGTON BOROUGH COUNCIL,http://opendatacommunities.org/id/unitary-authority/warrington,COR,Time Square  Development,44000,Consult.& Prof. Serv,440000,26/10/2022,5100514375,2975,This Solid Ground Limited,118996
WARRINGTON BOROUGH COUNCIL,http://opendatacommunities.org/id/unitary-authority/warrington,FWB,DSG - Medical Needs,32002,Eotas Pupil Funding,490350,26/10/2022,5100514381,7328.4,TEN (The Education Network),118974
WARRINGTON BOROUGH COUNCIL,http://opendatacommunities.org/id/unitary-authority/warrington,ENO,Highways Other,82005,Consult.& Prof. Serv,440000,08/11/2022,5100514391,8300,Aecom Limited,101037
WARRINGTON BOROUGH COUNCIL,http://opendatacommunities.org/id/unitary-authority/warrington,ET0,Public Health Licensing,41550,Consult.& Prof. Serv,440000,31/10/2022,5100514394,1480,Buckingham Futures,118389
WARRINGTON BOROUGH COUNCIL,http://opendatacommunities.org/id/unitary-authority/warrington,DG0,Ext. Funded Projects,53137,"Campaigns,  Projects and Events",491950,27/10/2022,5100514437,14000,Warrington BID c/o Groundwork CLM,117335
WARRINGTON BOROUGH COUNCIL,http://opendatacommunities.org/id/unitary-authority/warrington,PIO,People & Improvement Other,85002,Lifts from Stock,400850,27/10/2022,5100514450,1062,AMW Lift & Mobility Services Ltd,112766
WARRINGTON BOROUGH COUNCIL,http://opendatacommunities.org/id/unitary-authority/warrington,FWB,Care Call,54550,Health Awareness,441950,16/11/2022,5100514455,652,Doro Care (UK) Ltd (Careium),115633
WARRINGTON BOROUGH COUNCIL,http://opendatacommunities.org/id/unitary-authority/warrington,DG0,Livewire Trust,53190,Consult.& Prof. Serv,440000,27/10/2022,5100514456,1083.3,Bevan Brittan,102113
WARRINGTON BOROUGH COUNCIL,http://opendatacommunities.org/id/unitary-authority/warrington,ET0,Walton Hall Catering,41433,Provisions-Purchase,410000,27/10/2022,5100514457,1760,Carringtons Catering Ltd,116708
WARRINGTON BOROUGH COUNCIL,http://opendatacommunities.org/id/unitary-authority/warrington,FWB,BCF - Equipment Store,54930,Equipment Purchase & Contract,400000,27/10/2022,5100514458,1005.6,Drive DeVilbiss Healthcare Ltd,101899
WARRINGTON BOROUGH COUNCIL,http://opendatacommunities.org/id/unitary-authority/warrington,ET0,Walton Estate,41430,Consult.& Prof. Serv,440000,27/10/2022,5100514460,1500,Carringtons Catering Ltd,116708
WARRINGTON BOROUGH COUNCIL,http://opendatacommunities.org/id/unitary-authority/warrington,ET0,Taxi and Private Hire Licensing,44450,"Campaigns,  Projects and Events",491950,15/11/2022,5100514463,8389.5,CTS Traffic & Transportation Ltd,112754
WARRINGTON BOROUGH COUNCIL,http://opendatacommunities.org/id/unitary-authority/warrington,DG0,West Annexe,45161,Maintenance of Plant & Machinery,250050,27/10/2022,5100514467,816,Generator Power Ltd,117550
WARRINGTON BOROUGH COUNCIL,http://opendatacommunities.org/id/unitary-authority/warrington,NEO,IT Projects,83003,Computer Hardware - Purchase,450700,27/10/2022,5100514468,7126.48,Dell,104659
WARRINGTON BOROUGH COUNCIL,http://opendatacommunities.org/id/unitary-authority/warrington,FWB,Children with Disabilities,31005,Consult.& Prof. Serv,440000,27/10/2022,5100514469,24444,Greenstaff Communty Services,118764
WARRINGTON BOROUGH COUNCIL,http://opendatacommunities.org/id/unitary-authority/warrington,ET0,Walton Estate,41430,Materials,400500,14/11/2022,5100514473,1482,Lubbe & Sons (Bulbs) Ltd,101152
WARRINGTON BOROUGH COUNCIL,http://opendatacommunities.org/id/unitary-authority/warrington,ET0,Transport Planning Policy & Strategy,44530,Public Rights Of Way,531900,27/10/2022,5100514475,3330.08,McEwan Contractors Ltd,103366
WARRINGTON BOROUGH COUNCIL,http://opendatacommunities.org/id/unitary-authority/warrington,ET0,Transport Planning Policy & Strategy,44530,Public Rights Of Way,531900,27/10/2022,5100514476,3336.4,McEwan Contractors Ltd,103366
WARRINGTON BOROUGH COUNCIL,http://opendatacommunities.org/id/unitary-authority/warrington,FWB,BCF - Equipment Store,54930,Equipment Purchase & Contract,400000,27/10/2022,5100514493,920.9,Nottingham Rehab Limited,101513
WARRINGTON BOROUGH COUNCIL,http://opendatacommunities.org/id/unitary-authority/warrington,RSC,ICT Centralised Budget,23100,Computer Software - Maintenance,450850,27/10/2022,5100514497,9820,Omnibus Systems,104992
WARRINGTON BOROUGH COUNCIL,http://opendatacommunities.org/id/unitary-authority/warrington,ET0,Traffic and Safety,44350,Traffic Section,531150,29/11/2022,5100514517,681.72,PeopleScout Limited,108498
WARRINGTON BOROUGH COUNCIL,http://opendatacommunities.org/id/unitary-authority/warrington,ET0,Walton Estate,41430,Resaleables,400600,27/10/2022,5100514524,849,J & J Learmonth,104874
WARRINGTON BOROUGH COUNCIL,http://opendatacommunities.org/id/unitary-authority/warrington,COR,Industrial Estates,43570,Maintenance Work - Sub Contractors,301150,27/10/2022,5100514531,3134,Kirk Craig Ltd,117660
WARRINGTON BOROUGH COUNCIL,http://opendatacommunities.org/id/unitary-authority/warrington,COR,Industrial Estates,43570,Maintenance Work - Sub Contractors,301150,27/10/2022,5100514531,800,Kirk Craig Ltd,117660
WARRINGTON BOROUGH COUNCIL,http://opendatacommunities.org/id/unitary-authority/warrington,FWB,Children with Disabilities,31005,Fees (Including Agents Fees),441450,27/10/2022,5100514534,2330.26,Paradigm Professional Consultancy,118959
WARRINGTON BOROUGH COUNCIL,http://opendatacommunities.org/id/unitary-authority/warrington,RSC,ICT Centralised Budget,23100,Computer Software - Maintenance,450850,27/10/2022,5100514546,1521.79,Trapeze Group (Uk) Ltd,105426
WARRINGTON BOROUGH COUNCIL,http://opendatacommunities.org/id/unitary-authority/warrington,ET0,Transport Holding Account,41311,Diesel,300100,27/10/2022,5100514547,30728.26,Standard Fuel Oils Ltd,117478
WARRINGTON BOROUGH COUNCIL,http://opendatacommunities.org/id/unitary-authority/warrington,ET0,Transport Holding Account,41311,Petrol,300050,27/10/2022,5100514549,2547.07,Standard Fuel Oils Ltd,117478
WARRINGTON BOROUGH COUNCIL,http://opendatacommunities.org/id/unitary-authority/warrington,PIO,People & Improvement Other,85002,Lifts from Stock,400850,27/10/2022,5100514561,3098.5,AMW Lift & Mobility Services Ltd,112766
WARRINGTON BOROUGH COUNCIL,http://opendatacommunities.org/id/unitary-authority/warrington,ET0,Private Sector Hsg.,43660,Equipment Purchase & Contract,400000,27/10/2022,5100514565,2244,Warrington Housing Current Acc,101208
WARRINGTON BOROUGH COUNCIL,http://opendatacommunities.org/id/unitary-authority/warrington,ET0,Private Sector Hsg.,43660,Equipment Purchase & Contract,400000,27/10/2022,5100514566,2256,Warrington Housing Current Acc,101208
WARRINGTON BOROUGH COUNCIL,http://opendatacommunities.org/id/unitary-authority/warrington,RSC,Housing Benefit,10340,Computer Software - Purchase,450800,27/10/2022,5100514577,5537.83,Capita Business Services Ltd,105516
WARRINGTON BOROUGH COUNCIL,http://opendatacommunities.org/id/unitary-authority/warrington,NEO,IT Projects,83003,Computer Hardware - Purchase,450700,28/10/2022,5100514587,37571.5,Dell,104659
WARRINGTON BOROUGH COUNCIL,http://opendatacommunities.org/id/unitary-authority/warrington,ET0,Vehicle & Plant Acq.,41312,Vehicle & Plant Purchase,301350,28/10/2022,5100514636,873.6,Seddons (Plant & Engineers) Ltd,105114
WARRINGTON BOROUGH COUNCIL,http://opendatacommunities.org/id/unitary-authority/warrington,ET0,Traffic and Safety,44350,Unlit Signs,531200,11/11/2022,5100514639,774.12,Glasdon Uk Ltd,105365
WARRINGTON BOROUGH COUNCIL,http://opendatacommunities.org/id/unitary-authority/warrington,ENO,Highways LTP,82004,Signal Equipment,531650,28/10/2022,5100514640,1147.5,Kings Chambers,101921
WARRINGTON BOROUGH COUNCIL,http://opendatacommunities.org/id/unitary-authority/warrington,ENO,Highways LTP,82004,Signal Equipment,531650,28/10/2022,5100514641,3037.5,Kings Chambers,101921
WARRINGTON BOROUGH COUNCIL,http://opendatacommunities.org/id/unitary-authority/warrington,ET0,Social Housing,40085,Consult.& Prof. Serv,440000,28/10/2022,5100514647,1300,Goodman Masson Limited,118861
WARRINGTON BOROUGH COUNCIL,http://opendatacommunities.org/id/unitary-authority/warrington,FWB,OT/Equip - Childrens,54315,Equipment Purchase & Contract,400000,28/10/2022,5100514650,5415,HKD Solutions Ltd,118584
WARRINGTON BOROUGH COUNCIL,http://opendatacommunities.org/id/unitary-authority/warrington,ET0,Taxi and Private Hire Licensing,44450,Consult.& Prof. Serv,440000,01/11/2022,5100514651,682.73,Oyster Partnership,116595
WARRINGTON BOROUGH COUNCIL,http://opendatacommunities.org/id/unitary-authority/warrington,FWB,Supporting People Contracts,53260,Sheltd/Xtra Care Hsing and Comm Alarms,535050,31/10/2022,5100514816,1442.44,Warrington Housing Current Acc,101208
WARRINGTON BOROUGH COUNCIL,http://opendatacommunities.org/id/unitary-authority/warrington,FWB,Supporting People Contracts,53260,Young People and/or Care Leavers,535150,31/10/2022,5100514817,61832.5,Arena Options,101746
WARRINGTON BOROUGH COUNCIL,http://opendatacommunities.org/id/unitary-authority/warrington,FWB,RSI Grant,55625,Young People and/or Care Leavers,535150,31/10/2022,5100514818,14330.75,Arena Options,101746
WARRINGTON BOROUGH COUNCIL,http://opendatacommunities.org/id/unitary-authority/warrington,FWB,3rd Sector Contracts,53920,Payment of Grants,470050,31/10/2022,5100514819,17797.5,WIRED,109547
WARRINGTON BOROUGH COUNCIL,http://opendatacommunities.org/id/unitary-authority/warrington,FWB,RSI Grant,55625,Young People and/or Care Leavers,535150,31/10/2022,5100514820,19317.33,Forum Birkenhead Housing Associ.,118085
WARRINGTON BOROUGH COUNCIL,http://opendatacommunities.org/id/unitary-authority/warrington,FWB,Supporting People Contracts,53260,Risk of Homelessness and Floating Suppor,535100,31/10/2022,5100514829,10242,Warrington Womens Aid Ltd,440000
WARRINGTON BOROUGH COUNCIL,http://opendatacommunities.org/id/unitary-authority/warrington,FWB,RSI Grant,55625,Risk of Homelessness and Floating Suppor,535100,31/10/2022,5100514830,22276.5,Room at the Inn and The Y Project,440065
WARRINGTON BOROUGH COUNCIL,http://opendatacommunities.org/id/unitary-authority/warrington,FWB,Special Schools Transport,33208,Statemented - Special Unit Pupil Transpo,300750,31/10/2022,5100514837,2160,Arrivals Star,101879
WARRINGTON BOROUGH COUNCIL,http://opendatacommunities.org/id/unitary-authority/warrington,FWB,Special Schools Transport,33208,Statemented - Special Unit Pupil Transpo,300750,31/10/2022,5100514839,1960,Arrivals Star,101879
WARRINGTON BOROUGH COUNCIL,http://opendatacommunities.org/id/unitary-authority/warrington,FWB,DSG - Medical Needs,32002,Eotas Pupil Funding,490350,02/11/2022,5100514847,3873.02,Network Ventures Ltd,110554
WARRINGTON BOROUGH COUNCIL,http://opendatacommunities.org/id/unitary-authority/warrington,ENO,Highways Other,82005,Stationery,430150,02/11/2022,5100514848,30402.9,Black Box Security Alarms System Lt,115032
WARRINGTON BOROUGH COUNCIL,http://opendatacommunities.org/id/unitary-authority/warrington,FWB,BCF - Equipment Store,54930,Equipment Purchase & Contract,400000,02/11/2022,5100514849,635.6,Drive DeVilbiss Healthcare Ltd,101899
WARRINGTON BOROUGH COUNCIL,http://opendatacommunities.org/id/unitary-authority/warrington,FWB,Special Schools Transport,33208,Statemented - Special Unit Pupil Transpo,300750,31/10/2022,5100514850,2430,Direct Taxis,101873
WARRINGTON BOROUGH COUNCIL,http://opendatacommunities.org/id/unitary-authority/warrington,FWB,Special Schools Transport,33208,Statemented - Special Unit Pupil Transpo,300750,31/10/2022,5100514851,803.2,Gary's Airport Transfers,116159
WARRINGTON BOROUGH COUNCIL,http://opendatacommunities.org/id/unitary-authority/warrington,FWB,Home to School Transport,33210,Mainstream Pupil Transport,300800,31/10/2022,5100514852,1362.05,MD Bus & Coach Ltd,116003
WARRINGTON BOROUGH COUNCIL,http://opendatacommunities.org/id/unitary-authority/warrington,FWB,Catalyst Choices,54495,CP ExternalOther Exp,440800,01/11/2022,5100514855,30000,Walton Lea Partnership,102953
WARRINGTON BOROUGH COUNCIL,http://opendatacommunities.org/id/unitary-authority/warrington,DG0,Trust Livewire,45431,Servicing Contracts,200150,01/11/2022,5100514857,999.34,Equans Services Ltd,118813
WARRINGTON BOROUGH COUNCIL,http://opendatacommunities.org/id/unitary-authority/warrington,DG0,Trust Livewire,45431,Servicing Contracts,200150,01/11/2022,5100514858,1570.86,Equans Services Ltd,118813
WARRINGTON BOROUGH COUNCIL,http://opendatacommunities.org/id/unitary-authority/warrington,DG0,Trust Livewire,45431,Servicing Contracts,200150,01/11/2022,5100514862,3899.79,Equans Services Ltd,118813
WARRINGTON BOROUGH COUNCIL,http://opendatacommunities.org/id/unitary-authority/warrington,DG0,Trust Livewire,45431,Servicing Contracts,200150,01/11/2022,5100514868,578.13,Equans Services Ltd,118813
WARRINGTON BOROUGH COUNCIL,http://opendatacommunities.org/id/unitary-authority/warrington,DG0,Trust Livewire,45431,Servicing Contracts,200150,01/11/2022,5100514870,2945.94,Equans Services Ltd,118813
WARRINGTON BOROUGH COUNCIL,http://opendatacommunities.org/id/unitary-authority/warrington,DG0,Trust Cultural,45432,Servicing Contracts,200150,01/11/2022,5100514873,956.93,Equans Services Ltd,118813
WARRINGTON BOROUGH COUNCIL,http://opendatacommunities.org/id/unitary-authority/warrington,DG0,Trust Cultural,45432,Servicing Contracts,200150,01/11/2022,5100514874,1264.86,Equans Services Ltd,118813
WARRINGTON BOROUGH COUNCIL,http://opendatacommunities.org/id/unitary-authority/warrington,DG0,TIME SQ. NEW COUNCIL OFFICES UPRN 28015,45259,Servicing Contracts,200150,01/11/2022,5100514878,10401.58,Equans Services Ltd,118813
WARRINGTON BOROUGH COUNCIL,http://opendatacommunities.org/id/unitary-authority/warrington,DG0,5 Tanning Court,45091,Servicing Contracts,200150,01/11/2022,5100514884,884.49,Equans Services Ltd,118813
WARRINGTON BOROUGH COUNCIL,http://opendatacommunities.org/id/unitary-authority/warrington,DG0,Bank Park New Pavillion & Caf�,45258,Servicing Contracts,200150,01/11/2022,5100514889,572.97,Equans Services Ltd,118813
WARRINGTON BOROUGH COUNCIL,http://opendatacommunities.org/id/unitary-authority/warrington,DG0,Burtonwood Community Centre,45075,Servicing Contracts,200150,01/11/2022,5100514894,546.78,Equans Services Ltd,118813
WARRINGTON BOROUGH COUNCIL,http://opendatacommunities.org/id/unitary-authority/warrington,DG0,Crosfields Rec Ground,45213,Servicing Contracts,200150,01/11/2022,5100514900,558.55,Equans Services Ltd,118813
WARRINGTON BOROUGH COUNCIL,http://opendatacommunities.org/id/unitary-authority/warrington,DG0,East Annexe & Drill Hall,45169,Servicing Contracts,200150,01/11/2022,5100514905,1002.72,Equans Services Ltd,118813
WARRINGTON BOROUGH COUNCIL,http://opendatacommunities.org/id/unitary-authority/warrington,DG0,UPRN 15268 Hatters Row,45232,Servicing Contracts,200150,01/11/2022,5100514908,693.03,Equans Services Ltd,118813
WARRINGTON BOROUGH COUNCIL,http://opendatacommunities.org/id/unitary-authority/warrington,DG0,Orford Community Cafe Hub,45074,Servicing Contracts,200150,01/11/2022,5100514923,741.72,Equans Services Ltd,118813
WARRINGTON BOROUGH COUNCIL,http://opendatacommunities.org/id/unitary-authority/warrington,DG0,Orford Youth Centre - Capesthorne Road,45073,Servicing Contracts,200150,01/11/2022,5100514925,690.94,Equans Services Ltd,118813
WARRINGTON BOROUGH COUNCIL,http://opendatacommunities.org/id/unitary-authority/warrington,DG0,Padgate/Fearnhead Cross Youth Centre,45080,Servicing Contracts,200150,01/11/2022,5100514927,512.66,Equans Services Ltd,118813
WARRINGTON BOROUGH COUNCIL,http://opendatacommunities.org/id/unitary-authority/warrington,DG0,Padgate House,45061,Servicing Contracts,200150,01/11/2022,5100514928,903.02,Equans Services Ltd,118813
WARRINGTON BOROUGH COUNCIL,http://opendatacommunities.org/id/unitary-authority/warrington,DG0,St Werburgh's Social Services Offices,45160,Servicing Contracts,200150,01/11/2022,5100514947,1342.72,Equans Services Ltd,118813
WARRINGTON BOROUGH COUNCIL,http://opendatacommunities.org/id/unitary-authority/warrington,DG0,TIME SQ. NEW RETAIL MARKET UPRN 28016,45260,Servicing Contracts,200150,01/11/2022,5100514949,6613.91,Equans Services Ltd,118813
WARRINGTON BOROUGH COUNCIL,http://opendatacommunities.org/id/unitary-authority/warrington,DG0,Town Hall,45167,Servicing Contracts,200150,01/11/2022,5100514951,705.55,Equans Services Ltd,118813
WARRINGTON BOROUGH COUNCIL,http://opendatacommunities.org/id/unitary-authority/warrington,DG0,Victoria Park Sports Area,45244,Servicing Contracts,200150,01/11/2022,5100514957,521.22,Equans Services Ltd,118813
WARRINGTON BOROUGH COUNCIL,http://opendatacommunities.org/id/unitary-authority/warrington,DG0,Victoria Park Sports Pavillion,45212,Servicing Contracts,200150,01/11/2022,5100514958,1249.07,Equans Services Ltd,118813
WARRINGTON BOROUGH COUNCIL,http://opendatacommunities.org/id/unitary-authority/warrington,DG0,Walton Crematorium,45016,Servicing Contracts,200150,01/11/2022,5100514959,502.1,Equans Services Ltd,118813
WARRINGTON BOROUGH COUNCIL,http://opendatacommunities.org/id/unitary-authority/warrington,DG0,Walton Golf Course (Clubhouse),45114,Servicing Contracts,200150,01/11/2022,5100514960,769.63,Equans Services Ltd,118813
WARRINGTON BOROUGH COUNCIL,http://opendatacommunities.org/id/unitary-authority/warrington,DG0,Walton Hall,45123,Servicing Contracts,200150,01/11/2022,5100514961,1196.29,Equans Services Ltd,118813
WARRINGTON BOROUGH COUNCIL,http://opendatacommunities.org/id/unitary-authority/warrington,DG0,Market Multi Storey Car Park Academy Way,45131,Servicing Contracts,200150,01/11/2022,5100514972,1083.43,Equans Services Ltd,118813
WARRINGTON BOROUGH COUNCIL,http://opendatacommunities.org/id/unitary-authority/warrington,DG0,Westy Community Centre,45069,Servicing Contracts,200150,01/11/2022,5100514975,507.62,Equans Services Ltd,118813
WARRINGTON BOROUGH COUNCIL,http://opendatacommunities.org/id/unitary-authority/warrington,DG0,Whitecross Community Centre,45070,Servicing Contracts,200150,01/11/2022,5100514979,507.46,Equans Services Ltd,118813
WARRINGTON BOROUGH COUNCIL,http://opendatacommunities.org/id/unitary-authority/warrington,DG0,BMP Ext Broomfields Jnr,45462,Servicing Contracts,200150,01/11/2022,5100514986,632.73,Equans Services Ltd,118813
WARRINGTON BOROUGH COUNCIL,http://opendatacommunities.org/id/unitary-authority/warrington,FWB,Green Lane Special School,35200,Servicing Contracts,200150,01/11/2022,5100514994,568.29,Equans Services Ltd,118813
WARRINGTON BOROUGH COUNCIL,http://opendatacommunities.org/id/unitary-authority/warrington,FWB,Orchard Children's Centre,31531,Servicing Contracts,200150,01/11/2022,5100514996,533.25,Equans Services Ltd,118813
WARRINGTON BOROUGH COUNCIL,http://opendatacommunities.org/id/unitary-authority/warrington,DG0,Local Plan,43445,Servicing Contracts,200150,01/11/2022,5100515010,40481.65,Equans Services Ltd,118813
WARRINGTON BOROUGH COUNCIL,http://opendatacommunities.org/id/unitary-authority/warrington,DG0,Local Plan,43445,Servicing Contracts,200150,01/11/2022,5100515011,1250,Equans Services Ltd,118813
WARRINGTON BOROUGH COUNCIL,http://opendatacommunities.org/id/unitary-authority/warrington,DG0,Burtonwood Community Centre,45075,Servicing Contracts,200150,01/11/2022,5100515013,508.75,Equans Services Ltd,118813
WARRINGTON BOROUGH COUNCIL,http://opendatacommunities.org/id/unitary-authority/warrington,FWB,Special Schools Transport,33208,Statemented - Special Unit Pupil Transpo,300750,01/11/2022,5100515091,3200,Warrington Cars,113774
WARRINGTON BOROUGH COUNCIL,http://opendatacommunities.org/id/unitary-authority/warrington,FWB,Homelessness,43650,Emergency Accommodation Allowance,550500,01/11/2022,5100515092,1217.5,The Patten Arms Hotel,115465
WARRINGTON BOROUGH COUNCIL,http://opendatacommunities.org/id/unitary-authority/warrington,FWB,Homelessness,43650,Emergency Accommodation Allowance,550500,01/11/2022,5100515094,1298.33,The Patten Arms Hotel,115465
WARRINGTON BOROUGH COUNCIL,http://opendatacommunities.org/id/unitary-authority/warrington,ET0,Core Operational Business,41730,Materials,400500,01/11/2022,5100515100,3080,Walkers Plant Centre,116774
WARRINGTON BOROUGH COUNCIL,http://opendatacommunities.org/id/unitary-authority/warrington,IGO,Property & Estates,86001,Consult.& Prof. Serv,440000,24/11/2022,5100515102,2500,Wsp Uk Ltd,103007
WARRINGTON BOROUGH COUNCIL,http://opendatacommunities.org/id/unitary-authority/warrington,IGO,Property & Estates,86001,Consult.& Prof. Serv,440000,16/11/2022,5100515103,3600,Wsp Uk Ltd,103007
WARRINGTON BOROUGH COUNCIL,http://opendatacommunities.org/id/unitary-authority/warrington,ET0,Transport Holding Account,41311,Accidental Damage - Sub Contractors,301200,01/11/2022,5100515104,2409.74,Wyke Commercial Services Ltd,115203
WARRINGTON BOROUGH COUNCIL,http://opendatacommunities.org/id/unitary-authority/warrington,FWB,BCF - Equipment Store,54930,Equipment Purchase & Contract,400000,28/10/2022,5100515105,1660,Accora Ltd,113558
WARRINGTON BOROUGH COUNCIL,http://opendatacommunities.org/id/unitary-authority/warrington,ET0,Strategic Transportation,44510,Consult.& Prof. Serv,440000,01/11/2022,5100515106,5829.3,Aecom Limited,101037
WARRINGTON BOROUGH COUNCIL,http://opendatacommunities.org/id/unitary-authority/warrington,FWB,Special Schools Transport,33208,Statemented - Special Unit Pupil Transpo,300750,01/11/2022,5100515108,2755,Direct Taxis,101873
WARRINGTON BOROUGH COUNCIL,http://opendatacommunities.org/id/unitary-authority/warrington,ET0,New Bus Depot Dallam Lane,40048,Consult.& Prof. Serv,440000,01/11/2022,5100515109,969,Spawforths Rolinson Ltd,118108
WARRINGTON BOROUGH COUNCIL,http://opendatacommunities.org/id/unitary-authority/warrington,IGO,Property & Estates,86001,Consult.& Prof. Serv,440000,08/11/2022,5100515110,1351,Spawforths Rolinson Ltd,118108
WARRINGTON BOROUGH COUNCIL,http://opendatacommunities.org/id/unitary-authority/warrington,ET0,New Bus Depot Dallam Lane,40048,Consult.& Prof. Serv,440000,01/11/2022,5100515111,510,Spawforths Rolinson Ltd,118108
WARRINGTON BOROUGH COUNCIL,http://opendatacommunities.org/id/unitary-authority/warrington,ET0,Waste Disposal,41830,Residual Waste Disposal,530500,01/11/2022,5100515112,571987,Viridor Energy Limited,118588
WARRINGTON BOROUGH COUNCIL,http://opendatacommunities.org/id/unitary-authority/warrington,ET0,Taxi and Private Hire Licensing,44450,Consult.& Prof. Serv,440000,01/11/2022,5100515114,647.63,Oyster Partnership,116595
WARRINGTON BOROUGH COUNCIL,http://opendatacommunities.org/id/unitary-authority/warrington,PIO,People & Improvement Other,85002,Minor Adaptations<750,400700,01/11/2022,5100515115,3090,Plumbking,114428
WARRINGTON BOROUGH COUNCIL,http://opendatacommunities.org/id/unitary-authority/warrington,PIO,People & Improvement Other,85002,Lifts from Stock,400850,16/11/2022,5100515123,2668.84,Prism Medical UK,108616
WARRINGTON BOROUGH COUNCIL,http://opendatacommunities.org/id/unitary-authority/warrington,FWB,BCF - Equipment Store,54930,Equipment Purchase & Contract,400000,01/11/2022,5100515125,930.4,Prism Medical UK,108616
WARRINGTON BOROUGH COUNCIL,http://opendatacommunities.org/id/unitary-authority/warrington,FWB,BCF - Equipment Store,54930,Equipment Purchase & Contract,400000,01/11/2022,5100515125,1070,Prism Medical UK,108616
WARRINGTON BOROUGH COUNCIL,http://opendatacommunities.org/id/unitary-authority/warrington,RSC,Civic,11440,"Campaigns,  Projects and Events",491950,01/11/2022,5100515127,500,Royal British Legion Poppy Appeal,101006
WARRINGTON BOROUGH COUNCIL,http://opendatacommunities.org/id/unitary-authority/warrington,FWB,BCF - Equipment Store,54930,Equipment Purchase & Contract,400000,02/11/2022,5100515170,547.5,Drive DeVilbiss Healthcare Ltd,101899
WARRINGTON BOROUGH COUNCIL,http://opendatacommunities.org/id/unitary-authority/warrington,FWB,BCF - Equipment Store,54930,Materials,400500,02/11/2022,5100515171,2809,Newlyn Healthcare Ltd,101429
WARRINGTON BOROUGH COUNCIL,http://opendatacommunities.org/id/unitary-authority/warrington,FWB,BCF - Equipment Store,54930,Equipment Purchase & Contract,400000,02/11/2022,5100515172,4142,Newlyn Healthcare Ltd,101429
WARRINGTON BOROUGH COUNCIL,http://opendatacommunities.org/id/unitary-authority/warrington,ENO,Highways LTP,82004,Technical Surveys,532050,02/11/2022,5100515183,2722.5,General Utilities Services Ltd,101975
WARRINGTON BOROUGH COUNCIL,http://opendatacommunities.org/id/unitary-authority/warrington,ET0,Traffic Management,44310,Advertisings-Jobs,190000,02/11/2022,5100515184,1050,Spacehouse Ltd,112008
WARRINGTON BOROUGH COUNCIL,http://opendatacommunities.org/id/unitary-authority/warrington,ET0,Social Housing,40085,Consult.& Prof. Serv,440000,16/11/2022,5100515192,1300,Goodman Masson Limited,118861
WARRINGTON BOROUGH COUNCIL,http://opendatacommunities.org/id/unitary-authority/warrington,ENO,Highways Other,82005,Consult.& Prof. Serv,440000,15/11/2022,5100515197,4645.93,Aecom Limited,101037
WARRINGTON BOROUGH COUNCIL,http://opendatacommunities.org/id/unitary-authority/warrington,FWB,CIN Team 6,31016,Consult.& Prof. Serv,440000,02/11/2022,5100515198,505,AlphaBiolabs,109403
WARRINGTON BOROUGH COUNCIL,http://opendatacommunities.org/id/unitary-authority/warrington,FWB,CIN Team 5,31015,Consult.& Prof. Serv,440000,02/11/2022,5100515199,665,AlphaBiolabs,109403
WARRINGTON BOROUGH COUNCIL,http://opendatacommunities.org/id/unitary-authority/warrington,FWB,CIN Team 3,31003,Consult.& Prof. Serv,440000,02/11/2022,5100515200,785.9,AlphaBiolabs,109403
WARRINGTON BOROUGH COUNCIL,http://opendatacommunities.org/id/unitary-authority/warrington,FWB,CIN Team 5,31015,Consult.& Prof. Serv,440000,02/11/2022,5100515201,595,AlphaBiolabs,109403
WARRINGTON BOROUGH COUNCIL,http://opendatacommunities.org/id/unitary-authority/warrington,ET0,BUM Public Protection,41561,Legal Costs Incurred,440200,02/11/2022,5100515210,744,Weightmans Office AC,101452
WARRINGTON BOROUGH COUNCIL,http://opendatacommunities.org/id/unitary-authority/warrington,ET0,Facilities Management,41422,Equipment Purchase & Contract,400000,03/11/2022,5100515214,650,David Webster & Sons Ltd,102202
WARRINGTON BOROUGH COUNCIL,http://opendatacommunities.org/id/unitary-authority/warrington,ET0,Facilities Management,41422,Equipment Purchase & Contract,400000,03/11/2022,5100515215,860,David Webster & Sons Ltd,102202
WARRINGTON BOROUGH COUNCIL,http://opendatacommunities.org/id/unitary-authority/warrington,COR,Other Commercial Prop.,43560,Consult.& Prof. Serv,440000,02/11/2022,5100515226,935,Brabners LLP,117064
WARRINGTON BOROUGH COUNCIL,http://opendatacommunities.org/id/unitary-authority/warrington,COR,Other Commercial Prop.,43560,Consult.& Prof. Serv,440000,02/11/2022,5100515227,3043,Brabners LLP,117064
WARRINGTON BOROUGH COUNCIL,http://opendatacommunities.org/id/unitary-authority/warrington,COR,Other Commercial Prop.,43560,Consult.& Prof. Serv,440000,02/11/2022,5100515228,860,Brabners LLP,117064
WARRINGTON BOROUGH COUNCIL,http://opendatacommunities.org/id/unitary-authority/warrington,COR,Other Commercial Prop.,43560,Consult.& Prof. Serv,440000,02/11/2022,5100515230,1267.22,Brabners LLP,117064
WARRINGTON BOROUGH COUNCIL,http://opendatacommunities.org/id/unitary-authority/warrington,COR,Other Commercial Prop.,43560,Consult.& Prof. Serv,440000,02/11/2022,5100515232,3588,Brabners LLP,117064
WARRINGTON BOROUGH COUNCIL,http://opendatacommunities.org/id/unitary-authority/warrington,COR,Other Commercial Prop.,43560,Consult.& Prof. Serv,440000,02/11/2022,5100515235,1152,Brabners LLP,117064
WARRINGTON BOROUGH COUNCIL,http://opendatacommunities.org/id/unitary-authority/warrington,FWB,Contracts - SM Commissioning Team 1,55910,Consult.& Prof. Serv,440000,02/11/2022,5100515236,10500,Bridgewater Community Healthcare,108932
WARRINGTON BOROUGH COUNCIL,http://opendatacommunities.org/id/unitary-authority/warrington,FWB,Effective Practice,33300,Agency Supply - GF,180000,02/11/2022,5100515238,217397.51,Cheshire West And Chester,103357
WARRINGTON BOROUGH COUNCIL,http://opendatacommunities.org/id/unitary-authority/warrington,RSC,Printing & Graphics,23040,External Printing,430100,02/11/2022,5100515240,1469,Browns CTP Limited,116875
WARRINGTON BOROUGH COUNCIL,http://opendatacommunities.org/id/unitary-authority/warrington,ET0,Public Health Licensing,41550,Consult.& Prof. Serv,440000,07/11/2022,5100515241,1220,Buckingham Futures,118389
WARRINGTON BOROUGH COUNCIL,http://opendatacommunities.org/id/unitary-authority/warrington,FWB,DSG Support for SEN,32013,Fees (Including Agents Fees),441450,02/11/2022,5100515246,750,Croft Tutoring,119005
WARRINGTON BOROUGH COUNCIL,http://opendatacommunities.org/id/unitary-authority/warrington,ET0,Land Drainage,44120,Clean Repair Drains,531000,03/11/2022,5100515289,525,General Utilities Services Ltd,101975
WARRINGTON BOROUGH COUNCIL,http://opendatacommunities.org/id/unitary-authority/warrington,IGO,Property & Estates,86001,Consult.& Prof. Serv,440000,08/11/2022,5100515299,510,Spawforths Rolinson Ltd,118108
WARRINGTON BOROUGH COUNCIL,http://opendatacommunities.org/id/unitary-authority/warrington,IGO,Property & Estates,86001,Consult.& Prof. Serv,440000,08/11/2022,5100515300,1003,Spawforths Rolinson Ltd,118108
WARRINGTON BOROUGH COUNCIL,http://opendatacommunities.org/id/unitary-authority/warrington,FWB,DSG Post-16 Special Educational Needs,32309,Fees (Including Agents Fees),441450,03/11/2022,5100515304,24626.83,Oliver House Priory,107946
WARRINGTON BOROUGH COUNCIL,http://opendatacommunities.org/id/unitary-authority/warrington,DG0,Site Management,43530,Security Systems,250000,03/11/2022,5100515307,980,Sentry Security Ltd,103829
WARRINGTON BOROUGH COUNCIL,http://opendatacommunities.org/id/unitary-authority/warrington,COR,Redevelopment Sites,43580,Security Systems,250000,11/11/2022,5100515309,1366,Sentry Security Ltd,103829
WARRINGTON BOROUGH COUNCIL,http://opendatacommunities.org/id/unitary-authority/warrington,COR,Redevelopment Sites,43580,Security Systems,250000,03/11/2022,5100515310,5670,Sentry Security Ltd,103829
WARRINGTON BOROUGH COUNCIL,http://opendatacommunities.org/id/unitary-authority/warrington,DG0,Site Management,43530,Security Systems,250000,03/11/2022,5100515311,525,Sentry Security Ltd,103829
WARRINGTON BOROUGH COUNCIL,http://opendatacommunities.org/id/unitary-authority/warrington,ET0,Transport Holding Account,41311,Vehicle Hire Charges,320000,03/11/2022,5100515312,560,F G Rowland Ltd,102555
WARRINGTON BOROUGH COUNCIL,http://opendatacommunities.org/id/unitary-authority/warrington,ENO,Highways LTP,82004,Environmental Works,531050,15/11/2022,5100515314,1150,Pm Surveys Ltd,100711
WARRINGTON BOROUGH COUNCIL,http://opendatacommunities.org/id/unitary-authority/warrington,ENO,Highways LTP,82004,Technical Surveys,532050,15/11/2022,5100515315,2500,Pm Surveys Ltd,100711
WARRINGTON BOROUGH COUNCIL,http://opendatacommunities.org/id/unitary-authority/warrington,ET0,Transport Planning Policy & Strategy,44530,Public Rights Of Way,531900,03/11/2022,5100515324,580,Ecological Landscape Management Ltd,109936
WARRINGTON BOROUGH COUNCIL,http://opendatacommunities.org/id/unitary-authority/warrington,FWB,BCF - Telecare/Sensory,54560,Health Awareness,441950,15/11/2022,5100515325,1640,Redacted for personal data,114604
WARRINGTON BOROUGH COUNCIL,http://opendatacommunities.org/id/unitary-authority/warrington,ENO,Highways LTP,82004,"Campaigns,  Projects and Events",491950,03/11/2022,5100515326,2735,FourPoint Mapping,108173
WARRINGTON BOROUGH COUNCIL,http://opendatacommunities.org/id/unitary-authority/warrington,COR,Market Food Court,47200,Security Systems,250000,03/11/2022,5100515327,1170,I-GUARD SECURITY LTD,118756
WARRINGTON BOROUGH COUNCIL,http://opendatacommunities.org/id/unitary-authority/warrington,FWB,BCF - Telecare/Sensory,54560,Health Awareness,441950,03/11/2022,5100515335,544,iTs Designs Ltd t/a Alert IT Care A,116838
WARRINGTON BOROUGH COUNCIL,http://opendatacommunities.org/id/unitary-authority/warrington,FWB,BCF - Equipment Store,54930,Equipment Purchase & Contract,400000,03/11/2022,5100515339,1000,Care-Ability Healthcare Ltd,111949
WARRINGTON BOROUGH COUNCIL,http://opendatacommunities.org/id/unitary-authority/warrington,FWB,BCF - Equipment Store,54930,Equipment Purchase & Contract,400000,03/11/2022,5100515339,800,Care-Ability Healthcare Ltd,111949
WARRINGTON BOROUGH COUNCIL,http://opendatacommunities.org/id/unitary-authority/warrington,RSC,IT - Contracts,23600,Computer Software - Maintenance,450850,03/11/2022,5100515340,2124.68,Cheshire East Council,410116
WARRINGTON BOROUGH COUNCIL,http://opendatacommunities.org/id/unitary-authority/warrington,CYP,Childrens & Young People,81000,Specific Work,200200,03/11/2022,5100515341,17818,Concept Group (WIGAN) LTD,117354
WARRINGTON BOROUGH COUNCIL,http://opendatacommunities.org/id/unitary-authority/warrington,CYP,Childrens & Young People,81000,Maintenance of Plant & Machinery,250050,03/11/2022,5100515342,13270,Concept Group (WIGAN) LTD,117354
WARRINGTON BOROUGH COUNCIL,http://opendatacommunities.org/id/unitary-authority/warrington,HOL,Insurance Fund,91100,Consult.& Prof. Serv,440000,03/11/2022,5100515343,14429.5,Gallagher Bassett International Ltd,104739
WARRINGTON BOROUGH COUNCIL,http://opendatacommunities.org/id/unitary-authority/warrington,ET0,BUM Public Protection,41561,"Campaigns,  Projects and Events",491950,03/11/2022,5100515350,2500,DJS Research Ltd,118698
WARRINGTON BOROUGH COUNCIL,http://opendatacommunities.org/id/unitary-authority/warrington,ET0,Core Operational Business,41730,Materials,400500,03/11/2022,5100515351,700,Duttons Traffic Management Services,115913
WARRINGTON BOROUGH COUNCIL,http://opendatacommunities.org/id/unitary-authority/warrington,ET0,Core Operational Business,41730,Materials,400500,03/11/2022,5100515351,780,Duttons Traffic Management Services,115913
WARRINGTON BOROUGH COUNCIL,http://opendatacommunities.org/id/unitary-authority/warrington,FWB,OT/Equip - Childrens,54315,Equipment Purchase & Contract,400000,03/11/2022,5100515353,2160,Etac Ltd,100622
WARRINGTON BOROUGH COUNCIL,http://opendatacommunities.org/id/unitary-authority/warrington,ET0,Land Drainage,44120,Clean Repair Drains,531000,03/11/2022,5100515355,500,General Utilities Services Ltd,101975
WARRINGTON BOROUGH COUNCIL,http://opendatacommunities.org/id/unitary-authority/warrington,CYP,Childrens & Young People,81000,Specific Work,200200,03/11/2022,5100515356,84950.7,Concept Group (WIGAN) LTD,117354
WARRINGTON BOROUGH COUNCIL,http://opendatacommunities.org/id/unitary-authority/warrington,DG0,Personal Development Centre,45165,Consult.& Prof. Serv,440000,03/11/2022,5100515358,4989.5,Rapid Chiller Rentals Limited,118979
WARRINGTON BOROUGH COUNCIL,http://opendatacommunities.org/id/unitary-authority/warrington,DG0,Walton Hall,45123,Maintenance of Plant & Machinery,250050,03/11/2022,5100515359,7375,Rapid Chiller Rentals Limited,118979
WARRINGTON BOROUGH COUNCIL,http://opendatacommunities.org/id/unitary-authority/warrington,CYP,Primary,81001,Consult.& Prof. Serv,440000,03/11/2022,5100515363,942.62,Watts Group Limited,118593
WARRINGTON BOROUGH COUNCIL,http://opendatacommunities.org/id/unitary-authority/warrington,FWB,DSG Independent School Fees,32011,Fees (Including Agents Fees),441450,03/11/2022,5100515365,4839,Belmont School Limited,400047
WARRINGTON BOROUGH COUNCIL,http://opendatacommunities.org/id/unitary-authority/warrington,ET0,School Brow Depot,41330,Hazardous Waste,530600,03/11/2022,5100515368,519.9,Oakwood Environmental Services,109265
WARRINGTON BOROUGH COUNCIL,http://opendatacommunities.org/id/unitary-authority/warrington,FWB,BCF - Equipment Store,54930,Equipment Purchase & Contract,400000,03/11/2022,5100515370,551.25,Langham Products,103643
WARRINGTON BOROUGH COUNCIL,http://opendatacommunities.org/id/unitary-authority/warrington,FWB,Children with Disabilities,31005,Fees (Including Agents Fees),441450,03/11/2022,5100515371,2204.3,Paradigm Professional Consultancy,118959
WARRINGTON BOROUGH COUNCIL,http://opendatacommunities.org/id/unitary-authority/warrington,RSC,Democratic Services,11400,ICT Comms - Device Maintenance,450450,03/11/2022,5100515374,7417,Public-i Group Ltd,117006
WARRINGTON BOROUGH COUNCIL,http://opendatacommunities.org/id/unitary-authority/warrington,COR,Heat Network Distribution Unit,62092,Consult.& Prof. Serv,440000,03/11/2022,5100515376,38901.6,Ramboll Uk Ltd,104002
WARRINGTON BOROUGH COUNCIL,http://opendatacommunities.org/id/unitary-authority/warrington,IGO,Property & Estates,86001,Consult.& Prof. Serv,440000,08/11/2022,5100515379,510,Spawforths Rolinson Ltd,118108
WARRINGTON BOROUGH COUNCIL,http://opendatacommunities.org/id/unitary-authority/warrington,ET0,Waste Recycling,41820,Waste Initiatives,443200,03/11/2022,5100515380,3220,Storm Environmental Ltd,118604
WARRINGTON BOROUGH COUNCIL,http://opendatacommunities.org/id/unitary-authority/warrington,ET0,Waste Recycling,41820,Waste Initiatives,443200,03/11/2022,5100515380,5860,Storm Environmental Ltd,118604
WARRINGTON BOROUGH COUNCIL,http://opendatacommunities.org/id/unitary-authority/warrington,ET0,Transport Holding Account,41311,Accidental Damage - Sub Contractors,301200,03/11/2022,5100515382,3021.45,Inchcape Fleet Solutions,108845
WARRINGTON BOROUGH COUNCIL,http://opendatacommunities.org/id/unitary-authority/warrington,ET0,Transport Holding Account,41311,Accidental Damage - Sub Contractors,301200,03/11/2022,5100515383,2007.3,Inchcape Warrington Toyota / Lexus,119022
WARRINGTON BOROUGH COUNCIL,http://opendatacommunities.org/id/unitary-authority/warrington,FWB,BCF - Telecare/Sensory,54560,Health Awareness,441950,03/11/2022,5100515384,3016.26,Nottingham Rehab Limited,101513
WARRINGTON BOROUGH COUNCIL,http://opendatacommunities.org/id/unitary-authority/warrington,IGO,Property & Estates,86001,Consult.& Prof. Serv,440000,15/11/2022,5100515385,5650,4ward Management Ltd,118056
WARRINGTON BOROUGH COUNCIL,http://opendatacommunities.org/id/unitary-authority/warrington,ET0,Transport Holding Account,41311,Accidental Damage - Sub Contractors,301200,03/11/2022,5100515387,855.92,Inchcape Warrington Toyota / Lexus,119022
WARRINGTON BOROUGH COUNCIL,http://opendatacommunities.org/id/unitary-authority/warrington,DG0,Ext. Funded Projects,53137,"Campaigns,  Projects and Events",491950,03/11/2022,5100515391,2275,Ludovico,118395
WARRINGTON BOROUGH COUNCIL,http://opendatacommunities.org/id/unitary-authority/warrington,ET0,Vehicle & Plant Acq.,41312,Vehicle & Plant Purchase,301350,03/11/2022,5100515392,30943.3,Turner Groundscare,105201
WARRINGTON BOROUGH COUNCIL,http://opendatacommunities.org/id/unitary-authority/warrington,ET0,Vehicle & Plant Acq.,41312,Vehicle & Plant Purchase,301350,03/11/2022,5100515392,4170.66,Turner Groundscare,105201
WARRINGTON BOROUGH COUNCIL,http://opendatacommunities.org/id/unitary-authority/warrington,DG0,Development Control,43430,Consult.& Prof. Serv,440000,03/11/2022,5100515393,1850,Vivid Resourcing Limited,115752
WARRINGTON BOROUGH COUNCIL,http://opendatacommunities.org/id/unitary-authority/warrington,FWB,BCF - Equipment Store,54930,Annual Maintenance,442100,15/11/2022,5100515434,3318.5,Prism Medical UK,108616
WARRINGTON BOROUGH COUNCIL,http://opendatacommunities.org/id/unitary-authority/warrington,FWB,BCF - Equipment Store,54930,Annual Maintenance,442100,15/11/2022,5100515436,1641.42,Prism Medical UK,108616
WARRINGTON BOROUGH COUNCIL,http://opendatacommunities.org/id/unitary-authority/warrington,FWB,Special Schools Transport,33208,Statemented - Special Unit Pupil Transpo,300750,04/11/2022,5100515438,955.16,Raza Taxis,105056
WARRINGTON BOROUGH COUNCIL,http://opendatacommunities.org/id/unitary-authority/warrington,FWB,Special Schools Transport,33208,Statemented - Special Unit Pupil Transpo,300750,09/11/2022,5100515439,560,Raza Taxis,105056
WARRINGTON BOROUGH COUNCIL,http://opendatacommunities.org/id/unitary-authority/warrington,FWB,Special Schools Transport,33208,Statemented - Special Unit Pupil Transpo,300750,04/11/2022,5100515444,2752.25,Sure & Safe Minibus Service Ltd,100137
WARRINGTON BOROUGH COUNCIL,http://opendatacommunities.org/id/unitary-authority/warrington,FWB,Special Schools Transport,33208,Statemented - Special Unit Pupil Transpo,300750,11/11/2022,5100515445,2320.5,Soran's Travel,118414
WARRINGTON BOROUGH COUNCIL,http://opendatacommunities.org/id/unitary-authority/warrington,ET0,Transport Holding Account,41311,Vehicle Hire Charges,320000,15/11/2022,5100515446,1495.01,B & T Skip Hire,100921
WARRINGTON BOROUGH COUNCIL,http://opendatacommunities.org/id/unitary-authority/warrington,ET0,Transport Holding Account,41311,Veh Maint. Materials,300000,04/11/2022,5100515447,954.41,Johnston Sweepers Ltd,101251
WARRINGTON BOROUGH COUNCIL,http://opendatacommunities.org/id/unitary-authority/warrington,FWB,Children with Disabilities,31005,Consult.& Prof. Serv,440000,04/11/2022,5100515449,24444,Greenstaff Communty Services,118764
WARRINGTON BOROUGH COUNCIL,http://opendatacommunities.org/id/unitary-authority/warrington,PIO,People & Improvement Other,85002,Lifts from Stock,400850,04/11/2022,5100515450,2535.5,AMW Lift & Mobility Services Ltd,112766
WARRINGTON BOROUGH COUNCIL,http://opendatacommunities.org/id/unitary-authority/warrington,FWB,Divert / Health Project,33307,Consult.& Prof. Serv,440000,04/11/2022,5100515451,500,Redacted for personal data,118855
WARRINGTON BOROUGH COUNCIL,http://opendatacommunities.org/id/unitary-authority/warrington,RSC,Welfare Support,10360,"Campaigns,  Projects and Events",491950,15/11/2022,5100515453,4456,Changing Lives Together,111607
WARRINGTON BOROUGH COUNCIL,http://opendatacommunities.org/id/unitary-authority/warrington,ET0,Construction Stores Overhead Account,41320,Materials,400500,04/11/2022,5100515454,2041.2,Cromwell Polythene Ltd,112559
WARRINGTON BOROUGH COUNCIL,http://opendatacommunities.org/id/unitary-authority/warrington,ET0,Construction Stores Overhead Account,41320,Materials,400500,04/11/2022,5100515454,1821.6,Cromwell Polythene Ltd,112559
WARRINGTON BOROUGH COUNCIL,http://opendatacommunities.org/id/unitary-authority/warrington,ET0,Transport Holding Account,41311,Veh Maint. Materials,300000,04/11/2022,5100515455,549.58,Dennis Eagle Parts,104661
WARRINGTON BOROUGH COUNCIL,http://opendatacommunities.org/id/unitary-authority/warrington,FWB,OT/Equip - Childrens,54315,Equipment Purchase & Contract,400000,04/11/2022,5100515458,1344,Etac Ltd,100622
WARRINGTON BOROUGH COUNCIL,http://opendatacommunities.org/id/unitary-authority/warrington,CYP,Childrens & Young People,81000,Consult.& Prof. Serv,440000,04/11/2022,5100515461,1021.25,Keelagher Okey Klein,102651
WARRINGTON BOROUGH COUNCIL,http://opendatacommunities.org/id/unitary-authority/warrington,ET0,Finance Office Services,42110,"Campaigns,  Projects and Events",491950,04/11/2022,5100515463,750,Lite Ltd,109377
WARRINGTON BOROUGH COUNCIL,http://opendatacommunities.org/id/unitary-authority/warrington,ET0,Finance Office Services,42110,"Campaigns,  Projects and Events",491950,04/11/2022,5100515463,870,Lite Ltd,109377
WARRINGTON BOROUGH COUNCIL,http://opendatacommunities.org/id/unitary-authority/warrington,ET0,Finance Office Services,42110,"Campaigns,  Projects and Events",491950,04/11/2022,5100515463,1740,Lite Ltd,109377
WARRINGTON BOROUGH COUNCIL,http://opendatacommunities.org/id/unitary-authority/warrington,ET0,Taxi and Private Hire Licensing,44450,Consult.& Prof. Serv,440000,04/11/2022,5100515465,677.54,Oyster Partnership,116595
WARRINGTON BOROUGH COUNCIL,http://opendatacommunities.org/id/unitary-authority/warrington,RSC,Business Services,52125,Consult.& Prof. Serv,440000,04/11/2022,5100515466,24995,Fiscal Technologies Limited,107741
WARRINGTON BOROUGH COUNCIL,http://opendatacommunities.org/id/unitary-authority/warrington,ET0,Golf Course Client,41432,Materials,400500,04/11/2022,5100515467,756.65,M C & M A Stewart Haulage Ltd,105159
WARRINGTON BOROUGH COUNCIL,http://opendatacommunities.org/id/unitary-authority/warrington,ENP,Environment & Regeneration,82000,Stores Purchases,401300,04/11/2022,5100515468,2169.53,Altitude Services Ltd,118550
WARRINGTON BOROUGH COUNCIL,http://opendatacommunities.org/id/unitary-authority/warrington,ENP,Environment & Regeneration,82000,Stores Purchases,401300,04/11/2022,5100515469,1344,Altitude Services Ltd,118550
WARRINGTON BOROUGH COUNCIL,http://opendatacommunities.org/id/unitary-authority/warrington,FWB,Special Schools Transport,33208,Statemented - Special Unit Pupil Transpo,300750,04/11/2022,5100515470,2915.42,Sure & Safe Minibus Service Ltd,100137
WARRINGTON BOROUGH COUNCIL,http://opendatacommunities.org/id/unitary-authority/warrington,FWB,Special Schools Transport,33208,Statemented - Special Unit Pupil Transpo,300750,04/11/2022,5100515471,1369.46,LJ Executive Travel,422652
WARRINGTON BOROUGH COUNCIL,http://opendatacommunities.org/id/unitary-authority/warrington,FWB,Special Schools Transport,33208,Statemented - Special Unit Pupil Transpo,300750,04/11/2022,5100515472,1865,Redacted for personal data,103064
WARRINGTON BOROUGH COUNCIL,http://opendatacommunities.org/id/unitary-authority/warrington,FWB,Home to School Transport,33210,Mainstream Pupil Transport,300800,04/11/2022,5100515473,889.55,MD Bus & Coach Ltd,116003
WARRINGTON BOROUGH COUNCIL,http://opendatacommunities.org/id/unitary-authority/warrington,RSC,Business Services,52125,"Campaigns,  Projects and Events",491950,04/11/2022,5100515474,2631.91,Newsquest Media Group,100070
WARRINGTON BOROUGH COUNCIL,http://opendatacommunities.org/id/unitary-authority/warrington,RSC,ICT Centralised Budget,23100,Computer Software - Purchase,450800,04/11/2022,5100515478,4586.25,Phoenix Software Ltd,105022
WARRINGTON BOROUGH COUNCIL,http://opendatacommunities.org/id/unitary-authority/warrington,FWB,BCF - Equipment Store,54930,Annual Maintenance,442100,15/11/2022,5100515480,2306.78,Prism Medical UK,108616
WARRINGTON BOROUGH COUNCIL,http://opendatacommunities.org/id/unitary-authority/warrington,FWB,BCF - Equipment Store,54930,Annual Maintenance,442100,15/11/2022,5100515481,2604.94,Prism Medical UK,108616
WARRINGTON BOROUGH COUNCIL,http://opendatacommunities.org/id/unitary-authority/warrington,RSC,Professional Development Centre,21000,Learning Resources,400100,15/11/2022,5100515482,591,Qualsafe,104058
WARRINGTON BOROUGH COUNCIL,http://opendatacommunities.org/id/unitary-authority/warrington,COR,Heat Network Distribution Unit,62092,Consult.& Prof. Serv,440000,04/11/2022,5100515483,38901.6,Ramboll Uk Ltd,104002
WARRINGTON BOROUGH COUNCIL,http://opendatacommunities.org/id/unitary-authority/warrington,FWB,Special Schools Transport,33208,Statemented - Special Unit Pupil Transpo,300750,04/11/2022,5100515484,2213.5,Redacted for personal data,103064
WARRINGTON BOROUGH COUNCIL,http://opendatacommunities.org/id/unitary-authority/warrington,ET0,Transport Holding Account,41311,Accidental Damage - Sub Contractors,301200,04/11/2022,5100515487,938.06,Inchcape Warrington Toyota / Lexus,119022
WARRINGTON BOROUGH COUNCIL,http://opendatacommunities.org/id/unitary-authority/warrington,ET0,Transport Holding Account,41311,Accidental Damage - Sub Contractors,301200,04/11/2022,5100515489,3016.26,Inchcape Warrington Toyota / Lexus,119022
WARRINGTON BOROUGH COUNCIL,http://opendatacommunities.org/id/unitary-authority/warrington,FWB,Special Schools Transport,33208,Statemented - Special Unit Pupil Transpo,300750,04/11/2022,5100515491,2320,Regal Travel,102002
WARRINGTON BOROUGH COUNCIL,http://opendatacommunities.org/id/unitary-authority/warrington,ET0,Transport Holding Account,41311,Accidental Damage - Sub Contractors,301200,04/11/2022,5100515492,756.74,Inchcape Warrington Toyota / Lexus,119022
WARRINGTON BOROUGH COUNCIL,http://opendatacommunities.org/id/unitary-authority/warrington,FWB,Special Schools Transport,33208,Statemented - Special Unit Pupil Transpo,300750,04/11/2022,5100515493,2343.15,Lolly's Travel Ltd,117980
WARRINGTON BOROUGH COUNCIL,http://opendatacommunities.org/id/unitary-authority/warrington,FWB,Special Schools Transport,33208,Statemented - Special Unit Pupil Transpo,300750,04/11/2022,5100515494,1656,Raza Taxis,105056
WARRINGTON BOROUGH COUNCIL,http://opendatacommunities.org/id/unitary-authority/warrington,ET0,PW&F Management Operations,41427,Kennel Fees,440550,04/11/2022,5100515500,520.3,Animal Wardens Ltd,103042
WARRINGTON BOROUGH COUNCIL,http://opendatacommunities.org/id/unitary-authority/warrington,FWB,Virtual School,31112,Looked after children in Warrington,301000,04/11/2022,5100515501,900,Beamont Collegiate Academy,111598
WARRINGTON BOROUGH COUNCIL,http://opendatacommunities.org/id/unitary-authority/warrington,ET0,Transport Holding Account,41311,Accidental Damage - Sub Contractors,301200,04/11/2022,5100515502,1572.24,Inchcape Warrington Toyota / Lexus,119022
WARRINGTON BOROUGH COUNCIL,http://opendatacommunities.org/id/unitary-authority/warrington,ET0,Transport Holding Account,41311,Accidental Damage - Sub Contractors,301200,04/11/2022,5100515503,510,Inchcape Warrington Toyota / Lexus,119022
WARRINGTON BOROUGH COUNCIL,http://opendatacommunities.org/id/unitary-authority/warrington,ENO,Highways Other,82005,Consult.& Prof. Serv,440000,04/11/2022,5100515508,6282.5,General Utilities Services Ltd,101975
WARRINGTON BOROUGH COUNCIL,http://opendatacommunities.org/id/unitary-authority/warrington,FWB,Supporting People Contracts,53260,Sheltd/Xtra Care Hsing and Comm Alarms,535050,05/11/2022,5100515541,5019.84,Catalyst Choice Management Services,115078
WARRINGTON BOROUGH COUNCIL,http://opendatacommunities.org/id/unitary-authority/warrington,FWB,Supporting People Contracts,53260,Sheltd/Xtra Care Hsing and Comm Alarms,535050,05/11/2022,5100515541,917.84,Catalyst Choice Management Services,115078
WARRINGTON BOROUGH COUNCIL,http://opendatacommunities.org/id/unitary-authority/warrington,FWB,CIN Team 1,31001,Transport SLA,300400,07/11/2022,5100515653,1430,Mackies Travel,116390
WARRINGTON BOROUGH COUNCIL,http://opendatacommunities.org/id/unitary-authority/warrington,COR,New Market - Operational Account,47000,Equipment Purchase & Contract,400000,07/11/2022,5100515654,1067.37,Investec Asset Finance PLC,106246
WARRINGTON BOROUGH COUNCIL,http://opendatacommunities.org/id/unitary-authority/warrington,FWB,Special Schools Transport,33208,Statemented - Special Unit Pupil Transpo,300750,07/11/2022,5100515655,1881.6,Direct Taxis,101873
WARRINGTON BOROUGH COUNCIL,http://opendatacommunities.org/id/unitary-authority/warrington,FWB,Special Schools Transport,33208,Statemented - Special Unit Pupil Transpo,300750,07/11/2022,5100515656,1696,Direct Taxis,101873
WARRINGTON BOROUGH COUNCIL,http://opendatacommunities.org/id/unitary-authority/warrington,FWB,Special Schools Transport,33208,Statemented - Special Unit Pupil Transpo,300750,07/11/2022,5100515657,2086.56,Direct Taxis,101873
WARRINGTON BOROUGH COUNCIL,http://opendatacommunities.org/id/unitary-authority/warrington,ET0,Local Bus Contracts,44430,Payments To Operator,530150,07/11/2022,5100515658,2724,Direct Taxis,101873
WARRINGTON BOROUGH COUNCIL,http://opendatacommunities.org/id/unitary-authority/warrington,FWB,Children with Disabilities,31005,Statemented - Special Unit Pupil Transpo,300750,07/11/2022,5100515659,1840,Direct Taxis,101873
WARRINGTON BOROUGH COUNCIL,http://opendatacommunities.org/id/unitary-authority/warrington,FWB,Special Schools Transport,33208,Statemented - Special Unit Pupil Transpo,300750,07/11/2022,5100515660,2080,Direct Taxis,101873
WARRINGTON BOROUGH COUNCIL,http://opendatacommunities.org/id/unitary-authority/warrington,FWB,Special Schools Transport,33208,Statemented - Special Unit Pupil Transpo,300750,07/11/2022,5100515661,2080,Direct Taxis,101873
WARRINGTON BOROUGH COUNCIL,http://opendatacommunities.org/id/unitary-authority/warrington,FWB,Special Schools Transport,33208,Statemented - Special Unit Pupil Transpo,300750,07/11/2022,5100515662,2318.4,Direct Taxis,101873
WARRINGTON BOROUGH COUNCIL,http://opendatacommunities.org/id/unitary-authority/warrington,FWB,Special Schools Transport,33208,Statemented - Special Unit Pupil Transpo,300750,07/11/2022,5100515663,1989,Direct Taxis,101873
WARRINGTON BOROUGH COUNCIL,http://opendatacommunities.org/id/unitary-authority/warrington,FWB,Special Schools Transport,33208,Statemented - Special Unit Pupil Transpo,300750,07/11/2022,5100515664,2475,Direct Taxis,101873
WARRINGTON BOROUGH COUNCIL,http://opendatacommunities.org/id/unitary-authority/warrington,FWB,Special Schools Transport,33208,Statemented - Special Unit Pupil Transpo,300750,07/11/2022,5100515665,2080,Direct Taxis,101873
WARRINGTON BOROUGH COUNCIL,http://opendatacommunities.org/id/unitary-authority/warrington,ET0,Construction Stores Overhead Account,41320,Materials,400500,07/11/2022,5100515667,672.5,Warrington Electrical Supplies,103041
WARRINGTON BOROUGH COUNCIL,http://opendatacommunities.org/id/unitary-authority/warrington,RSC,IT - Contracts,23600,Computer Software - Maintenance,450850,15/11/2022,5100515669,2124.68,Cheshire East Council,410116
WARRINGTON BOROUGH COUNCIL,http://opendatacommunities.org/id/unitary-authority/warrington,ET0,Transport Holding Account,41311,Vehicle Hire Charges,320000,15/11/2022,5100515674,7661.54,Enterprise Flex E Rent,100597
WARRINGTON BOROUGH COUNCIL,http://opendatacommunities.org/id/unitary-authority/warrington,FWB,Special Schools Transport,33208,Statemented - Special Unit Pupil Transpo,300750,07/11/2022,5100515675,1077.84,Tip Top Travel,113174
WARRINGTON BOROUGH COUNCIL,http://opendatacommunities.org/id/unitary-authority/warrington,FWB,Special Schools Transport,33208,Statemented - Special Unit Pupil Transpo,300750,07/11/2022,5100515676,1478.6,Stirton's Wheels,103536
WARRINGTON BOROUGH COUNCIL,http://opendatacommunities.org/id/unitary-authority/warrington,FWB,Special Schools Transport,33208,Statemented - Special Unit Pupil Transpo,300750,07/11/2022,5100515677,1575,Silver Executive Travel,102638
WARRINGTON BOROUGH COUNCIL,http://opendatacommunities.org/id/unitary-authority/warrington,FWB,Special Schools Transport,33208,Statemented - Special Unit Pupil Transpo,300750,07/11/2022,5100515678,895,Mackies Travel,116390
WARRINGTON BOROUGH COUNCIL,http://opendatacommunities.org/id/unitary-authority/warrington,FWB,Special Schools Transport,33208,Statemented - Special Unit Pupil Transpo,300750,07/11/2022,5100515679,2580.75,Mackies Travel,116390
WARRINGTON BOROUGH COUNCIL,http://opendatacommunities.org/id/unitary-authority/warrington,ET0,LACF - LCWIP Scheme Development,44525,Consult.& Prof. Serv,440000,15/11/2022,5100515680,1373,Wsp Uk Ltd,103007
WARRINGTON BOROUGH COUNCIL,http://opendatacommunities.org/id/unitary-authority/warrington,DG0,Ext. Funded Projects,53136,"Campaigns,  Projects and Events",491950,07/11/2022,5100515682,2000,Warrington Ethnic Community Assoc,107597
WARRINGTON BOROUGH COUNCIL,http://opendatacommunities.org/id/unitary-authority/warrington,ENO,Highways LTP,82004,Signal Equipment,531650,07/11/2022,5100515684,32760,Yunex Limited,101162
WARRINGTON BOROUGH COUNCIL,http://opendatacommunities.org/id/unitary-authority/warrington,ENO,Highways LTP,82004,Signal Equipment,531650,07/11/2022,5100515686,1250.8,Yunex Limited,101162
WARRINGTON BOROUGH COUNCIL,http://opendatacommunities.org/id/unitary-authority/warrington,ET0,Transport Holding Account,41311,Vehicle Hire Charges,320000,07/11/2022,5100515687,2125.34,West Wallasey Car Hire Ltd,103584
WARRINGTON BOROUGH COUNCIL,http://opendatacommunities.org/id/unitary-authority/warrington,FWB,DSG - Medical Needs,32002,Eotas Pupil Funding,490350,07/11/2022,5100515690,909,The Gateway (Warrington) Ltd,440117
WARRINGTON BOROUGH COUNCIL,http://opendatacommunities.org/id/unitary-authority/warrington,ENO,Environmental Projects,82007,Building Work,200850,07/11/2022,5100515692,2880,Complete Home Energy Systems,111861
WARRINGTON BOROUGH COUNCIL,http://opendatacommunities.org/id/unitary-authority/warrington,ENO,Environmental Projects,82007,Consult.& Prof. Serv,440000,07/11/2022,5100515693,10000,Complete Home Energy Systems,111861
WARRINGTON BOROUGH COUNCIL,http://opendatacommunities.org/id/unitary-authority/warrington,FWB,Special Schools Transport,33208,Statemented - Special Unit Pupil Transpo,300750,07/11/2022,5100515694,2100,Direct Taxis,101873
WARRINGTON BOROUGH COUNCIL,http://opendatacommunities.org/id/unitary-authority/warrington,DG0,Ext. Funded Projects,53137,"Campaigns,  Projects and Events",491950,07/11/2022,5100515696,2965,Elior UK Plc,112539
WARRINGTON BOROUGH COUNCIL,http://opendatacommunities.org/id/unitary-authority/warrington,DG0,Development Control,43430,Consult.& Prof. Serv,440000,09/11/2022,5100515701,8500,Vivid Resourcing Limited,115752
WARRINGTON BOROUGH COUNCIL,http://opendatacommunities.org/id/unitary-authority/warrington,FWB,Special Schools Transport,33208,Statemented - Special Unit Pupil Transpo,300750,07/11/2022,5100515704,3903.84,Sure & Safe Minibus Service Ltd,100137
WARRINGTON BOROUGH COUNCIL,http://opendatacommunities.org/id/unitary-authority/warrington,FWB,Mental Capacity Act,54650,Consult.& Prof. Serv,440000,07/11/2022,5100515707,4740,Reed Talent Solutions Limited,118453
WARRINGTON BOROUGH COUNCIL,http://opendatacommunities.org/id/unitary-authority/warrington,FWB,Collaborative Training Group,33301,Training,190150,07/11/2022,5100515712,21600,Redacted for personal data,111138
WARRINGTON BOROUGH COUNCIL,http://opendatacommunities.org/id/unitary-authority/warrington,FWB,DSG Post-16 Special Educational Needs,32309,Fees (Including Agents Fees),441450,07/11/2022,5100515717,860,Roundway Centre Ltd,103640
WARRINGTON BOROUGH COUNCIL,http://opendatacommunities.org/id/unitary-authority/warrington,ET0,Transport Holding Account,41311,Vehicle Hire Charges,320000,07/11/2022,5100515718,1659,Riverside Truck Rental Ltd,101057
WARRINGTON BOROUGH COUNCIL,http://opendatacommunities.org/id/unitary-authority/warrington,FWB,Special Schools Transport,33208,Statemented - Special Unit Pupil Transpo,300750,07/11/2022,5100515720,1026.08,Warrington Travel,112256
WARRINGTON BOROUGH COUNCIL,http://opendatacommunities.org/id/unitary-authority/warrington,FWB,Transport - Adult Social Care,54950,Transport SLA,300400,07/11/2022,5100515721,1120,Silver Executive Travel,102638
WARRINGTON BOROUGH COUNCIL,http://opendatacommunities.org/id/unitary-authority/warrington,FWB,Special Schools Transport,33208,Statemented - Special Unit Pupil Transpo,300750,07/11/2022,5100515722,2331,K & J Travel,115925
WARRINGTON BOROUGH COUNCIL,http://opendatacommunities.org/id/unitary-authority/warrington,FWB,Special Schools Transport,33208,Statemented - Special Unit Pupil Transpo,300750,07/11/2022,5100515723,1998,Rainbow Travel,101270
WARRINGTON BOROUGH COUNCIL,http://opendatacommunities.org/id/unitary-authority/warrington,FWB,Education Leadership & Quality,32100,Consult.& Prof. Serv,440000,07/11/2022,5100515726,1458.3,SWL Northwest Ltd,118948
WARRINGTON BOROUGH COUNCIL,http://opendatacommunities.org/id/unitary-authority/warrington,DG0,Local Plan,43445,Consult.& Prof. Serv,440000,07/11/2022,5100515730,7891,Ove Arup & Partners Ltd,110944
WARRINGTON BOROUGH COUNCIL,http://opendatacommunities.org/id/unitary-authority/warrington,ET0,Taxi and Private Hire Licensing,44450,Consult.& Prof. Serv,440000,07/11/2022,5100515731,677.54,Oyster Partnership,116595
WARRINGTON BOROUGH COUNCIL,http://opendatacommunities.org/id/unitary-authority/warrington,ET0,Transport Holding Account,41311,Veh Maint. Materials,300000,07/11/2022,5100515734,652.6,Probrush,103996
WARRINGTON BOROUGH COUNCIL,http://opendatacommunities.org/id/unitary-authority/warrington,ET0,Transport Holding Account,41311,Veh Maint. Materials,300000,07/11/2022,5100515734,1611.96,Probrush,103996
WARRINGTON BOROUGH COUNCIL,http://opendatacommunities.org/id/unitary-authority/warrington,IGO,Property & Estates,86001,Consult.& Prof. Serv,440000,07/11/2022,5100515739,2346,Spawforths Rolinson Ltd,118108
WARRINGTON BOROUGH COUNCIL,http://opendatacommunities.org/id/unitary-authority/warrington,IGO,Property & Estates,86001,Consult.& Prof. Serv,440000,07/11/2022,5100515740,816,Spawforths Rolinson Ltd,118108
WARRINGTON BOROUGH COUNCIL,http://opendatacommunities.org/id/unitary-authority/warrington,ET0,Transport Holding Account,41311,Veh Maint. Materials,300000,07/11/2022,5100515743,505.59,Spectrum Plant Ltd,112947
WARRINGTON BOROUGH COUNCIL,http://opendatacommunities.org/id/unitary-authority/warrington,ET0,Transport Holding Account,41311,Hire Of Premises,220150,07/11/2022,5100515745,1600,Spectrum Plant Ltd,112947
WARRINGTON BOROUGH COUNCIL,http://opendatacommunities.org/id/unitary-authority/warrington,FWB,Special Schools Transport,33208,Statemented - Special Unit Pupil Transpo,300750,14/11/2022,5100515748,1573.28,Redacted for personal data,108796
WARRINGTON BOROUGH COUNCIL,http://opendatacommunities.org/id/unitary-authority/warrington,RSC,IT - Contracts,23600,Computer Software - Maintenance,450850,07/11/2022,5100515749,18696,Accenture UK Limited,118763
WARRINGTON BOROUGH COUNCIL,http://opendatacommunities.org/id/unitary-authority/warrington,RSC,IT - Contracts,23600,Computer Software - Maintenance,450850,07/11/2022,5100515750,18696,Accenture UK Limited,118763
WARRINGTON BOROUGH COUNCIL,http://opendatacommunities.org/id/unitary-authority/warrington,FWB,Special Schools Transport,33208,Statemented - Special Unit Pupil Transpo,300750,07/11/2022,5100515751,567,Horn'S Private Hire,101991
WARRINGTON BOROUGH COUNCIL,http://opendatacommunities.org/id/unitary-authority/warrington,FWB,Special Schools Transport,33208,Statemented - Special Unit Pupil Transpo,300750,07/11/2022,5100515752,1900,Direct Taxis,101873
WARRINGTON BOROUGH COUNCIL,http://opendatacommunities.org/id/unitary-authority/warrington,FWB,Special Schools Transport,33208,Statemented - Special Unit Pupil Transpo,300750,07/11/2022,5100515753,1862,Direct Taxis,101873
WARRINGTON BOROUGH COUNCIL,http://opendatacommunities.org/id/unitary-authority/warrington,FWB,Homelessness,43650,Emergency Accommodation Allowance,550500,07/11/2022,5100515759,2200,The Patten Arms Hotel,115465
WARRINGTON BOROUGH COUNCIL,http://opendatacommunities.org/id/unitary-authority/warrington,DG0,Development Control,43430,Consult.& Prof. Serv,440000,07/11/2022,5100515761,5062,Tameside M B,440155
WARRINGTON BOROUGH COUNCIL,http://opendatacommunities.org/id/unitary-authority/warrington,ET0,Transport Holding Account,41311,Veh Maint. Materials,300000,07/11/2022,5100515762,1560,Tennants Distribution Limited,103720
WARRINGTON BOROUGH COUNCIL,http://opendatacommunities.org/id/unitary-authority/warrington,ET0,Waste Recycling,41820,Green Waste Treatment,530800,07/11/2022,5100515764,2974.52,The Greener Gardening Company,104283
WARRINGTON BOROUGH COUNCIL,http://opendatacommunities.org/id/unitary-authority/warrington,ET0,Waste Recycling,41820,Green Waste Treatment,530800,07/11/2022,5100515765,1375,The Greener Gardening Company,104283
WARRINGTON BOROUGH COUNCIL,http://opendatacommunities.org/id/unitary-authority/warrington,ET0,Waste Recycling,41820,Green Waste Treatment,530800,07/11/2022,5100515766,1676.49,The Greener Gardening Company,104283
WARRINGTON BOROUGH COUNCIL,http://opendatacommunities.org/id/unitary-authority/warrington,FWB,Collaborative Training Group,33301,Training,190150,07/11/2022,5100515767,536,The Petty Pool College & Outdoor Ce,440126
WARRINGTON BOROUGH COUNCIL,http://opendatacommunities.org/id/unitary-authority/warrington,FWB,DSG Independent School Fees,32011,Fees (Including Agents Fees),441450,07/11/2022,5100515768,700,Think F.E.A.S.T Academy,118977
WARRINGTON BOROUGH COUNCIL,http://opendatacommunities.org/id/unitary-authority/warrington,DG0,Development Control,43430,Other Advertising & Publicity,450050,07/11/2022,5100515769,505.74,PeopleScout Limited,108498
WARRINGTON BOROUGH COUNCIL,http://opendatacommunities.org/id/unitary-authority/warrington,RSC,HR Advisory,20005,Consult.& Prof. Serv,440000,07/11/2022,5100515779,8673.64,UK Independent Medical Servces Ltd,118736
WARRINGTON BOROUGH COUNCIL,http://opendatacommunities.org/id/unitary-authority/warrington,FWB,BCF - Equipment Store,54930,Equipment Purchase & Contract,400000,15/11/2022,5100515785,2990,Prism Medical UK,108616
WARRINGTON BOROUGH COUNCIL,http://opendatacommunities.org/id/unitary-authority/warrington,FWB,Special Schools Transport,33208,Statemented - Special Unit Pupil Transpo,300750,07/11/2022,5100515787,2944,Diamond Travel,104665
WARRINGTON BOROUGH COUNCIL,http://opendatacommunities.org/id/unitary-authority/warrington,FWB,Special Schools Transport,33208,Statemented - Special Unit Pupil Transpo,300750,07/11/2022,5100515788,1470,Direct Taxis,101873
WARRINGTON BOROUGH COUNCIL,http://opendatacommunities.org/id/unitary-authority/warrington,DG0,Development Control,43430,Consult.& Prof. Serv,440000,07/11/2022,5100515790,1412.5,Vivid Resourcing Limited,115752
WARRINGTON BOROUGH COUNCIL,http://opendatacommunities.org/id/unitary-authority/warrington,FWB,Special Schools Transport,33208,Statemented - Special Unit Pupil Transpo,300750,07/11/2022,5100515793,2406.45,Andys Bus Company,100654
WARRINGTON BOROUGH COUNCIL,http://opendatacommunities.org/id/unitary-authority/warrington,FWB,Special Schools Transport,33208,Statemented - Special Unit Pupil Transpo,300750,07/11/2022,5100515794,2500,Andys Bus Company,100654
WARRINGTON BOROUGH COUNCIL,http://opendatacommunities.org/id/unitary-authority/warrington,FWB,Supporting People Contracts,53260,People with Mental Health Problems,535200,08/11/2022,5100515835,4032,Lucam Lives Ltd,118993
WARRINGTON BOROUGH COUNCIL,http://opendatacommunities.org/id/unitary-authority/warrington,FWB,Supporting People Contracts,53260,People with Mental Health Problems,535200,08/11/2022,5100515836,21504,Lucam Lives Ltd,118993
WARRINGTON BOROUGH COUNCIL,http://opendatacommunities.org/id/unitary-authority/warrington,FWB,BCF - Equipment Store,54930,Equipment Purchase & Contract,400000,08/11/2022,5100515843,620.21,Mangar International Limited,104921
WARRINGTON BOROUGH COUNCIL,http://opendatacommunities.org/id/unitary-authority/warrington,ET0,On Street Car Parking,44323,Events on the Highway,531350,15/11/2022,5100515848,913.8,Patrol,103313
WARRINGTON BOROUGH COUNCIL,http://opendatacommunities.org/id/unitary-authority/warrington,ET0,Transport Holding Account,41311,Vehicle Hire Charges,320000,15/11/2022,5100515849,2352,Peter Douglass Platforms,104676
WARRINGTON BOROUGH COUNCIL,http://opendatacommunities.org/id/unitary-authority/warrington,ET0,Transport Holding Account,41311,Vehicle Hire Charges,320000,15/11/2022,5100515851,1554,Peter Douglass Platforms,104676
WARRINGTON BOROUGH COUNCIL,http://opendatacommunities.org/id/unitary-authority/warrington,ET0,Transport Holding Account,41311,Vehicle Hire Charges,320000,15/11/2022,5100515852,1554,Peter Douglass Platforms,104676
WARRINGTON BOROUGH COUNCIL,http://opendatacommunities.org/id/unitary-authority/warrington,FWB,Transport - Adult Social Care,54950,Transport-Snad Cot,300600,08/11/2022,5100515853,560,Andys Bus Company,100654
WARRINGTON BOROUGH COUNCIL,http://opendatacommunities.org/id/unitary-authority/warrington,FWB,Special Schools Transport,33208,Statemented - Special Unit Pupil Transpo,300750,08/11/2022,5100515855,1565.1,Redacted for personal data,117345
WARRINGTON BOROUGH COUNCIL,http://opendatacommunities.org/id/unitary-authority/warrington,FWB,Special Schools Transport,33208,Statemented - Special Unit Pupil Transpo,300750,08/11/2022,5100515856,1432.99,Redacted for personal data,117345
WARRINGTON BOROUGH COUNCIL,http://opendatacommunities.org/id/unitary-authority/warrington,FWB,Special Schools Transport,33208,Statemented - Special Unit Pupil Transpo,300750,08/11/2022,5100515857,2878.72,Diamond Travel,104665
WARRINGTON BOROUGH COUNCIL,http://opendatacommunities.org/id/unitary-authority/warrington,FWB,Special Schools Transport,33208,Statemented - Special Unit Pupil Transpo,300750,08/11/2022,5100515858,1862,Direct Taxis,101873
WARRINGTON BOROUGH COUNCIL,http://opendatacommunities.org/id/unitary-authority/warrington,ET0,Waste Disposal,41830,Residual Waste Disposal,530500,08/11/2022,5100515859,94897.39,Viridor Energy Limited,118588
WARRINGTON BOROUGH COUNCIL,http://opendatacommunities.org/id/unitary-authority/warrington,FWB,Special Schools Transport,33208,Statemented - Special Unit Pupil Transpo,300750,08/11/2022,5100515860,2788.01,Elite Services NW Ltd,109753
WARRINGTON BOROUGH COUNCIL,http://opendatacommunities.org/id/unitary-authority/warrington,FWB,Special Schools Transport,33208,Statemented - Special Unit Pupil Transpo,300750,08/11/2022,5100515861,1179.9,Redacted for personal data,101021
WARRINGTON BOROUGH COUNCIL,http://opendatacommunities.org/id/unitary-authority/warrington,FWB,Virtual School,31112,Looked after children in Warrington,301000,08/11/2022,5100515862,2655.2,Ashley School,400248
WARRINGTON BOROUGH COUNCIL,http://opendatacommunities.org/id/unitary-authority/warrington,FWB,Special Schools Transport,33208,Statemented - Special Unit Pupil Transpo,300750,08/11/2022,5100515872,2400,Hampton Coaches,104768
WARRINGTON BOROUGH COUNCIL,http://opendatacommunities.org/id/unitary-authority/warrington,FWB,Special Schools Transport,33208,Statemented - Special Unit Pupil Transpo,300750,08/11/2022,5100515873,2560,Hampton Coaches,104768
WARRINGTON BOROUGH COUNCIL,http://opendatacommunities.org/id/unitary-authority/warrington,FWB,Special Schools Transport,33208,Statemented - Special Unit Pupil Transpo,300750,08/11/2022,5100515874,2007.75,Redacted for personal data,102978
WARRINGTON BOROUGH COUNCIL,http://opendatacommunities.org/id/unitary-authority/warrington,FWB,Virtual School,31112,Looked after children in Warrington,301000,08/11/2022,5100515875,917.2,Avening Primary School,400736
WARRINGTON BOROUGH COUNCIL,http://opendatacommunities.org/id/unitary-authority/warrington,RSC,Business Services,52125,"Campaigns,  Projects and Events",491950,15/11/2022,5100515879,2631.91,Newsquest Media Group,100070
WARRINGTON BOROUGH COUNCIL,http://opendatacommunities.org/id/unitary-authority/warrington,FWB,Homelessness,43650,Emergency Accommodation Allowance,550500,08/11/2022,5100515882,688.34,Weavers Close Limited,116929
WARRINGTON BOROUGH COUNCIL,http://opendatacommunities.org/id/unitary-authority/warrington,ET0,Taxi and Private Hire Licensing,44450,Consult.& Prof. Serv,440000,11/11/2022,5100515885,677.54,Oyster Partnership,116595
WARRINGTON BOROUGH COUNCIL,http://opendatacommunities.org/id/unitary-authority/warrington,FWB,Special Schools Transport,33208,Statemented - Special Unit Pupil Transpo,300750,08/11/2022,5100515891,2500,Andys Bus Company,100654
WARRINGTON BOROUGH COUNCIL,http://opendatacommunities.org/id/unitary-authority/warrington,ET0,Waste Recycling,41820,CRC Contract,530450,08/11/2022,5100515892,65180.34,Environmental Waste Controls Ltd,102474
WARRINGTON BOROUGH COUNCIL,http://opendatacommunities.org/id/unitary-authority/warrington,FWB,Special Schools Transport,33208,Statemented - Special Unit Pupil Transpo,300750,09/11/2022,5100515893,784,Abba Cars,105302
WARRINGTON BOROUGH COUNCIL,http://opendatacommunities.org/id/unitary-authority/warrington,FWB,Special Schools Transport,33208,Statemented - Special Unit Pupil Transpo,300750,09/11/2022,5100515893,552.2,Abba Cars,105302
WARRINGTON BOROUGH COUNCIL,http://opendatacommunities.org/id/unitary-authority/warrington,FWB,Special Schools Transport,33208,Statemented - Special Unit Pupil Transpo,300750,09/11/2022,5100515894,1180,Abba Cars,105302
WARRINGTON BOROUGH COUNCIL,http://opendatacommunities.org/id/unitary-authority/warrington,FWB,Special Schools Transport,33208,Statemented - Special Unit Pupil Transpo,300750,09/11/2022,5100515895,748,Direct Taxis,101873
WARRINGTON BOROUGH COUNCIL,http://opendatacommunities.org/id/unitary-authority/warrington,FWB,Transport - Adult Social Care,54950,Transport-Snad Cot,300600,09/11/2022,5100515896,600,Direct Taxis,101873
WARRINGTON BOROUGH COUNCIL,http://opendatacommunities.org/id/unitary-authority/warrington,FWB,Special Schools Transport,33208,Statemented - Special Unit Pupil Transpo,300750,09/11/2022,5100515897,2320,Direct Taxis,101873
WARRINGTON BOROUGH COUNCIL,http://opendatacommunities.org/id/unitary-authority/warrington,FWB,Special Schools Transport,33208,Statemented - Special Unit Pupil Transpo,300750,09/11/2022,5100515898,1470,Direct Taxis,101873
WARRINGTON BOROUGH COUNCIL,http://opendatacommunities.org/id/unitary-authority/warrington,FWB,Special Schools Transport,33208,Statemented - Special Unit Pupil Transpo,300750,09/11/2022,5100515899,2111.4,Direct Taxis,101873
WARRINGTON BOROUGH COUNCIL,http://opendatacommunities.org/id/unitary-authority/warrington,FWB,Special Schools Transport,33208,Statemented - Special Unit Pupil Transpo,300750,09/11/2022,5100515941,1738.88,Manhatton Transfers,101264
WARRINGTON BOROUGH COUNCIL,http://opendatacommunities.org/id/unitary-authority/warrington,FWB,Special Schools Transport,33208,Statemented - Special Unit Pupil Transpo,300750,09/11/2022,5100515942,1904.48,Wezs Travel,100842
WARRINGTON BOROUGH COUNCIL,http://opendatacommunities.org/id/unitary-authority/warrington,PIO,People & Improvement Other,85002,Minor Adaptations<750,400700,09/11/2022,5100515946,875,The Excellent Ramp System,100407
WARRINGTON BOROUGH COUNCIL,http://opendatacommunities.org/id/unitary-authority/warrington,FWB,DSG Independent School Fees,32011,Fees (Including Agents Fees),441450,09/11/2022,5100515959,31947.08,The Priory,101736
WARRINGTON BOROUGH COUNCIL,http://opendatacommunities.org/id/unitary-authority/warrington,FWB,Special Schools Transport,33208,Statemented - Special Unit Pupil Transpo,300750,09/11/2022,5100515960,1800,Direct Taxis,101873
WARRINGTON BOROUGH COUNCIL,http://opendatacommunities.org/id/unitary-authority/warrington,FWB,Special Schools Transport,33208,Statemented - Special Unit Pupil Transpo,300750,09/11/2022,5100515961,2080,Direct Taxis,101873
WARRINGTON BOROUGH COUNCIL,http://opendatacommunities.org/id/unitary-authority/warrington,FWB,Transport - Adult Social Care,54950,Transport-Snad Cot,300600,09/11/2022,5100515962,1391.04,Direct Taxis,101873
WARRINGTON BOROUGH COUNCIL,http://opendatacommunities.org/id/unitary-authority/warrington,FWB,CIN Team 3,31003,Transport SLA,300400,09/11/2022,5100515963,750,Redacted for personal data,108796
WARRINGTON BOROUGH COUNCIL,http://opendatacommunities.org/id/unitary-authority/warrington,FWB,Special Schools Transport,33208,Statemented - Special Unit Pupil Transpo,300750,09/11/2022,5100515964,4312.35,Warrington Cars,113774
WARRINGTON BOROUGH COUNCIL,http://opendatacommunities.org/id/unitary-authority/warrington,FWB,Special Schools Transport,33208,Statemented - Special Unit Pupil Transpo,300750,09/11/2022,5100515965,2449.88,Warrington Cars,113774
WARRINGTON BOROUGH COUNCIL,http://opendatacommunities.org/id/unitary-authority/warrington,FWB,Special Schools Transport,33208,Statemented - Special Unit Pupil Transpo,300750,09/11/2022,5100515966,2747.25,Warrington Cars,113774
WARRINGTON BOROUGH COUNCIL,http://opendatacommunities.org/id/unitary-authority/warrington,FWB,Transport - Adult Social Care,54950,Transport-Snad Cot,300600,09/11/2022,5100515967,520,Warrington Cars,113774
WARRINGTON BOROUGH COUNCIL,http://opendatacommunities.org/id/unitary-authority/warrington,FWB,Special Schools Transport,33208,Statemented - Special Unit Pupil Transpo,300750,09/11/2022,5100515968,2164.5,Warrington Cars,113774
WARRINGTON BOROUGH COUNCIL,http://opendatacommunities.org/id/unitary-authority/warrington,FWB,Special Schools Transport,33208,Statemented - Special Unit Pupil Transpo,300750,09/11/2022,5100515969,2389.27,Warrington Cars,113774
WARRINGTON BOROUGH COUNCIL,http://opendatacommunities.org/id/unitary-authority/warrington,FWB,Special Schools Transport,33208,Statemented - Special Unit Pupil Transpo,300750,09/11/2022,5100515970,2880,Warrington Cars,113774
WARRINGTON BOROUGH COUNCIL,http://opendatacommunities.org/id/unitary-authority/warrington,FWB,Special Schools Transport,33208,Statemented - Special Unit Pupil Transpo,300750,09/11/2022,5100515971,2648.52,Warrington Cars,113774
WARRINGTON BOROUGH COUNCIL,http://opendatacommunities.org/id/unitary-authority/warrington,FWB,Special Schools Transport,33208,Statemented - Special Unit Pupil Transpo,300750,09/11/2022,5100515972,2184,Warrington Cars,113774
WARRINGTON BOROUGH COUNCIL,http://opendatacommunities.org/id/unitary-authority/warrington,FWB,Special Schools Transport,33208,Statemented - Special Unit Pupil Transpo,300750,09/11/2022,5100515973,1864,Warrington Cars,113774
WARRINGTON BOROUGH COUNCIL,http://opendatacommunities.org/id/unitary-authority/warrington,FWB,Special Schools Transport,33208,Statemented - Special Unit Pupil Transpo,300750,09/11/2022,5100515974,1648.35,Warrington Cars,113774
WARRINGTON BOROUGH COUNCIL,http://opendatacommunities.org/id/unitary-authority/warrington,FWB,Special Schools Transport,33208,Statemented - Special Unit Pupil Transpo,300750,09/11/2022,5100515975,1116,Direct Taxis,101873
WARRINGTON BOROUGH COUNCIL,http://opendatacommunities.org/id/unitary-authority/warrington,FWB,Special Schools Transport,33208,Statemented - Special Unit Pupil Transpo,300750,09/11/2022,5100515976,1280,Direct Taxis,101873
WARRINGTON BOROUGH COUNCIL,http://opendatacommunities.org/id/unitary-authority/warrington,FWB,Special Schools Transport,33208,Statemented - Special Unit Pupil Transpo,300750,09/11/2022,5100515978,2240,Direct Taxis,101873
WARRINGTON BOROUGH COUNCIL,http://opendatacommunities.org/id/unitary-authority/warrington,FWB,Special Schools Transport,33208,Statemented - Special Unit Pupil Transpo,300750,09/11/2022,5100515979,1838.08,Direct Taxis,101873
WARRINGTON BOROUGH COUNCIL,http://opendatacommunities.org/id/unitary-authority/warrington,FWB,Special Schools Transport,33208,Statemented - Special Unit Pupil Transpo,300750,09/11/2022,5100515980,2649.6,Direct Taxis,101873
WARRINGTON BOROUGH COUNCIL,http://opendatacommunities.org/id/unitary-authority/warrington,FWB,Special Schools Transport,33208,Statemented - Special Unit Pupil Transpo,300750,09/11/2022,5100515981,2400,Direct Taxis,101873
WARRINGTON BOROUGH COUNCIL,http://opendatacommunities.org/id/unitary-authority/warrington,FWB,Special Schools Transport,33208,Statemented - Special Unit Pupil Transpo,300750,09/11/2022,5100515982,1920,Direct Taxis,101873
WARRINGTON BOROUGH COUNCIL,http://opendatacommunities.org/id/unitary-authority/warrington,FWB,Special Schools Transport,33208,Statemented - Special Unit Pupil Transpo,300750,09/11/2022,5100515984,1728,Direct Taxis,101873
WARRINGTON BOROUGH COUNCIL,http://opendatacommunities.org/id/unitary-authority/warrington,FWB,Children with Disabilities,31005,Statemented - Special Unit Pupil Transpo,300750,09/11/2022,5100515985,2230,Direct Taxis,101873
WARRINGTON BOROUGH COUNCIL,http://opendatacommunities.org/id/unitary-authority/warrington,ET0,Waste Recycling,41820,CRC Contract,530450,09/11/2022,5100515986,4356,Environmental Waste Controls Ltd,102474
WARRINGTON BOROUGH COUNCIL,http://opendatacommunities.org/id/unitary-authority/warrington,FWB,DSG Independent School Fees,32011,Fees (Including Agents Fees),441450,09/11/2022,5100515993,31947.08,The Priory,101736
WARRINGTON BOROUGH COUNCIL,http://opendatacommunities.org/id/unitary-authority/warrington,FWB,DSG Independent School Fees,32011,Fees (Including Agents Fees),441450,09/11/2022,5100515994,17152.52,The Priory,101736
WARRINGTON BOROUGH COUNCIL,http://opendatacommunities.org/id/unitary-authority/warrington,FWB,DSG Independent School Fees,32011,Fees (Including Agents Fees),441450,09/11/2022,5100515994,8379.76,The Priory,101736
WARRINGTON BOROUGH COUNCIL,http://opendatacommunities.org/id/unitary-authority/warrington,FWB,DSG Independent School Fees,32011,Fees (Including Agents Fees),441450,09/11/2022,5100515994,7986.77,The Priory,101736
WARRINGTON BOROUGH COUNCIL,http://opendatacommunities.org/id/unitary-authority/warrington,FWB,Special Schools Transport,33208,Statemented - Special Unit Pupil Transpo,300750,09/11/2022,5100515995,1738.72,Direct Taxis,101873
WARRINGTON BOROUGH COUNCIL,http://opendatacommunities.org/id/unitary-authority/warrington,FWB,Special Schools Transport,33208,Statemented - Special Unit Pupil Transpo,300750,09/11/2022,5100515997,919.1,Farrington Taxi Service,100067
WARRINGTON BOROUGH COUNCIL,http://opendatacommunities.org/id/unitary-authority/warrington,COR,Ukraine Resettlement,60308,Homes for Ukraine Thank You Payment,550490,10/11/2022,5100516040,1050,Redacted for personal data,424083
WARRINGTON BOROUGH COUNCIL,http://opendatacommunities.org/id/unitary-authority/warrington,ENP,Environment & Regeneration,82000,Materials,400500,10/11/2022,5100516047,400000,University Of Chester,104599
WARRINGTON BOROUGH COUNCIL,http://opendatacommunities.org/id/unitary-authority/warrington,PIO,People & Improvement Other,85002,Minor Adaptations<750,400700,10/11/2022,5100516049,1697,Acorn Building Projects Ltd,105557
WARRINGTON BOROUGH COUNCIL,http://opendatacommunities.org/id/unitary-authority/warrington,FWB,BCF - Equipment Store,54930,Hire Of Premises,220150,10/11/2022,5100516051,1200,Warrington & District Society for D,111699
WARRINGTON BOROUGH COUNCIL,http://opendatacommunities.org/id/unitary-authority/warrington,ET0,Transport Holding Account,41311,Veh Maint. Materials,300000,10/11/2022,5100516053,792,Warrington Timber Co Ltd,113705
WARRINGTON BOROUGH COUNCIL,http://opendatacommunities.org/id/unitary-authority/warrington,CYP,Childrens & Young People,81000,Specific Work,200200,10/11/2022,5100516055,77750.38,Allied Roofing & Construction Ltd,118878
WARRINGTON BOROUGH COUNCIL,http://opendatacommunities.org/id/unitary-authority/warrington,FWB,Homelessness,43650,Emergency Accommodation Allowance,550500,10/11/2022,5100516056,826,Weavers Close Limited,116929
WARRINGTON BOROUGH COUNCIL,http://opendatacommunities.org/id/unitary-authority/warrington,FWB,Director Adult Social Care,54000,Consult.& Prof. Serv,440000,10/11/2022,5100516058,4983.33,Trueman Change Management Limited,118971
WARRINGTON BOROUGH COUNCIL,http://opendatacommunities.org/id/unitary-authority/warrington,FWB,Contracts - SM Commissioning Team 1,55910,Drug Action,443600,10/11/2022,5100516062,129229.58,CGL,440139
WARRINGTON BOROUGH COUNCIL,http://opendatacommunities.org/id/unitary-authority/warrington,NEO,IT Projects,83003,Computer Hardware - Purchase,450700,10/11/2022,5100516065,76752.61,Dell,104659
WARRINGTON BOROUGH COUNCIL,http://opendatacommunities.org/id/unitary-authority/warrington,FWB,Contracts - SM Commissioning Team 1,55910,Public Health Contract Payments,540000,10/11/2022,5100516066,118873.58,Liverpool University Hospitals,100341
WARRINGTON BOROUGH COUNCIL,http://opendatacommunities.org/id/unitary-authority/warrington,ET0,Waste Disposal,41830,Residual Waste Disposal,530500,10/11/2022,5100516067,77365.54,Viridor Energy Limited,118588
WARRINGTON BOROUGH COUNCIL,http://opendatacommunities.org/id/unitary-authority/warrington,ET0,Waste Disposal,41830,Residual Waste Disposal,530500,10/11/2022,5100516069,77365.54,Viridor Energy Limited,118588
WARRINGTON BOROUGH COUNCIL,http://opendatacommunities.org/id/unitary-authority/warrington,ET0,Walton Estate,41430,Events Costs,490000,10/11/2022,5100516071,1750,The Baggage Trayne,109432
WARRINGTON BOROUGH COUNCIL,http://opendatacommunities.org/id/unitary-authority/warrington,ET0,Dropped Crossings,44211,Equipment Purchase & Contract,400000,10/11/2022,5100516074,3354.86,Tarmac,100489
WARRINGTON BOROUGH COUNCIL,http://opendatacommunities.org/id/unitary-authority/warrington,ET0,Engineering,44210,Equipment Purchase & Contract,400000,10/11/2022,5100516074,819.23,Tarmac,100489
WARRINGTON BOROUGH COUNCIL,http://opendatacommunities.org/id/unitary-authority/warrington,ET0,Or Rm C'way & F'way,44260,M.C.R.Flexible Cat1,530850,10/11/2022,5100516074,4537.3,Tarmac,100489
WARRINGTON BOROUGH COUNCIL,http://opendatacommunities.org/id/unitary-authority/warrington,ET0,Or Rm C'way & F'way,44260,Fct Cat1,530950,10/11/2022,5100516074,3904.03,Tarmac,100489
WARRINGTON BOROUGH COUNCIL,http://opendatacommunities.org/id/unitary-authority/warrington,ET0,Or Rm C'way & F'way,44260,Sign Maint Cat1,531300,10/11/2022,5100516074,751.76,Tarmac,100489
WARRINGTON BOROUGH COUNCIL,http://opendatacommunities.org/id/unitary-authority/warrington,ENO,Highways LTP,82004,Patching Cat2,532300,10/11/2022,5100516074,1685.32,Tarmac,100489
WARRINGTON BOROUGH COUNCIL,http://opendatacommunities.org/id/unitary-authority/warrington,ET0,Dropped Crossings,44211,Equipment Purchase & Contract,400000,10/11/2022,5100516075,4897.92,Tarmac,100489
WARRINGTON BOROUGH COUNCIL,http://opendatacommunities.org/id/unitary-authority/warrington,ET0,Engineering,44210,Equipment Purchase & Contract,400000,10/11/2022,5100516075,902.44,Tarmac,100489
WARRINGTON BOROUGH COUNCIL,http://opendatacommunities.org/id/unitary-authority/warrington,ET0,Or Rm C'way & F'way,44260,M.C.R.Flexible Cat1,530850,10/11/2022,5100516075,5551.84,Tarmac,100489
WARRINGTON BOROUGH COUNCIL,http://opendatacommunities.org/id/unitary-authority/warrington,ET0,Or Rm C'way & F'way,44260,Fct Cat1,530950,10/11/2022,5100516075,16075.35,Tarmac,100489
WARRINGTON BOROUGH COUNCIL,http://opendatacommunities.org/id/unitary-authority/warrington,ET0,Or Rm C'way & F'way,44260,Sign Maint Cat1,531300,10/11/2022,5100516075,2041.72,Tarmac,100489
WARRINGTON BOROUGH COUNCIL,http://opendatacommunities.org/id/unitary-authority/warrington,ET0,Or Rm C'way & F'way,44260,Street Naming,532000,10/11/2022,5100516075,2155.79,Tarmac,100489
WARRINGTON BOROUGH COUNCIL,http://opendatacommunities.org/id/unitary-authority/warrington,ET0,Engineering,44210,Equipment Purchase & Contract,400000,10/11/2022,5100516076,799.87,Tarmac,100489
WARRINGTON BOROUGH COUNCIL,http://opendatacommunities.org/id/unitary-authority/warrington,ET0,Highways Drainage,44270,Equipment Purchase & Contract,400000,10/11/2022,5100516077,20183.76,Tarmac,100489
WARRINGTON BOROUGH COUNCIL,http://opendatacommunities.org/id/unitary-authority/warrington,ET0,Or Rm C'way & F'way,44260,Clean Repair Drains,531000,10/11/2022,5100516077,12845,Tarmac,100489
WARRINGTON BOROUGH COUNCIL,http://opendatacommunities.org/id/unitary-authority/warrington,FWB,Special Schools Transport,33208,Statemented - Special Unit Pupil Transpo,300750,10/11/2022,5100516082,3730,Arrivals Star,101879
WARRINGTON BOROUGH COUNCIL,http://opendatacommunities.org/id/unitary-authority/warrington,ET0,Transport Holding Account,41311,Veh Maint. Materials,300000,10/11/2022,5100516086,1146.13,F R Sharrock Ltd,105122
WARRINGTON BOROUGH COUNCIL,http://opendatacommunities.org/id/unitary-authority/warrington,FWB,Homelessness,43650,Emergency Accommodation Allowance,550500,10/11/2022,5100516087,1248.46,Weavers Close Limited,116929
WARRINGTON BOROUGH COUNCIL,http://opendatacommunities.org/id/unitary-authority/warrington,FWB,Homelessness,43650,Emergency Accommodation Allowance,550500,10/11/2022,5100516090,1395,Weavers Close Limited,116929
WARRINGTON BOROUGH COUNCIL,http://opendatacommunities.org/id/unitary-authority/warrington,FWB,Inclusion,32207,Fees (Including Agents Fees),441450,10/11/2022,5100516103,1000,Lightbulb EMDR Ltd,118581
WARRINGTON BOROUGH COUNCIL,http://opendatacommunities.org/id/unitary-authority/warrington,NEP,Neighbourhood & Community Services,83000,Maintenance of Plant & Machinery,250050,10/11/2022,5100516105,84144.71,H Timmins Group Ltd,118708
WARRINGTON BOROUGH COUNCIL,http://opendatacommunities.org/id/unitary-authority/warrington,ET0,Trading Standards North West,41564,"Campaigns,  Projects and Events",491950,10/11/2022,5100516113,1697.25,Cumbria County Council,410023
WARRINGTON BOROUGH COUNCIL,http://opendatacommunities.org/id/unitary-authority/warrington,FWB,Special Schools Transport,33208,Statemented - Special Unit Pupil Transpo,300750,10/11/2022,5100516124,2058.88,Direct Taxis,101873
WARRINGTON BOROUGH COUNCIL,http://opendatacommunities.org/id/unitary-authority/warrington,FWB,Special Schools Transport,33208,Statemented - Special Unit Pupil Transpo,300750,10/11/2022,5100516126,1987.2,Direct Taxis,101873
WARRINGTON BOROUGH COUNCIL,http://opendatacommunities.org/id/unitary-authority/warrington,FWB,Special Schools Transport,33208,Mainstream Pupil Transport,300800,10/11/2022,5100516127,1805.12,Direct Taxis,101873
WARRINGTON BOROUGH COUNCIL,http://opendatacommunities.org/id/unitary-authority/warrington,COR,Industrial Estates,43570,Consult.& Prof. Serv,440000,10/11/2022,5100516128,1440,Morgan Williams Commerical LLP,107983
WARRINGTON BOROUGH COUNCIL,http://opendatacommunities.org/id/unitary-authority/warrington,FWB,Permanence staff teams,31021,Consult.& Prof. Serv,440000,10/11/2022,5100516129,575,Mersey Care NHS Foundation Trust,117539
WARRINGTON BOROUGH COUNCIL,http://opendatacommunities.org/id/unitary-authority/warrington,ET0,Waste Recycling,41820,MRF Recycling,530750,10/11/2022,5100516130,149198.64,Wsr Recycling Ltd,101196
WARRINGTON BOROUGH COUNCIL,http://opendatacommunities.org/id/unitary-authority/warrington,FWB,Prison Substance Misuse Services,53840,Drug Action,443600,10/11/2022,5100516131,94806.67,CGL,440139
WARRINGTON BOROUGH COUNCIL,http://opendatacommunities.org/id/unitary-authority/warrington,FWB,BCF - Equipment Store,54930,Equipment Purchase & Contract,400000,10/11/2022,5100516133,620.21,Mangar International Limited,104921
WARRINGTON BOROUGH COUNCIL,http://opendatacommunities.org/id/unitary-authority/warrington,ET0,Waste Recycling,41820,CRC Contract,530450,15/11/2022,5100516140,4356,Environmental Waste Controls Ltd,102474
WARRINGTON BOROUGH COUNCIL,http://opendatacommunities.org/id/unitary-authority/warrington,ET0,Waste Recycling,41820,CRC Contract,530450,15/11/2022,5100516140,60824.34,Environmental Waste Controls Ltd,102474
WARRINGTON BOROUGH COUNCIL,http://opendatacommunities.org/id/unitary-authority/warrington,COR,Concessionary Travel,60000,Travelling Allowance,330000,10/11/2022,5100516141,219810.35,Cheshire West And Chester,103357
WARRINGTON BOROUGH COUNCIL,http://opendatacommunities.org/id/unitary-authority/warrington,FWB,DSG Independent School Fees,32011,Fees (Including Agents Fees),441450,10/11/2022,5100516142,94546.94,Bright Futures Care Ltd,114579
WARRINGTON BOROUGH COUNCIL,http://opendatacommunities.org/id/unitary-authority/warrington,PIO,People & Improvement Other,85002,Minor Adaptations<750,400700,10/11/2022,5100516145,6925,The Excellent Ramp System,100407
WARRINGTON BOROUGH COUNCIL,http://opendatacommunities.org/id/unitary-authority/warrington,ET0,Surface Car Parks,44322,Equipment Purchase & Contract,400000,10/11/2022,5100516151,639.01,Flowbird Smart City UK Ltd,100854
WARRINGTON BOROUGH COUNCIL,http://opendatacommunities.org/id/unitary-authority/warrington,ET0,Academy Way Pay & Display Car Park,44327,Equipment Purchase & Contract,400000,10/11/2022,5100516151,1278.02,Flowbird Smart City UK Ltd,100854
WARRINGTON BOROUGH COUNCIL,http://opendatacommunities.org/id/unitary-authority/warrington,FWB,Divert / Health Project,33307,Consult.& Prof. Serv,440000,10/11/2022,5100516154,2660,G-Map Services,106244
WARRINGTON BOROUGH COUNCIL,http://opendatacommunities.org/id/unitary-authority/warrington,RSC,Translation Service,52202,Agency Supply - GF,180000,10/11/2022,5100516162,9138.4,DA Languages Ltd,115660
WARRINGTON BOROUGH COUNCIL,http://opendatacommunities.org/id/unitary-authority/warrington,ET0,Crematorium,41411,Consult.& Prof. Serv,440000,10/11/2022,5100516165,2970,Redacted for personal data,100166
WARRINGTON BOROUGH COUNCIL,http://opendatacommunities.org/id/unitary-authority/warrington,ENO,Highways LTP,82004,Consult.& Prof. Serv,440000,10/11/2022,5100516182,46202,Mott Macdonald Ltd,104950
WARRINGTON BOROUGH COUNCIL,http://opendatacommunities.org/id/unitary-authority/warrington,CYP,Primary,81001,Specific Work,200200,10/11/2022,5100516183,215117.05,John Turner and Sons Ltd,108250
WARRINGTON BOROUGH COUNCIL,http://opendatacommunities.org/id/unitary-authority/warrington,FWB,Special Schools Transport,33208,Statemented - Special Unit Pupil Transpo,300750,10/11/2022,5100516185,1600,Direct Taxis,101873
WARRINGTON BOROUGH COUNCIL,http://opendatacommunities.org/id/unitary-authority/warrington,FWB,Special Schools Transport,33208,Statemented - Special Unit Pupil Transpo,300750,10/11/2022,5100516186,1954.08,Direct Taxis,101873
WARRINGTON BOROUGH COUNCIL,http://opendatacommunities.org/id/unitary-authority/warrington,FWB,Special Schools Transport,33208,Statemented - Special Unit Pupil Transpo,300750,10/11/2022,5100516189,2080,Direct Taxis,101873
WARRINGTON BOROUGH COUNCIL,http://opendatacommunities.org/id/unitary-authority/warrington,FWB,Special Schools Transport,33208,Statemented - Special Unit Pupil Transpo,300750,10/11/2022,5100516191,2336,Direct Taxis,101873
WARRINGTON BOROUGH COUNCIL,http://opendatacommunities.org/id/unitary-authority/warrington,FWB,Special Schools Transport,33208,Statemented - Special Unit Pupil Transpo,300750,10/11/2022,5100516194,2145,Direct Taxis,101873
WARRINGTON BOROUGH COUNCIL,http://opendatacommunities.org/id/unitary-authority/warrington,FWB,Special Schools Transport,33208,Statemented - Special Unit Pupil Transpo,300750,10/11/2022,5100516212,1568,PR CARS,118263
WARRINGTON BOROUGH COUNCIL,http://opendatacommunities.org/id/unitary-authority/warrington,FWB,Special Schools Transport,33208,Statemented - Special Unit Pupil Transpo,300750,10/11/2022,5100516213,3360,Raza Taxis,105056
WARRINGTON BOROUGH COUNCIL,http://opendatacommunities.org/id/unitary-authority/warrington,ET0,Trading Standards North West,41564,"Campaigns,  Projects and Events",491950,10/11/2022,5100516221,1769.04,Rochdale Metropolitan Borough Counc,410032
WARRINGTON BOROUGH COUNCIL,http://opendatacommunities.org/id/unitary-authority/warrington,FWB,Special Schools Transport,33208,Statemented - Special Unit Pupil Transpo,300750,10/11/2022,5100516223,2460.6,Direct Taxis,101873
WARRINGTON BOROUGH COUNCIL,http://opendatacommunities.org/id/unitary-authority/warrington,FWB,Special Schools Transport,33208,Transport SLA,300400,10/11/2022,5100516224,1210,Andys Bus Company,100654
WARRINGTON BOROUGH COUNCIL,http://opendatacommunities.org/id/unitary-authority/warrington,NEP,Neighbourhood & Community Services,83000,Materials,400500,11/11/2022,5100516268,5800,The Design Concept Ltd,116305
WARRINGTON BOROUGH COUNCIL,http://opendatacommunities.org/id/unitary-authority/warrington,NEP,Neighbourhood & Community Services,83000,Materials,400500,11/11/2022,5100516268,4440,The Design Concept Ltd,116305
WARRINGTON BOROUGH COUNCIL,http://opendatacommunities.org/id/unitary-authority/warrington,NEP,Neighbourhood & Community Services,83000,Materials,400500,11/11/2022,5100516269,3350,The Design Concept Ltd,116305
WARRINGTON BOROUGH COUNCIL,http://opendatacommunities.org/id/unitary-authority/warrington,COR,Concessionary Travel,60000,Travelling Allowance,330000,11/11/2022,5100516271,235864.99,Cheshire West And Chester,103357
WARRINGTON BOROUGH COUNCIL,http://opendatacommunities.org/id/unitary-authority/warrington,FWB,Special Schools Transport,33208,Statemented - Special Unit Pupil Transpo,300750,11/11/2022,5100516283,1008,Abba Cars,105302
WARRINGTON BOROUGH COUNCIL,http://opendatacommunities.org/id/unitary-authority/warrington,FWB,Special Schools Transport,33208,Statemented - Special Unit Pupil Transpo,300750,11/11/2022,5100516284,1248.75,Premier Travel,100727
WARRINGTON BOROUGH COUNCIL,http://opendatacommunities.org/id/unitary-authority/warrington,FWB,Special Schools Transport,33208,Statemented - Special Unit Pupil Transpo,300750,11/11/2022,5100516285,1831.5,Premier Travel,100727
WARRINGTON BOROUGH COUNCIL,http://opendatacommunities.org/id/unitary-authority/warrington,FWB,Special Schools Transport,33208,Statemented - Special Unit Pupil Transpo,300750,11/11/2022,5100516286,2240,Direct Taxis,101873
WARRINGTON BOROUGH COUNCIL,http://opendatacommunities.org/id/unitary-authority/warrington,FWB,Special Schools Transport,33208,Statemented - Special Unit Pupil Transpo,300750,11/11/2022,5100516287,1116,Direct Taxis,101873
WARRINGTON BOROUGH COUNCIL,http://opendatacommunities.org/id/unitary-authority/warrington,FWB,Transport - Adult Social Care,54950,Transport-Snad Cot,300600,11/11/2022,5100516288,1743,Redacted for personal data,112712
WARRINGTON BOROUGH COUNCIL,http://opendatacommunities.org/id/unitary-authority/warrington,FWB,Special Schools Transport,33208,Statemented - Special Unit Pupil Transpo,300750,11/11/2022,5100516289,676,Redacted for personal data,104639
WARRINGTON BOROUGH COUNCIL,http://opendatacommunities.org/id/unitary-authority/warrington,FWB,Special Schools Transport,33208,Statemented - Special Unit Pupil Transpo,300750,11/11/2022,5100516292,1092,PR CARS,118263
WARRINGTON BOROUGH COUNCIL,http://opendatacommunities.org/id/unitary-authority/warrington,FWB,Transport - Adult Social Care,54950,Transport-Snad Cot,300600,11/11/2022,5100516293,7334,Redacted for personal data,104639
WARRINGTON BOROUGH COUNCIL,http://opendatacommunities.org/id/unitary-authority/warrington,FWB,BCF - Equipment Store,54930,Equipment Purchase & Contract,400000,14/11/2022,5100516459,528.96,Cefndy Enterprises,104660
WARRINGTON BOROUGH COUNCIL,http://opendatacommunities.org/id/unitary-authority/warrington,ET0,Trading Standards North West,41564,"Campaigns,  Projects and Events",491950,16/11/2022,5100516463,990,Wagtail UK Limited,108156
WARRINGTON BOROUGH COUNCIL,http://opendatacommunities.org/id/unitary-authority/warrington,DG0,Site Management,43530,Grounds Maintenance - External,280000,14/11/2022,5100516464,2500,B & K Landscapes,105448
WARRINGTON BOROUGH COUNCIL,http://opendatacommunities.org/id/unitary-authority/warrington,RSC,ICT Centralised Budget,23100,Computer Software - Maintenance,450850,14/11/2022,5100516465,29440,Zodiac Media Ltd,118439
WARRINGTON BOROUGH COUNCIL,http://opendatacommunities.org/id/unitary-authority/warrington,RSC,Civic,11440,"Campaigns,  Projects and Events",491950,14/11/2022,5100516468,595,Acts Sound & Lighting,104450
WARRINGTON BOROUGH COUNCIL,http://opendatacommunities.org/id/unitary-authority/warrington,FWB,BCF - Equipment Store,54930,Equipment Purchase & Contract,400000,14/11/2022,5100516469,870,Healthcare Matters,110751
WARRINGTON BOROUGH COUNCIL,http://opendatacommunities.org/id/unitary-authority/warrington,ET0,Private Sector Hsg.,43660,Environmental Works,531050,14/11/2022,5100516477,2448,Acorn Building Projects Ltd,105557
WARRINGTON BOROUGH COUNCIL,http://opendatacommunities.org/id/unitary-authority/warrington,DG0,Site Management,43530,Grounds Maintenance - External,280000,14/11/2022,5100516483,2500,B & K Landscapes,105448
WARRINGTON BOROUGH COUNCIL,http://opendatacommunities.org/id/unitary-authority/warrington,ET0,Cemeteries,41410,Materials,400500,14/11/2022,5100516484,3500,B & K Landscapes,105448
WARRINGTON BOROUGH COUNCIL,http://opendatacommunities.org/id/unitary-authority/warrington,FWB,Special Schools Transport,33208,Mainstream Pupil Transport,300800,14/11/2022,5100516496,999,Redacted for personal data,101504
WARRINGTON BOROUGH COUNCIL,http://opendatacommunities.org/id/unitary-authority/warrington,FWB,Homelessness,43650,Emergency Accommodation Allowance,550500,14/11/2022,5100516498,7245,DANL Limited,116459
WARRINGTON BOROUGH COUNCIL,http://opendatacommunities.org/id/unitary-authority/warrington,NEO,IT Projects,83003,Computer Hardware - Purchase,450700,14/11/2022,5100516499,2051,Daisy Corp Services Trading Ltd,107866
WARRINGTON BOROUGH COUNCIL,http://opendatacommunities.org/id/unitary-authority/warrington,FWB,Orford Community Hub,51243,ICT Comms - Device Maintenance,450450,14/11/2022,5100516528,730.16,CDN Networks,101189
WARRINGTON BOROUGH COUNCIL,http://opendatacommunities.org/id/unitary-authority/warrington,ET0,Golf Course Client,41432,Stationery,430150,15/11/2022,5100516529,6722.85,Golfstorehouse Ltd,108916
WARRINGTON BOROUGH COUNCIL,http://opendatacommunities.org/id/unitary-authority/warrington,ET0,Crematorium,41411,Grounds Maintenance - External,280000,14/11/2022,5100516532,2410.2,Roy Wadsworth Carpets,106331
WARRINGTON BOROUGH COUNCIL,http://opendatacommunities.org/id/unitary-authority/warrington,FWB,Special Schools Transport,33208,Statemented - Special Unit Pupil Transpo,300750,14/11/2022,5100516534,2655.2,Hampton Coaches,104768
WARRINGTON BOROUGH COUNCIL,http://opendatacommunities.org/id/unitary-authority/warrington,ET0,Facilities Management,41422,Materials,400500,14/11/2022,5100516535,1513.79,Safeguard Nw Ltd,105412
WARRINGTON BOROUGH COUNCIL,http://opendatacommunities.org/id/unitary-authority/warrington,ET0,Transport Holding Account,41311,Vehicle Hire Charges,320000,29/11/2022,5100516552,3121.08,P S D Vehicle Rental,100551
WARRINGTON BOROUGH COUNCIL,http://opendatacommunities.org/id/unitary-authority/warrington,FWB,Homelessness,43650,Emergency Accommodation Allowance,550500,14/11/2022,5100516555,1773.33,The Patten Arms Hotel,115465
WARRINGTON BOROUGH COUNCIL,http://opendatacommunities.org/id/unitary-authority/warrington,FWB,Homelessness,43650,Emergency Accommodation Allowance,550500,14/11/2022,5100516568,641.67,Villaggio Hotel,108074
WARRINGTON BOROUGH COUNCIL,http://opendatacommunities.org/id/unitary-authority/warrington,FWB,Special Schools Transport,33208,Transport SLA,300400,15/11/2022,5100516616,1210,Andys Bus Company,100654
WARRINGTON BOROUGH COUNCIL,http://opendatacommunities.org/id/unitary-authority/warrington,FWB,Special Schools Transport,33208,Statemented - Special Unit Pupil Transpo,300750,15/11/2022,5100516617,1280,Redacted for personal data,118326
WARRINGTON BOROUGH COUNCIL,http://opendatacommunities.org/id/unitary-authority/warrington,FWB,Special Schools Transport,33208,Statemented - Special Unit Pupil Transpo,300750,15/11/2022,5100516618,1280,Redacted for personal data,118326
WARRINGTON BOROUGH COUNCIL,http://opendatacommunities.org/id/unitary-authority/warrington,FWB,Special Schools Transport,33208,Statemented - Special Unit Pupil Transpo,300750,15/11/2022,5100516619,990,Redacted for personal data,118326
WARRINGTON BOROUGH COUNCIL,http://opendatacommunities.org/id/unitary-authority/warrington,NEP,Neighbourhood & Community Services,83000,Materials,400500,15/11/2022,5100516620,3090,The Design Concept Ltd,116305
WARRINGTON BOROUGH COUNCIL,http://opendatacommunities.org/id/unitary-authority/warrington,NEP,Neighbourhood & Community Services,83000,Materials,400500,15/11/2022,5100516620,2990,The Design Concept Ltd,116305
WARRINGTON BOROUGH COUNCIL,http://opendatacommunities.org/id/unitary-authority/warrington,NEP,Neighbourhood & Community Services,83000,Materials,400500,15/11/2022,5100516620,2385,The Design Concept Ltd,116305
WARRINGTON BOROUGH COUNCIL,http://opendatacommunities.org/id/unitary-authority/warrington,NEP,Neighbourhood & Community Services,83000,Materials,400500,15/11/2022,5100516620,2000,The Design Concept Ltd,116305
WARRINGTON BOROUGH COUNCIL,http://opendatacommunities.org/id/unitary-authority/warrington,NEP,Neighbourhood & Community Services,83000,Materials,400500,15/11/2022,5100516620,1992,The Design Concept Ltd,116305
WARRINGTON BOROUGH COUNCIL,http://opendatacommunities.org/id/unitary-authority/warrington,NEP,Neighbourhood & Community Services,83000,Materials,400500,15/11/2022,5100516620,1380,The Design Concept Ltd,116305
WARRINGTON BOROUGH COUNCIL,http://opendatacommunities.org/id/unitary-authority/warrington,NEP,Neighbourhood & Community Services,83000,Materials,400500,15/11/2022,5100516620,1360,The Design Concept Ltd,116305
WARRINGTON BOROUGH COUNCIL,http://opendatacommunities.org/id/unitary-authority/warrington,NEP,Neighbourhood & Community Services,83000,Materials,400500,15/11/2022,5100516620,1008,The Design Concept Ltd,116305
WARRINGTON BOROUGH COUNCIL,http://opendatacommunities.org/id/unitary-authority/warrington,NEP,Neighbourhood & Community Services,83000,Materials,400500,15/11/2022,5100516620,730,The Design Concept Ltd,116305
WARRINGTON BOROUGH COUNCIL,http://opendatacommunities.org/id/unitary-authority/warrington,NEP,Neighbourhood & Community Services,83000,Materials,400500,15/11/2022,5100516620,716,The Design Concept Ltd,116305
WARRINGTON BOROUGH COUNCIL,http://opendatacommunities.org/id/unitary-authority/warrington,NEP,Neighbourhood & Community Services,83000,Materials,400500,15/11/2022,5100516620,700,The Design Concept Ltd,116305
WARRINGTON BOROUGH COUNCIL,http://opendatacommunities.org/id/unitary-authority/warrington,FWB,Special Schools Transport,33208,Statemented - Special Unit Pupil Transpo,300750,15/11/2022,5100516621,1172.67,Redacted for personal data,115134
WARRINGTON BOROUGH COUNCIL,http://opendatacommunities.org/id/unitary-authority/warrington,PIO,People & Improvement Other,85002,Minor Adaptations<750,400700,15/11/2022,5100516629,3380,The Excellent Ramp System,100407
WARRINGTON BOROUGH COUNCIL,http://opendatacommunities.org/id/unitary-authority/warrington,ET0,Local Bus Contracts,44430,Payments To Operator,530150,15/11/2022,5100516633,4810,Warrington Borough Transport Ltd,105226
WARRINGTON BOROUGH COUNCIL,http://opendatacommunities.org/id/unitary-authority/warrington,FWB,Special Schools Transport,33208,Statemented - Special Unit Pupil Transpo,300750,15/11/2022,5100516634,910,Redacted for personal data,117512
WARRINGTON BOROUGH COUNCIL,http://opendatacommunities.org/id/unitary-authority/warrington,ET0,Bus Interchange,44460,Security Systems,250000,15/11/2022,5100516642,9972.34,Step up Security Services Ltd,116851
WARRINGTON BOROUGH COUNCIL,http://opendatacommunities.org/id/unitary-authority/warrington,FWB,DSG - Medical Needs,32002,Eotas Pupil Funding,490350,15/11/2022,5100516669,7426.9,TEN (The Education Network),118974
WARRINGTON BOROUGH COUNCIL,http://opendatacommunities.org/id/unitary-authority/warrington,DG0,Local Plan,43445,Consult.& Prof. Serv,440000,15/11/2022,5100516670,13815.74,G L Hearn Limited,114557
WARRINGTON BOROUGH COUNCIL,http://opendatacommunities.org/id/unitary-authority/warrington,PIO,People & Improvement Other,85002,Lifts from Stock,400850,15/11/2022,5100516672,995.94,Prism Medical UK,108616
WARRINGTON BOROUGH COUNCIL,http://opendatacommunities.org/id/unitary-authority/warrington,ET0,Social Housing,40085,Consult.& Prof. Serv,440000,15/11/2022,5100516673,1300,Goodman Masson Limited,118861
WARRINGTON BOROUGH COUNCIL,http://opendatacommunities.org/id/unitary-authority/warrington,FWB,Homelessness,43650,Emergency Accommodation Allowance,550500,15/11/2022,5100516678,1395,Weavers Close Limited,116929
WARRINGTON BOROUGH COUNCIL,http://opendatacommunities.org/id/unitary-authority/warrington,RSC,Printing & Graphics,23040,Materials,400500,15/11/2022,5100516681,595,WL Coller Ltd,106299
WARRINGTON BOROUGH COUNCIL,http://opendatacommunities.org/id/unitary-authority/warrington,RSC,Printing & Graphics,23040,Materials,400500,15/11/2022,5100516682,595,WL Coller Ltd,106299
WARRINGTON BOROUGH COUNCIL,http://opendatacommunities.org/id/unitary-authority/warrington,ET0,On Street Car Parking,44323,Events on the Highway,531350,15/11/2022,5100516687,11058.43,NSL Services Group,113509
WARRINGTON BOROUGH COUNCIL,http://opendatacommunities.org/id/unitary-authority/warrington,ET0,The Forge Car Park Stockton Heath,44324,Car Park Attendants,530250,15/11/2022,5100516688,1258.09,NSL Services Group,113509
WARRINGTON BOROUGH COUNCIL,http://opendatacommunities.org/id/unitary-authority/warrington,ET0,On Street Car Parking,44323,Car Park Attendants,530250,15/11/2022,5100516688,34168.92,NSL Services Group,113509
WARRINGTON BOROUGH COUNCIL,http://opendatacommunities.org/id/unitary-authority/warrington,ET0,Surface Car Parks,44322,Car Park Attendants,530250,15/11/2022,5100516688,9196.84,NSL Services Group,113509
WARRINGTON BOROUGH COUNCIL,http://opendatacommunities.org/id/unitary-authority/warrington,ET0,Time Square MSCP,44321,Car Park Attendants,530250,15/11/2022,5100516688,27467.45,NSL Services Group,113509
WARRINGTON BOROUGH COUNCIL,http://opendatacommunities.org/id/unitary-authority/warrington,ET0,Warrington West Station Car Park,44326,Car Park Attendants,530250,15/11/2022,5100516688,544.13,NSL Services Group,113509
WARRINGTON BOROUGH COUNCIL,http://opendatacommunities.org/id/unitary-authority/warrington,ET0,Waste Recycling,41820,Green Waste Treatment,530800,15/11/2022,5100516697,14374.26,The Greener Gardening Company,104283
WARRINGTON BOROUGH COUNCIL,http://opendatacommunities.org/id/unitary-authority/warrington,ET0,Waste Recycling,41820,CRC Contract,530450,15/11/2022,5100516698,1954.48,The Greener Gardening Company,104283
WARRINGTON BOROUGH COUNCIL,http://opendatacommunities.org/id/unitary-authority/warrington,FWB,Homelessness,43650,Emergency Accommodation Allowance,550500,15/11/2022,5100516699,641.78,The Patten Arms Hotel,115465
WARRINGTON BOROUGH COUNCIL,http://opendatacommunities.org/id/unitary-authority/warrington,FWB,Home to School Transport,33210,Mainstream Pupil Transport,300800,15/11/2022,5100516710,1200,Redacted for personal data,118326
WARRINGTON BOROUGH COUNCIL,http://opendatacommunities.org/id/unitary-authority/warrington,ET0,Public Health Licensing,41550,Consult.& Prof. Serv,440000,16/11/2022,5100516717,1480,Buckingham Futures,118389
WARRINGTON BOROUGH COUNCIL,http://opendatacommunities.org/id/unitary-authority/warrington,ET0,Transport Holding Account,41311,Accidental Damage - Sub Contractors,301200,15/11/2022,5100516719,3021.45,Inchcape Warrington Toyota / Lexus,119022
WARRINGTON BOROUGH COUNCIL,http://opendatacommunities.org/id/unitary-authority/warrington,FWB,BCF - Equipment Store,54930,Equipment Purchase & Contract,400000,16/11/2022,5100516768,5679,Neater Solutions,101908
WARRINGTON BOROUGH COUNCIL,http://opendatacommunities.org/id/unitary-authority/warrington,FWB,Effective Practice,33300,Agency Supply - GF,180000,16/11/2022,5100516777,155913.04,Cheshire East Council,118547
WARRINGTON BOROUGH COUNCIL,http://opendatacommunities.org/id/unitary-authority/warrington,ET0,Schools (Street Scene),41733,Maintenance Work - Sub Contractors,301150,16/11/2022,5100516782,2624.4,Griffin Contracting Services,114529
WARRINGTON BOROUGH COUNCIL,http://opendatacommunities.org/id/unitary-authority/warrington,FWB,BCF - Padgate House,54760,Agency Supply - GF,180000,16/11/2022,5100516783,657.56,Bluetree Healthcare Limited,117310
WARRINGTON BOROUGH COUNCIL,http://opendatacommunities.org/id/unitary-authority/warrington,CYP,Childrens & Young People,81000,Consult.& Prof. Serv,440000,16/11/2022,5100516786,700,Staincliffe Jones Ltd,116865
WARRINGTON BOROUGH COUNCIL,http://opendatacommunities.org/id/unitary-authority/warrington,FWB,Virtual School,31112,Looked after children in Warrington,301000,16/11/2022,5100516797,720,Great Sankey High Academy School,400206
WARRINGTON BOROUGH COUNCIL,http://opendatacommunities.org/id/unitary-authority/warrington,NEO,IT Projects,83003,Computer Hardware - Purchase,450700,16/11/2022,5100516803,3810,Go2 Telecom Ltd,101530
WARRINGTON BOROUGH COUNCIL,http://opendatacommunities.org/id/unitary-authority/warrington,RSC,ICT Projects,23300,Computer Hardware - Purchase,450700,16/11/2022,5100516803,3810,Go2 Telecom Ltd,101530
WARRINGTON BOROUGH COUNCIL,http://opendatacommunities.org/id/unitary-authority/warrington,ET0,Trees & Woodland Services,41421,Materials,400500,16/11/2022,5100516805,3400,Rainfords Christmas Tree LTD,118015
WARRINGTON BOROUGH COUNCIL,http://opendatacommunities.org/id/unitary-authority/warrington,PIO,People & Improvement Other,85002,Lifts from Stock,400850,16/11/2022,5100516813,1659.98,Prism Medical UK,108616
WARRINGTON BOROUGH COUNCIL,http://opendatacommunities.org/id/unitary-authority/warrington,FWB,Prison Substance Misuse Services,53840,Drug Action,443600,16/11/2022,5100516818,1046.61,MOJ Shared Service Centre,102024
WARRINGTON BOROUGH COUNCIL,http://opendatacommunities.org/id/unitary-authority/warrington,FWB,BCF - Equipment Store,54930,Equipment Purchase & Contract,400000,16/11/2022,5100516820,1757.72,Prism Medical UK,108616
WARRINGTON BOROUGH COUNCIL,http://opendatacommunities.org/id/unitary-authority/warrington,ENO,Priority Infrastructure,82009,Consult.& Prof. Serv,440000,16/11/2022,5100516821,623.5,TLT Solicitors,115669
WARRINGTON BOROUGH COUNCIL,http://opendatacommunities.org/id/unitary-authority/warrington,FWB,Contracts - SM Commissioning Team 1,55910,Drug Action,443600,16/11/2022,5100516830,19827.86,NHS Business Services Authority,113435
WARRINGTON BOROUGH COUNCIL,http://opendatacommunities.org/id/unitary-authority/warrington,FWB,Contracts - SM Commissioning Team 1,55910,Drug Action,443600,16/11/2022,5100516839,1855,Turning Point Ltd,100371
WARRINGTON BOROUGH COUNCIL,http://opendatacommunities.org/id/unitary-authority/warrington,FWB,Special Schools Transport,33208,Statemented - Special Unit Pupil Transpo,300750,17/11/2022,5100516851,2240,Arrivals Star,101879
WARRINGTON BOROUGH COUNCIL,http://opendatacommunities.org/id/unitary-authority/warrington,FWB,Special Schools Transport,33208,Statemented - Special Unit Pupil Transpo,300750,17/11/2022,5100516852,2016,PR CARS,118263
WARRINGTON BOROUGH COUNCIL,http://opendatacommunities.org/id/unitary-authority/warrington,ET0,Local Bus Contracts,44430,Payments To Operator,530150,17/11/2022,5100516853,732.48,Warrington Borough Transport Ltd,105226
WARRINGTON BOROUGH COUNCIL,http://opendatacommunities.org/id/unitary-authority/warrington,ET0,Local Bus Contracts,44430,Payments To Operator,530150,17/11/2022,5100516854,1512.5,Warrington Borough Transport Ltd,105226
WARRINGTON BOROUGH COUNCIL,http://opendatacommunities.org/id/unitary-authority/warrington,ET0,Local Bus Contracts,44430,Payments To Operator,530150,17/11/2022,5100516855,728.58,Warrington Borough Transport Ltd,105226
WARRINGTON BOROUGH COUNCIL,http://opendatacommunities.org/id/unitary-authority/warrington,ET0,Local Bus Contracts,44430,Payments To Operator,530150,17/11/2022,5100516856,2150.42,Warrington Borough Transport Ltd,105226
WARRINGTON BOROUGH COUNCIL,http://opendatacommunities.org/id/unitary-authority/warrington,ET0,Local Bus Contracts,44430,Payments To Operator,530150,17/11/2022,5100516858,4083.33,Warrington Borough Transport Ltd,105226
WARRINGTON BOROUGH COUNCIL,http://opendatacommunities.org/id/unitary-authority/warrington,ET0,Local Bus Contracts,44430,Payments To Operator,530150,17/11/2022,5100516859,1887.67,Warrington Borough Transport Ltd,105226
WARRINGTON BOROUGH COUNCIL,http://opendatacommunities.org/id/unitary-authority/warrington,FWB,Test & Trace Support Grant,55050,Supplies & Services - Covid 19,499919,16/11/2022,5100516861,13019.95,NHS Cheshire & Merseyside ICB,118981
WARRINGTON BOROUGH COUNCIL,http://opendatacommunities.org/id/unitary-authority/warrington,FWB,Contracts - SM Commissioning Team 1,55910,Public Health Contract Payments,540000,16/11/2022,5100516861,30332.75,NHS Cheshire & Merseyside ICB,118981
WARRINGTON BOROUGH COUNCIL,http://opendatacommunities.org/id/unitary-authority/warrington,CYP,Childrens & Young People,81000,Specific Work,200200,17/11/2022,5100516917,6391.34,Allied Roofing & Construction Ltd,118878
WARRINGTON BOROUGH COUNCIL,http://opendatacommunities.org/id/unitary-authority/warrington,FWB,Virtual School,31112,Looked after children in Warrington,301000,17/11/2022,5100516919,1330.76,Beamont Collegiate Academy,111598
WARRINGTON BOROUGH COUNCIL,http://opendatacommunities.org/id/unitary-authority/warrington,ET0,Local Bus Contracts,44430,Payments To Operator,530150,17/11/2022,5100516920,1697.41,Warrington Borough Transport Ltd,105226
WARRINGTON BOROUGH COUNCIL,http://opendatacommunities.org/id/unitary-authority/warrington,FWB,Special Schools Transport,33208,Statemented - Special Unit Pupil Transpo,300750,17/11/2022,5100516921,2560,Arrivals Star,101879
WARRINGTON BOROUGH COUNCIL,http://opendatacommunities.org/id/unitary-authority/warrington,FWB,Special Schools Transport,33208,Statemented - Special Unit Pupil Transpo,300750,17/11/2022,5100516922,1920,Arrivals Star,101879
WARRINGTON BOROUGH COUNCIL,http://opendatacommunities.org/id/unitary-authority/warrington,FWB,Special Schools Transport,33208,Statemented - Special Unit Pupil Transpo,300750,17/11/2022,5100516923,800,Arrivals Star,101879
WARRINGTON BOROUGH COUNCIL,http://opendatacommunities.org/id/unitary-authority/warrington,FWB,Special Schools Transport,33208,Statemented - Special Unit Pupil Transpo,300750,17/11/2022,5100516924,1920,Arrivals Star,101879
WARRINGTON BOROUGH COUNCIL,http://opendatacommunities.org/id/unitary-authority/warrington,FWB,Special Schools Transport,33208,Statemented - Special Unit Pupil Transpo,300750,17/11/2022,5100516925,1692,Arrivals Star,101879
WARRINGTON BOROUGH COUNCIL,http://opendatacommunities.org/id/unitary-authority/warrington,FWB,Special Schools Transport,33208,Statemented - Special Unit Pupil Transpo,300750,17/11/2022,5100516926,3200,Arrivals Star,101879
WARRINGTON BOROUGH COUNCIL,http://opendatacommunities.org/id/unitary-authority/warrington,FWB,Special Schools Transport,33208,Statemented - Special Unit Pupil Transpo,300750,17/11/2022,5100516927,840,Arrivals Star,101879
WARRINGTON BOROUGH COUNCIL,http://opendatacommunities.org/id/unitary-authority/warrington,FWB,Special Schools Transport,33208,Statemented - Special Unit Pupil Transpo,300750,17/11/2022,5100516928,1125,Arrivals Star,101879
WARRINGTON BOROUGH COUNCIL,http://opendatacommunities.org/id/unitary-authority/warrington,FWB,Special Schools Transport,33208,Statemented - Special Unit Pupil Transpo,300750,17/11/2022,5100516929,1920,Arrivals Star,101879
WARRINGTON BOROUGH COUNCIL,http://opendatacommunities.org/id/unitary-authority/warrington,ET0,Local Bus Contracts,44430,Payments To Operator,530150,17/11/2022,5100516930,2500,Warrington Borough Transport Ltd,105226
WARRINGTON BOROUGH COUNCIL,http://opendatacommunities.org/id/unitary-authority/warrington,ENO,Priority Infrastructure,82009,Environmental Works,531050,17/11/2022,5100516942,5657.19,BT,104542
WARRINGTON BOROUGH COUNCIL,http://opendatacommunities.org/id/unitary-authority/warrington,NEO,IT Projects,83003,Computer Hardware - Purchase,450700,17/11/2022,5100516943,132419.2,Dell,104659
WARRINGTON BOROUGH COUNCIL,http://opendatacommunities.org/id/unitary-authority/warrington,NEO,IT Projects,83003,Computer Hardware - Purchase,450700,17/11/2022,5100516944,76752.61,Dell,104659
WARRINGTON BOROUGH COUNCIL,http://opendatacommunities.org/id/unitary-authority/warrington,ET0,Trading Standards North West,41564,"Campaigns,  Projects and Events",491950,17/11/2022,5100516949,22667.65,Cumbria County Council,410023
WARRINGTON BOROUGH COUNCIL,http://opendatacommunities.org/id/unitary-authority/warrington,ET0,Social Housing,40085,Consult.& Prof. Serv,440000,17/11/2022,5100516956,1300,Goodman Masson Limited,118861
WARRINGTON BOROUGH COUNCIL,http://opendatacommunities.org/id/unitary-authority/warrington,FWB,Homelessness,43650,Emergency Accommodation Allowance,550500,17/11/2022,5100516963,910,DANL Limited,116459
WARRINGTON BOROUGH COUNCIL,http://opendatacommunities.org/id/unitary-authority/warrington,PIO,People & Improvement Other,85002,Minor Adaptations<750,400700,17/11/2022,5100516972,1080,Forshaw and Sons Ltd,111428
WARRINGTON BOROUGH COUNCIL,http://opendatacommunities.org/id/unitary-authority/warrington,ET0,Trading Standards North West,41564,"Campaigns,  Projects and Events",491950,17/11/2022,5100516973,8766,Cheshire West And Chester,103357
WARRINGTON BOROUGH COUNCIL,http://opendatacommunities.org/id/unitary-authority/warrington,ET0,Facilities Management,41422,Materials,400500,17/11/2022,5100516975,4851,Independent Playground Inspections,104815
WARRINGTON BOROUGH COUNCIL,http://opendatacommunities.org/id/unitary-authority/warrington,ET0,Recreation & Games,41431,Equipment Purchase & Contract,400000,17/11/2022,5100516983,1153.45,M C & M A Stewart Haulage Ltd,105159
WARRINGTON BOROUGH COUNCIL,http://opendatacommunities.org/id/unitary-authority/warrington,FWB,Home to School Transport,33210,Mainstream Pupil Transport,300800,17/11/2022,5100516989,960,Warrington Borough Transport Ltd,105226
WARRINGTON BOROUGH COUNCIL,http://opendatacommunities.org/id/unitary-authority/warrington,ET0,Local Bus Contracts,44430,Payments To Operator,530150,17/11/2022,5100516990,858.33,Warrington Borough Transport Ltd,105226
WARRINGTON BOROUGH COUNCIL,http://opendatacommunities.org/id/unitary-authority/warrington,FWB,Homelessness,43650,Emergency Accommodation Allowance,550500,17/11/2022,5100516991,1050,DANL Limited,116459
WARRINGTON BOROUGH COUNCIL,http://opendatacommunities.org/id/unitary-authority/warrington,FWB,Special Schools Transport,33208,Statemented - Special Unit Pupil Transpo,300750,17/11/2022,5100516992,1662.5,Warrington Travel,112256
WARRINGTON BOROUGH COUNCIL,http://opendatacommunities.org/id/unitary-authority/warrington,FWB,BCF - Equipment Store,54930,Equipment Purchase & Contract,400000,17/11/2022,5100516993,500.6,Drive DeVilbiss Healthcare Ltd,101899
WARRINGTON BOROUGH COUNCIL,http://opendatacommunities.org/id/unitary-authority/warrington,ET0,P.F.I.,43630,Fees (Including Agents Fees),441450,18/11/2022,5100517041,43004.12,Your Housing Group,102933
WARRINGTON BOROUGH COUNCIL,http://opendatacommunities.org/id/unitary-authority/warrington,FWB,BCF - Equipment Store,54930,Equipment Purchase & Contract,400000,18/11/2022,5100517043,705,Aidapt Bathrooms Ltd,100366
WARRINGTON BOROUGH COUNCIL,http://opendatacommunities.org/id/unitary-authority/warrington,FWB,BCF - Equipment Store,54930,Equipment Purchase & Contract,400000,18/11/2022,5100517043,660,Aidapt Bathrooms Ltd,100366
WARRINGTON BOROUGH COUNCIL,http://opendatacommunities.org/id/unitary-authority/warrington,FWB,Homelessness,43650,Emergency Accommodation Allowance,550500,21/11/2022,5100517047,641.67,Villaggio Hotel,108074
WARRINGTON BOROUGH COUNCIL,http://opendatacommunities.org/id/unitary-authority/warrington,COR,Debt Management Expenses,62080,Consult.& Prof. Serv,440000,18/11/2022,5100517050,2001.5,Bevan Brittan,102113
WARRINGTON BOROUGH COUNCIL,http://opendatacommunities.org/id/unitary-authority/warrington,FWB,Homelessness,43650,Emergency Accommodation Allowance,550500,18/11/2022,5100517054,641.67,Villaggio Hotel,108074
WARRINGTON BOROUGH COUNCIL,http://opendatacommunities.org/id/unitary-authority/warrington,FWB,Homelessness,43650,Emergency Accommodation Allowance,550500,18/11/2022,5100517058,641.67,Villaggio Hotel,108074
WARRINGTON BOROUGH COUNCIL,http://opendatacommunities.org/id/unitary-authority/warrington,FWB,Homelessness,43650,Emergency Accommodation Allowance,550500,18/11/2022,5100517059,641.67,Villaggio Hotel,108074
WARRINGTON BOROUGH COUNCIL,http://opendatacommunities.org/id/unitary-authority/warrington,ET0,Strategic Transportation,44510,Consult.& Prof. Serv,440000,18/11/2022,5100517063,4315,Wsp Uk Ltd,103007
WARRINGTON BOROUGH COUNCIL,http://opendatacommunities.org/id/unitary-authority/warrington,ENO,Priority Infrastructure,82009,Consult.& Prof. Serv,440000,18/11/2022,5100517073,623.5,TLT Solicitors,115669
WARRINGTON BOROUGH COUNCIL,http://opendatacommunities.org/id/unitary-authority/warrington,ET0,Transport Holding Account,41311,Maintenance Work - Sub Contractors,301150,18/11/2022,5100517076,1132.87,Th White,102239
WARRINGTON BOROUGH COUNCIL,http://opendatacommunities.org/id/unitary-authority/warrington,FWB,BCF - Equipment Store,54930,Equipment Purchase & Contract,400000,18/11/2022,5100517079,707,Langham Products,103643
WARRINGTON BOROUGH COUNCIL,http://opendatacommunities.org/id/unitary-authority/warrington,ET0,Crematorium,41411,Grounds Maintenance - External,280000,18/11/2022,5100517080,960,Griffin Contracting Services,114529
WARRINGTON BOROUGH COUNCIL,http://opendatacommunities.org/id/unitary-authority/warrington,ET0,Land Drainage,44120,Clean Repair Drains,531000,18/11/2022,5100517083,3720,General Utilities Services Ltd,101975
WARRINGTON BOROUGH COUNCIL,http://opendatacommunities.org/id/unitary-authority/warrington,ET0,Waste Recycling,41820,CRC Contract,530450,18/11/2022,5100517085,26701.91,Environmental Waste Controls Ltd,102474
WARRINGTON BOROUGH COUNCIL,http://opendatacommunities.org/id/unitary-authority/warrington,ET0,Waste Recycling,41820,CRC Contract,530450,18/11/2022,5100517085,4356,Environmental Waste Controls Ltd,102474
WARRINGTON BOROUGH COUNCIL,http://opendatacommunities.org/id/unitary-authority/warrington,ET0,Walton Estate,41430,Resaleables,400600,18/11/2022,5100517102,849,J & J Learmonth,104874
WARRINGTON BOROUGH COUNCIL,http://opendatacommunities.org/id/unitary-authority/warrington,FWB,Contracts - SM Commissioning Team 1,55910,Public Health Contract Payments,540000,18/11/2022,5100517105,118873.58,Liverpool University Hospitals,100341
WARRINGTON BOROUGH COUNCIL,http://opendatacommunities.org/id/unitary-authority/warrington,FWB,BCF - Equipment Store,54930,Equipment Purchase & Contract,400000,18/11/2022,5100517107,600,Care-Ability Healthcare Ltd,111949
WARRINGTON BOROUGH COUNCIL,http://opendatacommunities.org/id/unitary-authority/warrington,FWB,BCF - Equipment Store,54930,Equipment Purchase & Contract,400000,18/11/2022,5100517107,1500,Care-Ability Healthcare Ltd,111949
WARRINGTON BOROUGH COUNCIL,http://opendatacommunities.org/id/unitary-authority/warrington,FWB,Special Schools Transport,33208,Statemented - Special Unit Pupil Transpo,300750,18/11/2022,5100517108,1992,Raza Taxis,105056
WARRINGTON BOROUGH COUNCIL,http://opendatacommunities.org/id/unitary-authority/warrington,FWB,Supporting People Contracts,53260,People with Mental Health Problems,535200,20/11/2022,5100517196,4461.53,Warrington Community Living,105229
WARRINGTON BOROUGH COUNCIL,http://opendatacommunities.org/id/unitary-authority/warrington,FWB,Supporting People Contracts,53260,People with Mental Health Problems,535200,20/11/2022,5100517197,2977.54,Carr Gomm,106573
WARRINGTON BOROUGH COUNCIL,http://opendatacommunities.org/id/unitary-authority/warrington,FWB,Supporting People Contracts,53260,People with Mental Health Problems,535200,21/11/2022,5100517263,5376,Lucam Lives Ltd,118993
WARRINGTON BOROUGH COUNCIL,http://opendatacommunities.org/id/unitary-authority/warrington,FWB,Homelessness,43650,Emergency Accommodation Allowance,550500,21/11/2022,5100517280,641.67,Villaggio Hotel,108074
WARRINGTON BOROUGH COUNCIL,http://opendatacommunities.org/id/unitary-authority/warrington,FWB,Homelessness,43650,Emergency Accommodation Allowance,550500,21/11/2022,5100517281,641.67,Villaggio Hotel,108074
WARRINGTON BOROUGH COUNCIL,http://opendatacommunities.org/id/unitary-authority/warrington,FWB,Virtual School,31112,Looked after children in Warrington,301000,21/11/2022,5100517286,5150,The Thinking Schools Academy,400571
WARRINGTON BOROUGH COUNCIL,http://opendatacommunities.org/id/unitary-authority/warrington,FWB,Homelessness,43650,Emergency Accommodation Allowance,550500,21/11/2022,5100517287,3831.67,The Patten Arms Hotel,115465
WARRINGTON BOROUGH COUNCIL,http://opendatacommunities.org/id/unitary-authority/warrington,ET0,Transport Holding Account,41311,Veh Maint. Materials,300000,21/11/2022,5100517289,1560,Tennants Distribution Limited,103720
WARRINGTON BOROUGH COUNCIL,http://opendatacommunities.org/id/unitary-authority/warrington,ENO,Highways Other,82005,Environmental Works,531050,21/11/2022,5100517292,27769.72,George Cox & Sons,105471
WARRINGTON BOROUGH COUNCIL,http://opendatacommunities.org/id/unitary-authority/warrington,FWB,Education Leadership & Quality,32100,Consult.& Prof. Serv,440000,21/11/2022,5100517293,3800,Gorse Covert Primary School (acad),400613
WARRINGTON BOROUGH COUNCIL,http://opendatacommunities.org/id/unitary-authority/warrington,RSC,Recruitment & Advertising,52123,CRB Checks,190050,21/11/2022,5100517297,10174,Disclosure & Barring Service,440085
WARRINGTON BOROUGH COUNCIL,http://opendatacommunities.org/id/unitary-authority/warrington,ENO,Highways LTP,82004,"Campaigns,  Projects and Events",491950,21/11/2022,5100517298,167,Cheshire Cycles,113232
WARRINGTON BOROUGH COUNCIL,http://opendatacommunities.org/id/unitary-authority/warrington,ET0,Travel Choices Team,44511,"Campaigns,  Projects and Events",491950,21/11/2022,5100517298,167,Cheshire Cycles,113232
WARRINGTON BOROUGH COUNCIL,http://opendatacommunities.org/id/unitary-authority/warrington,ET0,LACF - Behavioural Change Promotion,44526,"Campaigns,  Projects and Events",491950,21/11/2022,5100517298,166,Cheshire Cycles,113232
WARRINGTON BOROUGH COUNCIL,http://opendatacommunities.org/id/unitary-authority/warrington,ENO,Highways LTP,82004,"Campaigns,  Projects and Events",491950,21/11/2022,5100517299,233.8,Cheshire Cycles,113232
WARRINGTON BOROUGH COUNCIL,http://opendatacommunities.org/id/unitary-authority/warrington,ET0,Travel Choices Team,44511,"Campaigns,  Projects and Events",491950,21/11/2022,5100517299,233.8,Cheshire Cycles,113232
WARRINGTON BOROUGH COUNCIL,http://opendatacommunities.org/id/unitary-authority/warrington,ET0,LACF - Behavioural Change Promotion,44526,"Campaigns,  Projects and Events",491950,21/11/2022,5100517299,232.4,Cheshire Cycles,113232
WARRINGTON BOROUGH COUNCIL,http://opendatacommunities.org/id/unitary-authority/warrington,FWB,Virtual School,31112,Looked after children in Warrington,301000,21/11/2022,5100517301,1820,Sir Thomas Boteler (Academy),400428
WARRINGTON BOROUGH COUNCIL,http://opendatacommunities.org/id/unitary-authority/warrington,FWB,Virtual School,31112,Looked after children in Warrington,301000,21/11/2022,5100517301,880,Sir Thomas Boteler (Academy),400428
WARRINGTON BOROUGH COUNCIL,http://opendatacommunities.org/id/unitary-authority/warrington,FWB,Virtual School,31112,Looked after children in Warrington,301000,21/11/2022,5100517304,700,Saint Wilfrid's C of E Academy,118113
WARRINGTON BOROUGH COUNCIL,http://opendatacommunities.org/id/unitary-authority/warrington,FWB,DSG Independent School Fees,32011,Fees (Including Agents Fees),441450,21/11/2022,5100517305,5921.42,Belmont School Limited,400047
WARRINGTON BOROUGH COUNCIL,http://opendatacommunities.org/id/unitary-authority/warrington,FWB,DSG Independent School Fees,32011,Fees (Including Agents Fees),441450,21/11/2022,5100517306,4833.33,Belmont School Limited,400047
WARRINGTON BOROUGH COUNCIL,http://opendatacommunities.org/id/unitary-authority/warrington,FWB,DSG Independent School Fees,32011,Fees (Including Agents Fees),441450,21/11/2022,5100517307,6093.33,Belmont School Limited,400047
WARRINGTON BOROUGH COUNCIL,http://opendatacommunities.org/id/unitary-authority/warrington,FWB,DSG Independent School Fees,32011,Fees (Including Agents Fees),441450,21/11/2022,5100517308,4979.17,Belmont School Limited,400047
WARRINGTON BOROUGH COUNCIL,http://opendatacommunities.org/id/unitary-authority/warrington,FWB,DSG Independent School Fees,32011,Fees (Including Agents Fees),441450,21/11/2022,5100517309,3192.75,Belmont School Limited,400047
WARRINGTON BOROUGH COUNCIL,http://opendatacommunities.org/id/unitary-authority/warrington,FWB,DSG Independent School Fees,32011,Fees (Including Agents Fees),441450,21/11/2022,5100517310,3007.76,Belmont School Limited,400047
WARRINGTON BOROUGH COUNCIL,http://opendatacommunities.org/id/unitary-authority/warrington,FWB,DSG Independent School Fees,32011,Fees (Including Agents Fees),441450,21/11/2022,5100517311,4839,Belmont School Limited,400047
WARRINGTON BOROUGH COUNCIL,http://opendatacommunities.org/id/unitary-authority/warrington,FWB,DSG Independent School Fees,32011,Fees (Including Agents Fees),441450,21/11/2022,5100517312,3029.25,Belmont School Limited,400047
WARRINGTON BOROUGH COUNCIL,http://opendatacommunities.org/id/unitary-authority/warrington,FWB,DSG Independent School Fees,32011,Fees (Including Agents Fees),441450,21/11/2022,5100517313,3192.75,Belmont School Limited,400047
WARRINGTON BOROUGH COUNCIL,http://opendatacommunities.org/id/unitary-authority/warrington,FWB,DSG Independent School Fees,32011,Fees (Including Agents Fees),441450,21/11/2022,5100517314,4979.13,Belmont School Limited,400047
WARRINGTON BOROUGH COUNCIL,http://opendatacommunities.org/id/unitary-authority/warrington,FWB,DSG Independent School Fees,32011,Fees (Including Agents Fees),441450,21/11/2022,5100517315,6093.37,Belmont School Limited,400047
WARRINGTON BOROUGH COUNCIL,http://opendatacommunities.org/id/unitary-authority/warrington,FWB,DSG Independent School Fees,32011,Fees (Including Agents Fees),441450,21/11/2022,5100517316,2944.27,Belmont School Limited,400047
WARRINGTON BOROUGH COUNCIL,http://opendatacommunities.org/id/unitary-authority/warrington,FWB,DSG Independent School Fees,32011,Fees (Including Agents Fees),441450,21/11/2022,5100517317,2970,Belmont School Limited,400047
WARRINGTON BOROUGH COUNCIL,http://opendatacommunities.org/id/unitary-authority/warrington,FWB,DSG Independent School Fees,32011,Fees (Including Agents Fees),441450,21/11/2022,5100517318,3029.25,Belmont School Limited,400047
WARRINGTON BOROUGH COUNCIL,http://opendatacommunities.org/id/unitary-authority/warrington,FWB,DSG Independent School Fees,32011,Fees (Including Agents Fees),441450,21/11/2022,5100517319,3008.61,Belmont School Limited,400047
WARRINGTON BOROUGH COUNCIL,http://opendatacommunities.org/id/unitary-authority/warrington,FWB,DSG Independent School Fees,32011,Fees (Including Agents Fees),441450,21/11/2022,5100517320,2944.29,Belmont School Limited,400047
WARRINGTON BOROUGH COUNCIL,http://opendatacommunities.org/id/unitary-authority/warrington,FWB,DSG Independent School Fees,32011,Fees (Including Agents Fees),441450,21/11/2022,5100517321,4187.5,Belmont School Limited,400047
WARRINGTON BOROUGH COUNCIL,http://opendatacommunities.org/id/unitary-authority/warrington,FWB,DSG Independent School Fees,32011,Fees (Including Agents Fees),441450,21/11/2022,5100517322,4187.5,Belmont School Limited,400047
WARRINGTON BOROUGH COUNCIL,http://opendatacommunities.org/id/unitary-authority/warrington,FWB,DSG Independent School Fees,32011,Fees (Including Agents Fees),441450,21/11/2022,5100517323,6093.33,Belmont School Limited,400047
WARRINGTON BOROUGH COUNCIL,http://opendatacommunities.org/id/unitary-authority/warrington,FWB,DSG Independent School Fees,32011,Fees (Including Agents Fees),441450,21/11/2022,5100517324,4490.33,Belmont School Limited,400047
WARRINGTON BOROUGH COUNCIL,http://opendatacommunities.org/id/unitary-authority/warrington,FWB,DSG Independent School Fees,32011,Fees (Including Agents Fees),441450,21/11/2022,5100517325,5921.42,Belmont School Limited,400047
WARRINGTON BOROUGH COUNCIL,http://opendatacommunities.org/id/unitary-authority/warrington,FWB,DSG Independent School Fees,32011,Fees (Including Agents Fees),441450,21/11/2022,5100517326,4490.37,Belmont School Limited,400047
WARRINGTON BOROUGH COUNCIL,http://opendatacommunities.org/id/unitary-authority/warrington,FWB,DSG Independent School Fees,32011,Fees (Including Agents Fees),441450,21/11/2022,5100517327,5921.38,Belmont School Limited,400047
WARRINGTON BOROUGH COUNCIL,http://opendatacommunities.org/id/unitary-authority/warrington,ET0,Golf Course Client,41432,Stationery,430150,21/11/2022,5100517340,3513.25,Golfstorehouse Ltd,108916
WARRINGTON BOROUGH COUNCIL,http://opendatacommunities.org/id/unitary-authority/warrington,ET0,PW&F Management Operations,41427,Kennel Fees,440550,21/11/2022,5100517341,833.33,Manchester & District Home For Lost,102062
WARRINGTON BOROUGH COUNCIL,http://opendatacommunities.org/id/unitary-authority/warrington,ENO,Highways Other,82005,Environmental Works,531050,21/11/2022,5100517345,3056.53,D Morgan PLC,113242
WARRINGTON BOROUGH COUNCIL,http://opendatacommunities.org/id/unitary-authority/warrington,ET0,Building Control Services,43410,Advertisings-Jobs,190000,21/11/2022,5100517352,1440,Redactive Publishing Limited,117357
WARRINGTON BOROUGH COUNCIL,http://opendatacommunities.org/id/unitary-authority/warrington,FWB,DSG Independent School Fees,32011,Fees (Including Agents Fees),441450,21/11/2022,5100517353,2970,Belmont School Limited,400047
WARRINGTON BOROUGH COUNCIL,http://opendatacommunities.org/id/unitary-authority/warrington,FWB,DSG Independent School Fees,32011,Fees (Including Agents Fees),441450,21/11/2022,5100517354,3008.62,Belmont School Limited,400047
WARRINGTON BOROUGH COUNCIL,http://opendatacommunities.org/id/unitary-authority/warrington,FWB,DSG Independent School Fees,32011,Fees (Including Agents Fees),441450,21/11/2022,5100517355,3007.76,Belmont School Limited,400047
WARRINGTON BOROUGH COUNCIL,http://opendatacommunities.org/id/unitary-authority/warrington,FWB,DSG Independent School Fees,32011,Fees (Including Agents Fees),441450,21/11/2022,5100517356,5921.38,Belmont School Limited,400047
WARRINGTON BOROUGH COUNCIL,http://opendatacommunities.org/id/unitary-authority/warrington,FWB,DSG Independent School Fees,32011,Fees (Including Agents Fees),441450,21/11/2022,5100517357,4833.37,Belmont School Limited,400047
WARRINGTON BOROUGH COUNCIL,http://opendatacommunities.org/id/unitary-authority/warrington,ET0,Trading Standards North West,41564,"Campaigns,  Projects and Events",491950,21/11/2022,5100517359,700,Wagtail UK Limited,108156
WARRINGTON BOROUGH COUNCIL,http://opendatacommunities.org/id/unitary-authority/warrington,FWB,Appropriate Adults Project,33314,Consult.& Prof. Serv,440000,22/11/2022,5100517407,2851.38,Child Action North West,109412
WARRINGTON BOROUGH COUNCIL,http://opendatacommunities.org/id/unitary-authority/warrington,ET0,Crematorium,41411,Grounds Maintenance - External,280000,22/11/2022,5100517425,6536,Zagota Creations Ltd,105545
WARRINGTON BOROUGH COUNCIL,http://opendatacommunities.org/id/unitary-authority/warrington,ET0,Crematorium,41411,Equipment Purchase & Contract,400000,22/11/2022,5100517427,1022,Zagota Creations Ltd,105545
WARRINGTON BOROUGH COUNCIL,http://opendatacommunities.org/id/unitary-authority/warrington,ET0,Transport Holding Account,41311,Oil - Lubricating,301300,22/11/2022,5100517430,3335,Goldcrest Oil Ltd,109000
WARRINGTON BOROUGH COUNCIL,http://opendatacommunities.org/id/unitary-authority/warrington,FWB,Virtual School,31112,Looked after children in Warrington,301000,22/11/2022,5100517453,2875.29,Beamont Collegiate Academy,111598
WARRINGTON BOROUGH COUNCIL,http://opendatacommunities.org/id/unitary-authority/warrington,FWB,Homelessness,43650,Emergency Accommodation Allowance,550500,22/11/2022,5100517465,816.66,Villaggio Hotel,108074
WARRINGTON BOROUGH COUNCIL,http://opendatacommunities.org/id/unitary-authority/warrington,ET0,Street Lighting Client,44241,Lighting Energy Char,531550,22/11/2022,5100517473,1362.12,Npower Electricity,101884
WARRINGTON BOROUGH COUNCIL,http://opendatacommunities.org/id/unitary-authority/warrington,FWB,Homelessness,43650,Emergency Accommodation Allowance,550500,22/11/2022,5100517474,641.67,Villaggio Hotel,108074
WARRINGTON BOROUGH COUNCIL,http://opendatacommunities.org/id/unitary-authority/warrington,FWB,Homelessness,43650,Emergency Accommodation Allowance,550500,22/11/2022,5100517475,641.67,Villaggio Hotel,108074
WARRINGTON BOROUGH COUNCIL,http://opendatacommunities.org/id/unitary-authority/warrington,ET0,Street Lighting Client,44241,Lighting Energy Char,531550,22/11/2022,5100517476,11199.37,Npower Electricity,101884
WARRINGTON BOROUGH COUNCIL,http://opendatacommunities.org/id/unitary-authority/warrington,FWB,Homelessness,43650,Emergency Accommodation Allowance,550500,22/11/2022,5100517477,641.67,Villaggio Hotel,108074
WARRINGTON BOROUGH COUNCIL,http://opendatacommunities.org/id/unitary-authority/warrington,RSC,ICT Centralised Budget,23100,Computer Software - Maintenance,450850,22/11/2022,5100517479,29340,Zodiac Media Ltd,118439
WARRINGTON BOROUGH COUNCIL,http://opendatacommunities.org/id/unitary-authority/warrington,ET0,Heritage Cultural Recovery Fund Grant,41445,Equipment Purchase & Contract,400000,22/11/2022,5100517491,2500,Event Cheshire,118580
WARRINGTON BOROUGH COUNCIL,http://opendatacommunities.org/id/unitary-authority/warrington,FWB,Permanence staff teams,31021,Consult.& Prof. Serv,440000,23/11/2022,5100517555,657.8,AlphaBiolabs,109403
WARRINGTON BOROUGH COUNCIL,http://opendatacommunities.org/id/unitary-authority/warrington,FWB,CIN Team 6,31016,Consult.& Prof. Serv,440000,23/11/2022,5100517556,775,AlphaBiolabs,109403
WARRINGTON BOROUGH COUNCIL,http://opendatacommunities.org/id/unitary-authority/warrington,FWB,OT/Equip - Childrens,54315,Equipment Purchase & Contract,400000,23/11/2022,5100517558,549,Jenx,104831
WARRINGTON BOROUGH COUNCIL,http://opendatacommunities.org/id/unitary-authority/warrington,FWB,Contracts - SM Commissioning Team 1,55910,Public Health Contract Payments,540000,23/11/2022,5100517561,2200,Lakeside Surgery,112307
WARRINGTON BOROUGH COUNCIL,http://opendatacommunities.org/id/unitary-authority/warrington,COR,IndE - Gatewarth Srvc Charge Acct,43571,Grounds Maintenance - External,280000,23/11/2022,5100517565,525,B & K Landscapes,105448
WARRINGTON BOROUGH COUNCIL,http://opendatacommunities.org/id/unitary-authority/warrington,FWB,BCF - Padgate House,54760,Cleaning Materials,400450,23/11/2022,5100517566,552.5,Bunzl Cleaning And Hygiene Supplies,104650
WARRINGTON BOROUGH COUNCIL,http://opendatacommunities.org/id/unitary-authority/warrington,FWB,Contracts - SM Commissioning Team 1,55910,Public Health Contract Payments,540000,23/11/2022,5100517567,550,Birchwood Medical Centre,100402
WARRINGTON BOROUGH COUNCIL,http://opendatacommunities.org/id/unitary-authority/warrington,FWB,Virtual School,31112,Looked after children in Warrington,301000,23/11/2022,5100517568,992,Bridgewater High School Academy,400251
WARRINGTON BOROUGH COUNCIL,http://opendatacommunities.org/id/unitary-authority/warrington,FWB,Virtual School,31112,Looked after children in Warrington,301000,23/11/2022,5100517569,640,Bridgewater High School Academy,400251
WARRINGTON BOROUGH COUNCIL,http://opendatacommunities.org/id/unitary-authority/warrington,ET0,Public Health Licensing,41550,Consult.& Prof. Serv,440000,23/11/2022,5100517570,1480,Buckingham Futures,118389
WARRINGTON BOROUGH COUNCIL,http://opendatacommunities.org/id/unitary-authority/warrington,RSC,Civic,11440,"Campaigns,  Projects and Events",491950,23/11/2022,5100517574,8175,Blue Arrow Traffic Management Ltd,109292
WARRINGTON BOROUGH COUNCIL,http://opendatacommunities.org/id/unitary-authority/warrington,ET0,Private Sector Hsg.,43660,Environmental Works,531050,23/11/2022,5100517577,750,Charbs Garden Maintenance,105891
WARRINGTON BOROUGH COUNCIL,http://opendatacommunities.org/id/unitary-authority/warrington,FWB,Contracts - SM Commissioning Team 1,55910,Public Health Contract Payments,540000,23/11/2022,5100517579,598,Cockhedge Medical Centre,105922
WARRINGTON BOROUGH COUNCIL,http://opendatacommunities.org/id/unitary-authority/warrington,FWB,Contracts - SM Commissioning Team 1,55910,Public Health Contract Payments,540000,24/11/2022,5100517587,4140,Culcheth Medical Centre,109213
WARRINGTON BOROUGH COUNCIL,http://opendatacommunities.org/id/unitary-authority/warrington,FWB,BCF - Equipment Store,54930,Equipment Purchase & Contract,400000,24/11/2022,5100517635,733.5,Drive DeVilbiss Healthcare Ltd,101899
WARRINGTON BOROUGH COUNCIL,http://opendatacommunities.org/id/unitary-authority/warrington,ET0,Transport Holding Account,41311,Maintenance Work - Sub Contractors,301150,24/11/2022,5100517636,6293.08,Turner Groundscare,105201
WARRINGTON BOROUGH COUNCIL,http://opendatacommunities.org/id/unitary-authority/warrington,DG0,Contingency,45227,Consult.& Prof. Serv,440000,24/11/2022,5100517640,21600,Concrete & Corrosion Consultancy,118497
WARRINGTON BOROUGH COUNCIL,http://opendatacommunities.org/id/unitary-authority/warrington,ET0,Facilities Management,41422,Equipment Purchase & Contract,400000,24/11/2022,5100517641,1890,Jrs Fabrications Ltd,105378
WARRINGTON BOROUGH COUNCIL,http://opendatacommunities.org/id/unitary-authority/warrington,DG0,Personal Development Centre,45165,Consult.& Prof. Serv,440000,24/11/2022,5100517642,1880,Rapid Chiller Rentals Limited,118979
WARRINGTON BOROUGH COUNCIL,http://opendatacommunities.org/id/unitary-authority/warrington,ET0,Transport Holding Account,41311,Accidental Damage - Sub Contractors,301200,25/11/2022,5100517645,3021.45,Inchcape Warrington Toyota / Lexus,119022
WARRINGTON BOROUGH COUNCIL,http://opendatacommunities.org/id/unitary-authority/warrington,FWB,BCF - IC Premises & Training,53280,Maintenance of Plant & Machinery,250050,25/11/2022,5100517646,2542,Rapid Chiller Rentals Limited,118979
WARRINGTON BOROUGH COUNCIL,http://opendatacommunities.org/id/unitary-authority/warrington,FWB,DSG Independent School Fees,32011,Fees (Including Agents Fees),441450,25/11/2022,5100517648,8141.27,Weston Point College,110596
WARRINGTON BOROUGH COUNCIL,http://opendatacommunities.org/id/unitary-authority/warrington,FWB,DSG Independent School Fees,32011,Fees (Including Agents Fees),441450,25/11/2022,5100517649,8141.27,Weston Point College,110596
WARRINGTON BOROUGH COUNCIL,http://opendatacommunities.org/id/unitary-authority/warrington,ET0,Street Lighting Client,44241,Lighting Energy Char,531550,24/11/2022,5100517656,79671.89,Npower Electricity,101884
WARRINGTON BOROUGH COUNCIL,http://opendatacommunities.org/id/unitary-authority/warrington,ET0,Waste Disposal,41830,Residual Waste Disposal,530500,24/11/2022,5100517657,487608.34,Viridor Energy Limited,118588
WARRINGTON BOROUGH COUNCIL,http://opendatacommunities.org/id/unitary-authority/warrington,ET0,Sankey Canal Maintenace,44125,Consult.& Prof. Serv,440000,24/11/2022,5100517668,2006,Farrer & Co,100458
WARRINGTON BOROUGH COUNCIL,http://opendatacommunities.org/id/unitary-authority/warrington,ET0,The Forge Car Park Stockton Heath,44324,Equipment Purchase & Contract,400000,24/11/2022,5100517669,1584,Flowbird Smart City UK Ltd,100854
WARRINGTON BOROUGH COUNCIL,http://opendatacommunities.org/id/unitary-authority/warrington,FWB,Children with Disabilities,31005,Consult.& Prof. Serv,440000,24/11/2022,5100517676,24350,Greenstaff Communty Services,118764
WARRINGTON BOROUGH COUNCIL,http://opendatacommunities.org/id/unitary-authority/warrington,FWB,DSG Post-16 Special Educational Needs,32309,Fees (Including Agents Fees),441450,25/11/2022,5100517720,20705,The David Lewis Centre,104879
WARRINGTON BOROUGH COUNCIL,http://opendatacommunities.org/id/unitary-authority/warrington,FWB,DSG Post-16 Special Educational Needs,32309,Fees (Including Agents Fees),441450,25/11/2022,5100517721,26838.33,The David Lewis Centre,104879
WARRINGTON BOROUGH COUNCIL,http://opendatacommunities.org/id/unitary-authority/warrington,FWB,DSG Post-16 Special Educational Needs,32309,Fees (Including Agents Fees),441450,25/11/2022,5100517722,26689,The David Lewis Centre,104879
WARRINGTON BOROUGH COUNCIL,http://opendatacommunities.org/id/unitary-authority/warrington,FWB,BCF - Padgate House,54760,Cleaning Materials,400450,25/11/2022,5100517724,552.5,Bunzl Cleaning And Hygiene Supplies,104650
WARRINGTON BOROUGH COUNCIL,http://opendatacommunities.org/id/unitary-authority/warrington,COR,IndE - Sankey Brdgs Serv.Chge Acct,43572,Grounds Maintenance - External,280000,25/11/2022,5100517727,885,B & K Landscapes,105448
WARRINGTON BOROUGH COUNCIL,http://opendatacommunities.org/id/unitary-authority/warrington,FWB,Virtual School,31112,Looked after children in Warrington,301000,25/11/2022,5100517740,900,Park Road Primary Academy,400487
WARRINGTON BOROUGH COUNCIL,http://opendatacommunities.org/id/unitary-authority/warrington,ET0,Transport Holding Account,41311,Veh Maint. Materials,300000,25/11/2022,5100517743,536.48,Walton Summit Truck Centre Ltd,112806
